Workbook

Sheet Sr data
A1: RUN_CODE | B1: P | C1: RPT | D1: BATCH | E1: N | F1: SAMPLE | G1: FRACTION | H1: Fraction symbol | I1: Sr ppm | J1: ± 2SE | K1: 1/Sr | L1: 87Sr/86Sr | M1: ± 2SE | N1: Depth CCSF-M
A2: Triton_1461 | B2: 1 | D2: N869 | E2: 1 | F2: 13CW009 | G2: Bulk | H2: 13 | I2: 306.773 | J2: 0.01 | L2: 0.708959 | M2: 8e-06 | N2: 220.025
A3: T1_1513 | B3: 19 | C3: 1 | D3: N886 | E3: 1 | F3: 13CW013 | G3: <2microns | H3: 12 | I3: 370.146205 | J3: 0.023347 | K3: 0.002701635155 | L3: 0.70835 | M3: 1.2e-05 | N3: 222.425
A4: T1_1517 | B4: 13 | C4: 1 | D4: N886 | E4: 31 | F4: 13CW013 | G4: 2-20microns | H4: 11 | I4: 403.291966 | J4: 0.016813 | K4: 0.002479593159 | L4: 0.708398 | M4: 1.4e-05 | N4: 222.425
A5: Triton_1461 | B5: 2 | D5: N869 | E5: 2 | F5: 13CW016 | G5: Bulk | H5: 13 | I5: 345.109 | J5: 0.01 | L5: 0.708419 | M5: 7e-06 | N5: 224.825
A6: T1_1516 | B6: 1 | C6: 1 | D6: N886 | E6: 2 | F6: 13CW018 | G6: <2microns | H6: 12 | I6: 232.320319 | J6: 0.01056 | K6: 0.004304401803 | L6: 0.709382 | M6: 1.1e-05 | N6: 226.425
A7: Triton_1461 | B7: 3 | D7: N869 | E7: 3 | F7: 13CW021 | G7: Bulk | H7: 13 | I7: 369.553 | J7: 0.033 | L7: 0.708452 | M7: 1.4e-05 | N7: 229.645
A8: T1_1516 | B8: 2 | C8: 1 | D8: N886 | E8: 3 | F8: 13CW023 | G8: <2microns | H8: 12 | I8: 318.826385 | J8: 0.017535 | K8: 0.003136503273 | L8: 0.708549 | M8: 1.3e-05 | N8: 231.225
A9: Triton1_1419 | B9: 9 | D9: N844 | E9: 11 | F9: 13CW025 | G9: <2microns | H9: 12 | I9: 357.361 | J9: 0.02 | L9: 0.708143 | M9: 1e-05 | N9: 232.875
A10: T1_1516 | B10: 3 | C10: 1 | D10: N886 | E10: 4 | F10: 13CW026 | G10: <2microns | H10: 12 | I10: 181.692373 | J10: 0.007726 | K10: 0.005503808352 | L10: 0.708625 | M10: 1.1e-05 | N10: 233.625
A11: T1_1516 | B11: 4 | C11: 1 | D11: N886 | E11: 5 | F11: 13CW028 | G11: <2microns | H11: 12 | I11: 122.807943 | J11: 0.004278 | K11: 0.00814279578 | L11: 0.711624 | M11: 1.1e-05 | N11: 234.425
A12: Triton_1461 | B12: 4 | D12: N869 | E12: 4 | F12: 13CW030 | G12: Bulk | H12: 13 | I12: 93.662 | J12: 0.004 | L12: 0.712262 | M12: 1.1e-05 | N12: 236.025
A13: T1_1516 | B13: 5 | C13: 1 | D13: N886 | E13: 6 | F13: 13CW032 | G13: <2microns | H13: 12 | I13: 91.289163 | J13: 0.003161 | K13: 0.01095420275 | L13: 0.713081 | M13: 1.2e-05 | N13: 237.625
A14: T1_1516 | B14: 6 | C14: 1 | D14: N886 | E14: 7 | F14: 13CW034 | G14: <2microns | H14: 12 | I14: 293.714562 | J14: 0.015679 | K14: 0.003404666058 | L14: 0.708988 | M14: 1.1e-05 | N14: 238.425
A15: T1_1516 | B15: 7 | C15: 1 | D15: N886 | E15: 8 | F15: 13CW036 | G15: <2microns | H15: 12 | I15: 283.60558 | J15: 0.015603 | K15: 0.003526023712 | L15: 0.708943 | M15: 1e-05 | N15: 240.340182
A16: T1_1516 | B16: 8 | C16: 1 | D16: N886 | E16: 9 | F16: 13CW039 | G16: <2microns | H16: 12 | I16: 230.671913 | J16: 0.010506 | K16: 0.004335161516 | L16: 0.709051 | M16: 1e-05 | N16: 241.230182
A17: T1_1516 | B17: 9 | C17: 1 | D17: N886 | E17: 10 | F17: 13CW042 | G17: <2microns | H17: 12 | I17: 328.070879 | J17: 0.018833 | K17: 0.003048121805 | L17: 0.70896 | M17: 1.1e-05 | N17: 242.130182
A18: T1_1516 | B18: 10 | C18: 1 | D18: N886 | E18: 11 | F18: 13CW045 | G18: <2microns | H18: 12 | I18: 144.288701 | J18: 0.004793 | K18: 0.006930549607 | L18: 0.712733 | M18: 1e-05 | N18: 243.030182
A19: Triton1_1419 | B19: 13 | D19: N844 | E19: 15 | F19: 13CW050 | G19: <2microns | H19: 12 | I19: 365.139 | J19: 0.026 | L19: 0.709903 | M19: 9e-06 | N19: 244.525
A20: T1_1516 | B20: 11 | C20: 1 | D20: N886 | E20: 12 | F20: 13CW052 | G20: <2microns | H20: 12 | I20: 205.431631 | J20: 0.009577 | K20: 0.004867799545 | L20: 0.712324 | M20: 8e-06 | N20: 245.105
A21: Triton_1461 | B21: 5 | D21: N869 | E21: 5 | F21: 13CW058 | G21: Bulk | H21: 13 | I21: 248.719 | J21: 0.012 | L21: 0.709593 | M21: 1.4e-05 | N21: 246.025
A22: T1_1516 | B22: 12 | C22: 1 | D22: N886 | E22: 13 | F22: 13CW065 | G22: <2microns | H22: 12 | I22: 194.630536 | J22: 0.00789 | K22: 0.005137939917 | L22: 0.71264 | M22: 9e-06 | N22: 246.2453898
A23: Triton1_1419 | B23: 10 | D23: N844 | E23: 12 | F23: 13CW072 | G23: <2microns | H23: 12 | I23: 328.742 | J23: 0.02 | L23: 0.710336 | M23: 9e-06 | N23: 246.3055
A24: T1_1517 | B24: 14 | C24: 1 | D24: N886 | E24: 32 | F24: 13CW087 | G24: 2-20microns | H24: 11 | I24: 273.365517 | J24: 0.012909 | K24: 0.003658105861 | L24: 0.711081 | M24: 1.1e-05 | N24: 246.5536667
A25: T1_1516 | B25: 13 | C25: 1 | D25: N886 | E25: 14 | F25: 13CW087 | G25: <2microns | H25: 12 | I25: 185.855604 | J25: 0.009362 | K25: 0.005380521106 | L25: 0.711438 | M25: 1e-05 | N25: 246.5536667
A26: Triton_1461 | B26: 6 | D26: N869 | E26: 6 | F26: 13CW059 | G26: Bulk | H26: 13 | I26: 137.072 | J26: 0.007 | L26: 0.711753 | M26: 1.1e-05 | N26: 247.212
A27: Triton_1461 | B27: 7 | D27: N869 | E27: 7 | F27: 13CW099 | G27: Bulk | H27: 13 | I27: 193.219 | J27: 0.01 | L27: 0.710382 | M27: 1e-05 | N27: 248.077
A28: Triton_1461 | B28: 8 | D28: N869 | E28: 8 | F28: 13CW102 | G28: Bulk | H28: 13 | I28: 99.09 | J28: 0.004 | L28: 0.70972 | M28: 1e-05 | N28: 249.025
A29: Triton_1461 | B29: 8 | D29: N869 | E29: 8 | F29: 13CW102 | G29: Bulk | H29: 13 | I29: 99.092 | J29: 0.005 | L29: 0.709717 | M29: 1.2e-05 | N29: 249.025
A30: Triton1_1416 | B30: 18 | D30: N844 | E30: 8 | F30: 13CW103 | G30: Bulk | H30: 13 | I30: 161.767 | J30: 0.009 | L30: 0.709634 | M30: 9e-06 | N30: 249.325
A31: Triton1_1419 | B31: 16 | D31: N844 | E31: 18 | F31: 13CW103 | G31: <2microns | H31: 12 | I31: 196.35 | J31: 0.009 | L31: 0.70991 | M31: 8e-06 | N31: 249.325
A32: Triton_1461 | B32: 9 | D32: N869 | E32: 9 | F32: 13CW108 | G32: Bulk | H32: 13 | I32: 163.115 | J32: 0.008 | L32: 0.710507 | M32: 1.2e-05 | N32: 250.525
A33: Triton_1461 | B33: 10 | D33: N869 | E33: 10 | F33: 13CW116 | G33: Bulk | H33: 13 | I33: 186.975 | J33: 0.011 | L33: 0.710964 | M33: 1.2e-05 | N33: 251.675
A34: Triton1_1419 | B34: 11 | D34: N844 | E34: 13 | F34: 13CW113 | G34: <2microns | H34: 12 | I34: 204.192 | J34: 0.007 | L34: 0.710074 | M34: 9e-06 | N34: 252.585
A35: Triton1_1416 | B35: 14 | D35: N844 | E35: 3 | F35: 13CW113 | G35: Bulk | H35: 13 | I35: 147.2 | J35: 0.008 | L35: 0.710254 | M35: 1e-05 | N35: 252.585
A36: Triton1_1416 | B36: 15 | D36: N844 | E36: 4 | F36: 13CW121 | G36: Bulk | H36: 13 | I36: 183.946 | J36: 0.009 | L36: 0.710364 | M36: 8e-06 | N36: 254.085
A37: Triton1_1419 | B37: 12 | D37: N844 | E37: 14 | F37: 13CW121 | G37: <2microns | H37: 12 | I37: 202.286 | J37: 0.005 | L37: 0.712281 | M37: 4e-06 | N37: 254.085
A38: Triton_1461 | B38: 11 | D38: N869 | E38: 11 | F38: 13CW127 | G38: Bulk | H38: 13 | I38: 183.667 | J38: 0.009 | L38: 0.710331 | M38: 1.2e-05 | N38: 256.5207032
A39: T1_1517 | B39: 15 | C39: 1 | D39: N886 | E39: 33 | F39: 13CW129 | G39: 2-20microns | H39: 11 | I39: 178.783017 | J39: 0.009237 | K39: 0.00559337244 | L39: 0.71057 | M39: 1e-05 | N39: 257.1207014
A40: T1_1516 | B40: 14 | C40: 1 | D40: N886 | E40: 15 | F40: 13CW129 | G40: <2microns | H40: 12 | I40: 101.884015 | J40: 0.004628 | K40: 0.009815082376 | L40: 0.711383 | M40: 1.2e-05 | N40: 257.1207014
A41: Triton1_1416 | B41: 16 | D41: N844 | E41: 6 | F41: 13CW133 | G41: Bulk | H41: 13 | I41: 140.154 | J41: 0.009 | L41: 0.71076 | M41: 1e-05 | N41: 258.675
A42: Triton1_1419 | B42: 14 | D42: N844 | E42: 16 | F42: 13CW133 | G42: <2microns | H42: 12 | I42: 191.473 | J42: 0.006 | L42: 0.711864 | M42: 8e-06 | N42: 258.675
A43: Triton1_1416 | B43: 17 | D43: N844 | E43: 7 | F43: 13CW136 | G43: Bulk | H43: 13 | I43: 161.593 | J43: 0.007 | L43: 0.711491 | M43: 8e-06 | N43: 260.6172727
A44: Triton1_1419 | B44: 15 | D44: N844 | E44: 17 | F44: 13CW136 | G44: <2microns | H44: 12 | I44: 231.657 | J44: 0.008 | L44: 0.711692 | M44: 6e-06 | N44: 260.6172727
A45: T1_1516 | B45: 15 | C45: 1 | D45: N886 | E45: 16 | F45: 13CW138 | G45: <2microns | H45: 12 | I45: 113.985945 | J45: 0.004633 | K45: 0.008773011445 | L45: 0.711756 | M45: 1.3e-05 | N45: 261.7739453
A46: T1_1516 | B46: 16 | C46: 1 | D46: N886 | E46: 17 | F46: 13CW140 | G46: <2microns | H46: 12 | I46: 128.729337 | J46: 0.004579 | K46: 0.00776823701 | L46: 0.712586 | M46: 1e-05 | N46: 262.3276563
A47: Triton1_1419 | B47: 7 | D47: N844 | E47: 9 | F47: 13CW154 | G47: Bulk | H47: 13 | I47: 161.097 | J47: 0.009 | L47: 0.71317 | M47: 1.1e-05 | N47: 263.085
A48: Triton1_1422 | B48: 15 | D48: N844 | E48: 19 | F48: 13CW154 | G48: <2microns | H48: 12 | I48: 162.553 | J48: 0.006 | L48: 0.71565 | M48: 9e-06 | N48: 263.085
A49: T1_1516 | B49: 17 | C49: 1 | D49: N886 | E49: 18 | F49: 13CW157 | G49: <2microns | H49: 12 | I49: 110.520453 | J49: 0.003908 | K49: 0.009048098998 | L49: 0.714917 | M49: 1.1e-05 | N49: 263.93
A50: T1_1517 | B50: 8 | C50: 1 | D50: N886 | E50: 26 | F50: 13CW160 | G50: <2microns | H50: 12 | I50: 104.127431 | J50: 0.003346 | K50: 0.009603617322 | L50: 0.713603 | M50: 1.3e-05 | N50: 264.575
A51: T1_1517 | B51: 16 | C51: 1 | D51: N886 | E51: 34 | F51: 13CW163 | G51: 2-20microns | H51: 11 | I51: 193.053002 | J51: 0.009176 | K51: 0.00517992463 | L51: 0.715241 | M51: 1.1e-05 | N51: 265.475
A52: T1_1517 | B52: 9 | C52: 1 | D52: N886 | E52: 27 | F52: 13CW163 | G52: <2microns | H52: 12 | I52: 112.814383 | J52: 0.005963 | K52: 0.008864117973 | L52: 0.71568 | M52: 1.2e-05 | N52: 265.475
A53: Triton_1461 | B53: 12 | D53: N869 | E53: 12 | F53: 13CW165 | G53: Bulk | H53: 13 | I53: 76.821 | J53: 0.004 | L53: 0.728126 | M53: 1.4e-05 | N53: 266.115
A54: T1_1516 | B54: 18 | C54: 1 | D54: N886 | E54: 19 | F54: 13CW167 | G54: <2microns | H54: 12 | I54: 128.119388 | J54: 0.004216 | K54: 0.007805219925 | L54: 0.715869 | M54: 1e-05 | N54: 266.675
A55: T1_1517 | B55: 10 | C55: 1 | D55: N886 | E55: 28 | F55: 13CW169 | G55: <2microns | H55: 12 | I55: 132.956517 | J55: 0.005376 | K55: 0.007521255991 | L55: 0.712571 | M55: 1.4e-05 | N55: 267.275
A56: T1_1517 | B56: 11 | C56: 1 | D56: N886 | E56: 29 | F56: 13CW172 | G56: <2microns | H56: 12 | I56: 144.143069 | J56: 0.007101 | K56: 0.006937551746 | L56: 0.71237 | M56: 1e-05 | N56: 268.175
A57: T1_1516 | B57: 19 | C57: 1 | D57: N886 | E57: 20 | F57: 13CW174 | G57: <2microns | H57: 12 | I57: 130.986737 | J57: 0.005525 | K57: 0.007634360722 | L57: 0.71255 | M57: 1.1e-05 | N57: 268.775
A58: T1_1517 | B58: 3 | C58: 1 | D58: N886 | E58: 21 | F58: 13CW176 | G58: <2microns | H58: 12 | I58: 126.220516 | J58: 0.004256 | K58: 0.007922642306 | L58: 0.712707 | M58: 1.1e-05 | N58: 269.375
A59: T1_1517 | B59: 4 | C59: 1 | D59: N886 | E59: 22 | F59: 13CW178 | G59: <2microns | H59: 12 | I59: 118.22176 | J59: 0.00468 | K59: 0.008458679688 | L59: 0.712687 | M59: 1.1e-05 | N59: 269.945
A60: Triton1_1422 | B60: 16 | D60: N844 | E60: 20 | F60: 13CW179 | G60: <2microns | H60: 12 | I60: 227.022 | J60: 0.01 | L60: 0.713164 | M60: 7e-06 | N60: 270.275
A61: Triton1_1419 | B61: 8 | D61: N844 | E61: 10 | F61: 13CW179 | G61: Bulk | H61: 13 | I61: 202.218 | J61: 0.006 | L61: 0.714088 | M61: 8e-06 | N61: 270.275
A62: T1_1517 | B62: 5 | C62: 1 | D62: N886 | E62: 23 | F62: 13CW182 | G62: <2microns | H62: 12 | I62: 102.781031 | J62: 0.008132 | K62: 0.009729421765 | L62: 0.716974 | M62: 0.000467 | N62: 277.725
A63: Triton_1461 | B63: 13 | D63: N869 | E63: 13 | F63: 13CW189 | G63: Bulk | H63: 13 | I63: 99.467 | J63: 0.006 | L63: 0.716503 | M63: 1e-05 | N63: 279.825
A64: T1_1517 | B64: 6 | C64: 1 | D64: N886 | E64: 24 | F64: 13CW193 | G64: <2microns | H64: 12 | I64: 85.042116 | J64: 0.003552 | K64: 0.01175887957 | L64: 0.714946 | M64: 1e-05 | N64: 281.025
A65: T1_1517 | B65: 7 | C65: 1 | D65: N886 | E65: 25 | F65: 13CW199 | G65: <2microns | H65: 12 | I65: 95.585617 | J65: 0.003674 | K65: 0.01046182503 | L65: 0.713674 | M65: 1.1e-05 | N65: 283.11
A66: T1_1517 | B66: 17 | C66: 1 | D66: N886 | E66: 35 | F66: 13CW199 | G66: 2-20microns | H66: 11 | I66: 144.522845 | J66: 0.005876 | K66: 0.006919321302 | L66: 0.714471 | M66: 1.1e-05 | N66: 283.11
A67: Triton_1461 | B67: 14 | D67: N869 | E67: 14 | F67: 13CW204 | G67: Bulk | H67: 13 | I67: 101.015 | J67: 0.006 | L67: 0.717327 | M67: 1.5e-05 | N67: 287.055
A68: T1_1517 | B68: 12 | C68: 1 | D68: N886 | E68: 30 | F68: 13CW213 | G68: <2microns | H68: 12 | I68: 123.164404 | J68: 0.005128 | K68: 0.008119228994 | L68: 0.714777 | M68: 1.1e-05 | N68: 289.725
A69: Triton_1461 | B69: 15 | D69: N869 | E69: 15 | F69: 13CW329 | G69: Bulk | H69: 13 | I69: 71.08 | J69: 0.003 | L69: 0.719077 | M69: 1.3e-05 | N69: 345.425
A70: Triton_1461 | B70: 16 | D70: N869 | E70: 16 | F70: 13CW367 | G70: Bulk | H70: 13 | I70: 83.673 | J70: 0.004 | L70: 0.721545 | M70: 1.2e-05 | N70: 379.825
A71: Triton_1461 | B71: 17 | D71: N869 | E71: 17 | F71: 13CW396 | G71: Bulk | H71: 13 | I71: 90.25 | J71: 0.003 | L71: 0.72775 | M71: 1.3e-05 | N71: 415.825
A72: Triton_1461 | B72: 18 | D72: N869 | E72: 18 | F72: 13CW409 | G72: Bulk | H72: 13 | I72: 69.219 | J72: 0.004 | L72: 0.734979 | M72: 1.6e-05 | N72: 431.025
A73: Triton_1461 | B73: 19 | D73: N869 | E73: 19 | F73: 13CW419 | G73: Bulk | H73: 13 | I73: 74.369 | J73: 0.003 | L73: 0.727496 | M73: 1.3e-05 | N73: 442.265
A74: Triton1_1462 | B74: 1 | D74: N869 | E74: 20 | F74: 13CW433 | G74: Bulk | H74: 13 | I74: 90.144 | J74: 0.005 | L74: 0.708203 | M74: 1.7e-05 | N74: 459.825

Sheet Nd data
A1: RUN_CODE | B1: P | C1: RPT | D1: BATCH | E1: N | F1: SAMPLE | G1: FRACTION | H1: COMMENTS | I1: Nd ppm | J1: ± 2SE | K1: 1/Nd | L1: 143Nd/144Nd | M1: ± 2SE | N1: εNd | O1: Depth CCSF-M
A2: Neptune-2021-09-22 | B2: 5 | D2: N869 | E2: 1 | F2: 13CW009 | G2: Bulk | I2: 21.892 | J2: 0.001 | L2: 0.511996 | M2: 1.2e-05 | N2: -12.5234571 | O2: 220.025
A3: T1_1520 | B3: 1 | C3: 1 | D3: N886 | E3: 1 | F3: 13CW013 | G3: <2microns | I3: 27.496638 | J3: 0.003531 | K3: 0.03636808253 | L3: 0.512069 | M3: 9e-06 | N3: -11.09945029 | O3: 222.425
A4: T1_1522 | B4: 3 | C4: 2 | D4: N886 | E4: 31 | F4: 13CW013 | G4: 2-20microns | I4: 29.768397 | J4: 0.002027 | K4: 0.03359267212 | L4: 0.512046 | M4: 1e-05 | N4: -11.54810997 | O4: 222.425
A5: Neptune-2021-09-22 | B5: 6 | D5: N869 | E5: 2 | F5: 13CW016 | G5: Bulk | I5: 18.559 | J5: 0.001 | L5: 0.511976 | M5: 1.3e-05 | N5: -12.91359595 | O5: 224.825
A6: T1_1520 | B6: 2 | C6: 1 | D6: N886 | E6: 2 | F6: 13CW018 | G6: <2microns | I6: 17.368129 | J6: 0.001257 | K6: 0.05757672574 | L6: 0.511978 | M6: 5e-06 | N6: -12.87458206 | O6: 226.425
A7: Neptune-2021-09-22 | B7: 7 | D7: N869 | E7: 3 | F7: 13CW021 | G7: Bulk | I7: 26.436 | J7: 0.001 | L7: 0.511999 | M7: 9e-06 | N7: -12.46493627 | O7: 229.645
A8: T1_1520 | B8: 3 | C8: 1 | D8: N886 | E8: 3 | F8: 13CW023 | G8: <2microns | I8: 23.040931 | J8: 0.001894 | K8: 0.04340102403 | L8: 0.512009 | M8: 1.1e-05 | N8: -12.26986685 | O8: 231.225
A9: Neptune-2020-07-03 | B9: 67 | D9: N844 | E9: 11 | F9: 13CW025 | G9: <2microns | I9: 25.965 | J9: 0.002 | L9: 0.512041 | M9: 9e-06 | N9: -11.64564468 | O9: 232.875
A10: T1_1520 | B10: 4 | C10: 1 | D10: N886 | E10: 4 | F10: 13CW026 | G10: <2microns | I10: 29.231053 | J10: 0.002777 | K10: 0.03421019421 | L10: 0.512115 | M10: 9e-06 | N10: -10.20213094 | O10: 233.625
A11: T1_1520 | B11: 5 | C11: 1 | D11: N886 | E11: 5 | F11: 13CW028 | G11: <2microns | I11: 19.910294 | J11: 0.001435 | K11: 0.05022527543 | L11: 0.511958 | M11: 6e-06 | N11: -13.26472091 | O11: 234.425
A12: Neptune-2021-09-22 | B12: 8 | D12: N869 | E12: 4 | F12: 13CW030 | G12: Bulk | I12: 8.271 | J12: 0 | L12: 0.511701 | M12: 9e-06 | N12: -18.27800514 | O12: 236.025
A13: T1_1520 | B13: 6 | C13: 1 | D13: N886 | E13: 6 | F13: 13CW032 | G13: <2microns | I13: 15.584619 | J13: 0.001861 | K13: 0.06416582914 | L13: 0.511963 | M13: 1.5e-05 | N13: -13.1671862 | O13: 237.625
A14: T1_1520 | B14: 7 | C14: 1 | D14: N886 | E14: 7 | F14: 13CW034 | G14: <2microns | I14: 29.153388 | J14: 0.003187 | K14: 0.0343013306 | L14: 0.512046 | M14: 9e-06 | N14: -11.54810997 | O14: 238.425
A15: T1_1520 | B15: 8 | C15: 1 | D15: N886 | E15: 8 | F15: 13CW036 | G15: <2microns | I15: 37.895804 | J15: 0.005418 | K15: 0.02638814577 | L15: 0.512076 | M15: 9e-06 | N15: -10.9629017 | O15: 240.340182
A16: T1_1520 | B16: 9 | C16: 1 | D16: N886 | E16: 9 | F16: 13CW039 | G16: <2microns | I16: 35.3203 | J16: 0.004058 | K16: 0.0283123303 | L16: 0.512034 | M16: 8e-06 | N16: -11.78219328 | O16: 241.230182
A17: T1_1520 | B17: 10 | C17: 1 | D17: N886 | E17: 10 | F17: 13CW042 | G17: <2microns | I17: 34.36496 | J17: 0.003199 | K17: 0.02909940823 | L17: 0.512001 | M17: 6e-06 | N17: -12.42592239 | O17: 242.130182
A18: T1_1520 | B18: 11 | C18: 1 | D18: N886 | E18: 11 | F18: 13CW045 | G18: <2microns | I18: 34.364141 | J18: 0.003689 | K18: 0.02910010176 | L18: 0.511948 | M18: 8e-06 | N18: -13.45979034 | O18: 243.030182
A19: Neptune-2020-07-03 | B19: 73 | D19: N844 | E19: 15 | F19: 13CW050 | G19: <2microns | I19: 19.184 | J19: 0.001 | L19: 0.511656 | M19: 8e-06 | N19: -19.15581756 | O19: 244.525
A20: T1_1520 | B20: 12 | C20: 1 | D20: N886 | E20: 12 | F20: 13CW052 | G20: <2microns | I20: 23.542258 | J20: 0.002879 | K20: 0.04247680915 | L20: 0.511693 | M20: 1.3e-05 | N20: -18.43406068 | O20: 245.105
A21: Neptune-2021-09-22 | B21: 9 | D21: N869 | E21: 5 | F21: 13CW058 | G21: Bulk | I21: 11.888 | J21: 0 | L21: 0.511538 | M21: 5e-06 | N21: -21.45763677 | O21: 246.025
A22: T1_1520 | B22: 13 | C22: 1 | D22: N886 | E22: 13 | F22: 13CW065 | G22: <2microns | I22: 21.296112 | J22: 0.002 | K22: 0.0469569281 | L22: 0.511613 | M22: 6e-06 | N22: -19.99461608 | O22: 246.2453898
A23: Neptune-2020-07-03 | B23: 68 | D23: N844 | E23: 12 | F23: 13CW072 | G23: <2microns | I23: 28.077 | J23: 0.002 | L23: 0.511716 | M23: 8e-06 | N23: -17.985401 | O23: 246.3055
A24: T1_1521 | B24: 13 | C24: 1 | D24: N886 | E24: 32 | F24: 13CW087 | G24: 2-20microns | I24: 23.791998 | J24: 0.002137 | K24: 0.0420309383 | L24: 0.511722 | M24: 1.2e-05 | N24: -17.86835935 | O24: 246.5536667
A25: T1_1520 | B25: 14 | C25: 1 | D25: N886 | E25: 14 | F25: 13CW087 | G25: <2microns | I25: 23.292489 | J25: 0.002277 | K25: 0.04293229461 | L25: 0.511758 | M25: 1.1e-05 | N25: -17.16610942 | O25: 246.5536667
A26: Neptune-2021-09-22 | B26: 10 | D26: N869 | E26: 6 | F26: 13CW059 | G26: Bulk | I26: 17.114 | J26: 0.001 | L26: 0.511841 | M26: 7e-06 | N26: -15.54703319 | O26: 247.212
A27: Neptune-2021-09-22 | B27: 11 | D27: N869 | E27: 7 | F27: 13CW099 | G27: Bulk | I27: 22.168 | J27: 0.001 | L27: 0.511955 | M27: 7e-06 | N27: -13.32324174 | O27: 248.077
A28: Neptune-2021-09-22 | B28: 12 | D28: N869 | E28: 8 | F28: 13CW102 | G28: Bulk | I28: 25.7 | J28: 0.001 | L28: 0.512071 | M28: 6e-06 | N28: -11.06043641 | O28: 249.025
A29: Neptune-2020-07-03 | B29: 64 | D29: N844 | E29: 8 | F29: 13CW103 | G29: Bulk | I29: 12.781 | J29: 0.001 | L29: 0.511865 | M29: 1.5e-05 | N29: -15.07886657 | O29: 249.325
A30: Neptune-2020-07-03 | B30: 76 | D30: N844 | E30: 18 | F30: 13CW103 | G30: <2microns | I30: 17.707 | J30: 0.002 | L30: 0.511904 | M30: 1.5e-05 | N30: -14.31809581 | O30: 249.325
A31: Neptune-2021-09-22 | B31: 13 | D31: N869 | E31: 9 | F31: 13CW108 | G31: Bulk | I31: 14.68 | J31: 0.001 | L31: 0.511837 | M31: 8e-06 | N31: -15.62506096 | O31: 250.525
A32: Neptune-2021-09-22 | B32: 14 | D32: N869 | E32: 10 | F32: 13CW116 | G32: Bulk | I32: 17.325 | J32: 0.001 | L32: 0.51178 | M32: 8e-06 | N32: -16.73695668 | O32: 251.675
A33: Neptune-2020-07-03 | B33: 69 | D33: N844 | E33: 13 | F33: 13CW113 | G33: <2microns | I33: 18.976 | J33: 0.002 | L33: 0.511823 | M33: 1.8e-05 | N33: -15.89815815 | O33: 252.585
A34: Neptune-2020-07-03 | B34: 57 | D34: N844 | E34: 3 | F34: 13CW113 | G34: Bulk | I34: 11.185 | J34: 0 | L34: 0.511742 | M34: 7e-06 | N34: -17.4782205 | O34: 252.585
A35: Neptune-2020-07-03 | B35: 61 | D35: N844 | E35: 4 | F35: 13CW121 | G35: Bulk | I35: 14.649 | J35: 0.001 | L35: 0.511754 | M35: 9e-06 | N35: -17.24413719 | O35: 254.085
A36: Neptune-2020-07-03 | B36: 70 | D36: N844 | E36: 14 | F36: 13CW121 | G36: <2microns | I36: 21.902 | J36: 0.003 | L36: 0.511723 | M36: 2e-05 | N36: -17.84885241 | O36: 254.085
A37: Neptune-2021-09-22 | B37: 17 | D37: N869 | E37: 11 | F37: 13CW127 | G37: Bulk | I37: 15.248 | J37: 0.001 | L37: 0.511798 | M37: 9e-06 | N37: -16.38583172 | O37: 256.5207032
A38: T1_1521 | B38: 14 | C38: 1 | D38: N886 | E38: 33 | F38: 13CW129 | G38: 2-20microns | I38: 17.838071 | J38: 0.002526 | K38: 0.05605987329 | L38: 0.511775 | M38: 1.7e-05 | N38: -16.8344914 | O38: 257.1207014
A39: T1_1520 | B39: 15 | C39: 1 | D39: N886 | E39: 15 | F39: 13CW129 | G39: <2microns | I39: 14.881313 | J39: 0.001107 | K39: 0.06719837154 | L39: 0.511801 | M39: 1e-05 | N39: -16.32731089 | O39: 257.1207014
A40: Neptune-2020-07-03 | B40: 62 | D40: N844 | E40: 6 | F40: 13CW133 | G40: Bulk | I40: 12.447 | J40: 0.001 | L40: 0.511672 | M40: 1.2e-05 | N40: -18.84370648 | O40: 258.675
A41: Neptune-2020-07-03 | B41: 74 | D41: N844 | E41: 16 | F41: 13CW133 | G41: <2microns | I41: 18.425 | J41: 0.002 | L41: 0.511684 | M41: 1.4e-05 | N41: -18.60962316 | O41: 258.675
A42: Neptune-2020-07-03 | B42: 63 | D42: N844 | E42: 7 | F42: 13CW136 | G42: Bulk | I42: 14.888 | J42: 0.001 | L42: 0.511668 | M42: 1.2e-05 | N42: -18.92173425 | O42: 260.6172727
A43: Neptune-2020-07-03 | B43: 75 | D43: N844 | E43: 17 | F43: 13CW136 | G43: <2microns | I43: 24.988 | J43: 0.002 | L43: 0.511719 | M43: 1e-05 | N43: -17.92688018 | O43: 260.6172727
A44: T1_1520 | B44: 16 | C44: 1 | D44: N886 | E44: 16 | F44: 13CW138 | G44: <2microns | I44: 18.585418 | J44: 0.001538 | K44: 0.05380562331 | L44: 0.511793 | M44: 1e-05 | N44: -16.48336643 | O44: 261.7739453
A45: T1_1520 | B45: 17 | C45: 1 | D45: N886 | E45: 17 | F45: 13CW140 | G45: <2microns | I45: 16.968436 | J45: 0.000604 | K45: 0.05893295057 | L45: 0.511655 | M45: 5e-06 | N45: -19.1753245 | O45: 262.3276563
A46: Neptune-2020-07-03 | B46: 65 | D46: N844 | E46: 9 | F46: 13CW154 | G46: Bulk | I46: 31.129 | J46: 0.002 | L46: 0.511716 | M46: 7e-06 | N46: -17.985401 | O46: 263.085
A47: Neptune-2020-07-03 | B47: 77 | D47: N844 | E47: 19 | F47: 13CW154 | G47: <2microns | I47: 24.707 | J47: 0.002 | L47: 0.511578 | M47: 1e-05 | N47: -20.67735907 | O47: 263.085
A48: T1_1520 | B48: 18 | C48: 1 | D48: N886 | E48: 18 | F48: 13CW157 | G48: <2microns | I48: 21.419054 | J48: 0.001159 | K48: 0.04668740272 | L48: 0.511577 | M48: 8e-06 | N48: -20.69686601 | O48: 263.93
A49: T1_1521 | B49: 7 | C49: 1 | D49: N886 | E49: 26 | F49: 13CW160 | G49: <2microns | I49: 17.782235 | J49: 0.001432 | K49: 0.05623590061 | L49: 0.511633 | M49: 9e-06 | N49: -19.60447723 | O49: 264.575
A50: T1_1521 | B50: 15 | C50: 1 | D50: N886 | E50: 34 | F50: 13CW163 | G50: 2-20microns | I50: 24.864798 | J50: 0.003831 | K50: 0.04021749945 | L50: 0.511599 | M50: 1.1e-05 | N50: -20.26771328 | O50: 265.475
A51: T1_1521 | B51: 8 | C51: 1 | D51: N886 | E51: 27 | F51: 13CW163 | G51: <2microns | I51: 20.535969 | J51: 0.001936 | K51: 0.04869504819 | L51: 0.511638 | M51: 8e-06 | N51: -19.50694252 | O51: 265.475
A52: Neptune-2021-09-22 | B52: 18 | D52: N869 | E52: 12 | F52: 13CW165 | G52: Bulk | I52: 17.78 | J52: 0.001 | L52: 0.511439 | M52: 8e-06 | N52: -23.38882408 | O52: 266.115
A53: T1_1520 | B53: 19 | C53: 1 | D53: N886 | E53: 19 | F53: 13CW167 | G53: <2microns | I53: 21.172363 | J53: 0.001344 | K53: 0.04723138367 | L53: 0.51159 | M53: 7e-06 | N53: -20.44327576 | O53: 266.675
A54: T1_1522 | B54: 2 | C54: 2 | D54: N886 | E54: 28 | F54: 13CW169 | G54: <2microns | I54: 20.682173 | J54: 0.001819 | K54: 0.04835081884 | L54: 0.511792 | M54: 8e-06 | N54: -16.50287337 | O54: 267.275
A55: T1_1521 | B55: 10 | C55: 1 | D55: N886 | E55: 29 | F55: 13CW172 | G55: <2microns | I55: 20.791042 | J55: 0.00324 | K55: 0.04809763743 | L55: 0.511783 | M55: 1.4e-05 | N55: -16.67843586 | O55: 268.175
A56: T1_1522 | B56: 1 | C56: 2 | D56: N886 | E56: 20 | F56: 13CW174 | G56: <2microns | I56: 19.94767 | J56: 0.001476 | K56: 0.0501311682 | L56: 0.51177 | M56: 5e-06 | N56: -16.93202611 | O56: 268.775
A57: T1_1521 | B57: 2 | C57: 1 | D57: N886 | E57: 21 | F57: 13CW176 | G57: <2microns | I57: 18.324319 | J57: 0.000918 | K57: 0.05457228724 | L57: 0.511737 | M57: 9e-06 | N57: -17.57575521 | O57: 269.375
A58: T1_1521 | B58: 3 | C58: 1 | D58: N886 | E58: 22 | F58: 13CW178 | G58: <2microns | I58: 16.964646 | J58: 0.001573 | K58: 0.05894611653 | L58: 0.511761 | M58: 9e-06 | N58: -17.10758859 | O58: 269.945
A59: Neptune-2020-07-03 | B59: 78 | D59: N844 | E59: 20 | F59: 13CW179 | G59: <2microns | I59: 21.253 | J59: 0.002 | L59: 0.511666 | M59: 9e-06 | N59: -18.96074813 | O59: 270.275
A60: Neptune-2020-07-03 | B60: 66 | D60: N844 | E60: 10 | F60: 13CW179 | G60: Bulk | I60: 23.716 | J60: 0.003 | L60: 0.511778 | M60: 1.6e-05 | N60: -16.77597057 | O60: 270.275
A61: T1_1521 | B61: 4 | C61: 1 | D61: N886 | E61: 23 | F61: 13CW182 | G61: <2microns | I61: 17.620192 | J61: 0.000855 | K61: 0.05675307057 | L61: 0.511714 | M61: 5e-06 | N61: -18.02441489 | O61: 277.725
A62: Neptune-2021-09-22 | B62: 19 | D62: N869 | E62: 13 | F62: 13CW189 | G62: Bulk | I62: 12.071 | J62: 0 | L62: 0.511666 | M62: 6e-06 | N62: -18.96074813 | O62: 279.825
A63: T1_1521 | B63: 5 | C63: 1 | D63: N886 | E63: 24 | F63: 13CW193 | G63: <2microns | I63: 15.873253 | J63: 0.001943 | K63: 0.06299905886 | L63: 0.511709 | M63: 1.4e-05 | N63: -18.1219496 | O63: 281.025
A64: T1_1521 | B64: 6 | C64: 1 | D64: N886 | E64: 25 | F64: 13CW199 | G64: <2microns | I64: 15.092356 | J64: 0.001993 | K64: 0.06625870739 | L64: 0.511662 | M64: 1.4e-05 | N64: -19.0387759 | O64: 283.11
A65: T1_1521 | B65: 16 | C65: 1 | D65: N886 | E65: 35 | F65: 13CW199 | G65: 2-20microns | I65: 19.765128 | J65: 0.002396 | K65: 0.05059415755 | L65: 0.51161 | M65: 1.7e-05 | N65: -20.05313691 | O65: 283.11
A66: Neptune-2021-09-22 | B66: 20 | D66: N869 | E66: 14 | F66: 13CW204 | G66: Bulk | I66: 12.692 | J66: 0 | L66: 0.511593 | M66: 6e-06 | N66: -20.38475493 | O66: 287.055
A67: T1_1521 | B67: 11 | C67: 1 | D67: N886 | E67: 30 | F67: 13CW213 | G67: <2microns | I67: 22.484876 | J67: 0.003279 | K67: 0.04447433911 | L67: 0.511642 | M67: 1.2e-05 | N67: -19.42891475 | O67: 289.725
A68: Neptune-2021-09-22 | B68: 21 | D68: N869 | E68: 15 | F68: 13CW329 | G68: Bulk | I68: 10.74 | J68: 0.001 | L68: 0.511617 | M68: 8e-06 | N68: -19.91658831 | O68: 345.425
A69: Neptune-2021-09-22 | B69: 22 | D69: N869 | E69: 16 | F69: 13CW367 | G69: Bulk | I69: 13.492 | J69: 0 | L69: 0.51167 | M69: 6e-06 | N69: -18.88272036 | O69: 379.825
A70: Neptune-2021-09-22 | B70: 23 | D70: N869 | E70: 17 | F70: 13CW396 | G70: Bulk | I70: 18.791 | J70: 0.001 | L70: 0.511569 | M70: 6e-06 | N70: -20.85292155 | O70: 415.825
A71: Neptune-2021-09-22 | B71: 24 | D71: N869 | E71: 18 | F71: 13CW409 | G71: Bulk | I71: 17.643 | J71: 0.001 | L71: 0.511547 | M71: 8e-06 | N71: -21.28207429 | O71: 431.025
A72: Neptune-2021-09-22 | B72: 25 | D72: N869 | E72: 19 | F72: 13CW419 | G72: Bulk | I72: 18.662 | J72: 0.001 | L72: 0.511539 | M72: 6e-06 | N72: -21.43812983 | O72: 442.265
A73: Neptune-2021-09-22 | B73: 26 | D73: N869 | E73: 20 | F73: 13CW433 | G73: Bulk | I73: 7.769 | J73: 0 | L73: 0.512341 | M73: 8e-06 | N73: -5.793561929 | O73: 459.825

Sheet Hg TOC
A1: Sample name | B1: Depth mid CSF-A (m) | C1: Depth_CCSF-M | D1: Site | E1: Hole | F1: Core | G1: Type | H1: Sect | I1: A/W | J1: Top offset (cm) | K1: Bottom offset (cm) | L1: Hg ng/g | M1: Hg ng/g Repeat 1 | N1: Hg ng/g Repeat 2 | O1: Hg ng /g Repeat 3 | P1: Average Hg ng/g | Q1: Standard Deviation | R1: Summary %TOC | S1: Hg/TOC
A2: 13CW009 | B2: 220.025 | C2: 220.025 | D2: U1513 | E2: D | F2: 15 | G2: R | H2: 1 | I2: W | J2: 20 | K2: 25 | L2: 0.7 | P2: 0.70 | R2: 0.202795 | S2: 3.451761631
A3: 13CW014 | B3: 223.225 | C3: 223.225 | D3: U1513 | E3: D | F3: 15 | G3: R | H3: 3 | I3: W | J3: 61 | K3: 66 | L3: 0.7 | P3: 0.70 | R3: 0.200436 | S3: 3.492386597
A4: 13CW015 | B4: 224.015 | C4: 224.015 | D4: U1513 | E4: D | F4: 15 | G4: R | H4: 3 | I4: W | J4: 140 | K4: 145 | L4: 0 | P4: 0.00 | R4: 0.219928 | S4: 0
A5: 13CW016 | B5: 224.825 | C5: 224.825 | D5: U1513 | E5: D | F5: 15 | G5: R | H5: 4 | I5: W | J5: 71 | K5: 76 | L5: 0.1 | P5: 0.10 | R5: 0.319661 | S5: 0.3128314058
A6: 13CW019 | B6: 227.225 | C6: 227.225 | D6: U1513 | E6: D | F6: 15 | G6: R | H6: 6 | I6: W | J6: 90 | K6: 95 | L6: 3.2 | P6: 3.20 | R6: 0.238292 | S6: 13.42890236
A7: 13CW028 | B7: 234.425 | C7: 234.425 | D7: U1513 | E7: D | F7: 17 | G7: R | H7: 1 | I7: W | J7: 20 | K7: 25 | L7: 52.8 | P7: 52.80 | R7: 0.692842 | S7: 76.20785114
A8: 13CW030 | B8: 236.025 | C8: 236.025 | D8: U1513 | E8: D | F8: 17 | G8: R | H8: 2 | I8: W | J8: 55 | K8: 60 | L8: 13.4 | P8: 13.40 | R8: 0.267097 | S8: 50.16903971
A9: 13CW033 | B9: 237.625 | C9: 237.625 | D9: U1513 | E9: A | F9: 43 | G9: X | H9: 1 | I9: W | J9: 61 | K9: 64 | L9: 1.7 | P9: 1.70 | R9: 0.266128 | S9: 6.387903565
A10: 13CW043 | B10: 242.415 | C10: 242.430182 | D10: U1513 | E10: D | F10: 18 | G10: R | H10: 3 | I10: W | J10: 53 | K10: 58 | L10: 20.1 | P10: 20.10 | R10: 0.204948 | S10: 98.07365771
A11: 13CW067 | B11: 246.275 | C11: 246.262339 | D11: U1513 | E11: D | F11: 19 | G11: R | H11: 2 | I11: W | J11: 97 | K11: 98 | L11: 148 | P11: 148.00 | R11: 14.9567 | S11: 9.8952309
A12: 13CW070 | B12: 246.305 | C12: 246.2877627 | D12: U1513 | E12: D | F12: 19 | G12: R | H12: 2 | I12: W | J12: 100 | K12: 101 | L12: 195.9 | M12: 258.00 | P12: 226.95 | Q12: 43.91133111 | R12: 14.5397 | S12: 15.60898781
A13: 13CW072 | B13: 246.325 | C13: 246.3055 | D13: U1513 | E13: D | F13: 19 | G13: R | H13: 2 | I13: W | J13: 102 | K13: 103 | L13: 145.5 | P13: 145.50 | R13: 13.445 | S13: 10.82186687
A14: 13CW075 | B14: 246.36 | C14: 246.337 | D14: U1513 | E14: D | F14: 19 | G14: R | H14: 2 | I14: W | J14: 105 | K14: 107 | L14: 55.6 | M14: 57.80 | P14: 56.70 | Q14: 1.555634919 | R14: 0.27987 | S14: 202.5940615
A15: 13CW076 | B15: 246.38 | C15: 246.355 | D15: U1513 | E15: D | F15: 19 | G15: R | H15: 2 | I15: W | J15: 107 | K15: 109 | L15: 68.5 | P15: 68.50 | R15: 0.982706 | S15: 69.70548669
A16: 13CW079 | B16: 246.42 | C16: 246.391 | D16: U1513 | E16: D | F16: 19 | G16: R | H16: 2 | I16: W | J16: 111 | K16: 113 | L16: 125.5 | P16: 125.50 | R16: 0.25524 | S16: 491.6940918
A17: 13CW080 | B17: 246.44 | C17: 246.409 | D17: U1513 | E17: D | F17: 19 | G17: R | H17: 2 | I17: W | J17: 113 | K17: 115 | L17: 13.8 | P17: 13.80 | R17: 0.269596 | S17: 51.18770308
A18: 13CW082 | B18: 246.48 | C18: 246.445 | D18: U1513 | E18: D | F18: 19 | G18: R | H18: 2 | I18: W | J18: 117 | K18: 119 | L18: 21.5 | P18: 21.50 | R18: 0.202176 | S18: 106.3429883
A19: 13CW084 | B19: 246.52 | C19: 246.4836667 | D19: U1513 | E19: D | F19: 19 | G19: R | H19: 2 | I19: W | J19: 121 | K19: 123 | L19: 467.3 | M19: 422.90 | P19: 445.10 | Q19: 31.39554108 | R19: 1.43062 | S19: 311.1238484
A20: 13CW090 | B20: 246.64 | C20: 246.6236667 | D20: U1513 | E20: D | F20: 19 | G20: R | H20: 2 | I20: W | J20: 133 | K20: 135 | L20: 70.5 | M20: 73.70 | P20: 72.10 | Q20: 2.2627417 | R20: 0.68422 | S20: 105.375464
A21: 13CW091 | B21: 246.66 | C21: 246.647 | D21: U1513 | E21: D | F21: 19 | G21: R | H21: 2 | I21: W | J21: 135 | K21: 137 | L21: 28.4 | P21: 28.40 | R21: 0.258247 | S21: 109.9722359
A22: 13CW093 | B22: 246.7 | C22: 246.6936667 | D22: U1513 | E22: D | F22: 19 | G22: R | H22: 2 | I22: W | J22: 139 | K22: 141 | L22: 27.8 | M22: 44.30 | P22: 36.05 | Q22: 11.66726189 | R22: 0.246846 | S22: 146.0424718
A23: 13CW097 | B23: 246.76 | C23: 246.7664444 | D23: U1513 | E23: D | F23: 19 | G23: R | H23: 2 | I23: W | J23: 145 | K23: 147 | L23: 19 | M23: 38.90 | P23: 28.95 | Q23: 14.07142495 | R23: 0.241607 | S23: 119.8226873
A24: 13CW098 | B24: 246.78 | C24: 246.7953333 | D24: U1513 | E24: D | F24: 19 | G24: R | H24: 2 | I24: W | J24: 147 | K24: 149 | L24: 29.2 | P24: 29.20 | R24: 0.243868 | S24: 119.7369069
A25: 13CW059 | B25: 246.08 | C25: 247.212 | D25: U1513 | E25: A | F25: 45 | G25: X | H25: 2 | I25: W | J25: 102 | K25: 108 | L25: 275.4 | P25: 275.40 | R25: 2.84498 | S25: 96.80208648
A26: 13CW078 | B26: 246.41 | C26: 247.542 | D26: U1513 | E26: A | F26: 45 | G26: X | H26: 2 | I26: W | J26: 135 | K26: 141 | L26: 90.6 | P26: 90.60 | R26: 0.872534 | S26: 103.8354952
A27: 13CW099 | B27: 246.945 | C27: 248.077 | D27: U1513 | E27: A | F27: 45 | G27: X | H27: 3 | I27: W | J27: 40 | K27: 45 | L27: 32.9 | P27: 32.90 | R27: 0.617631 | S27: 53.26805164
A28: 13CW101 | B28: 248.725 | C28: 248.725 | D28: U1513 | E28: D | F28: 20 | G28: R | H28: 1 | I28: W | J28: 10 | K28: 15 | L28: 69.5 | P28: 69.50 | R28: 0.3058 | S28: 227.2727273
A29: 13CW102 | B29: 249.025 | C29: 249.025 | D29: U1513 | E29: D | F29: 20 | G29: R | H29: 1 | I29: W | J29: 40 | K29: 45 | L29: 10.9 | P29: 10.90 | R29: 0.291993 | S29: 37.32966201
A30: 13CW104 | B30: 249.625 | C30: 249.625 | D30: U1513 | E30: D | F30: 20 | G30: R | H30: 1 | I30: W | J30: 100 | K30: 105 | L30: 15.8 | M30: 18.10 | P30: 16.95 | Q30: 1.626345597 | R30: 0.336524 | S30: 50.36787867
A31: 13CW105 | B31: 249.925 | C31: 249.925 | D31: U1513 | E31: D | F31: 20 | G31: R | H31: 1 | I31: W | J31: 130 | K31: 135 | L31: 12.8 | P31: 12.80 | R31: 0.412479 | S31: 31.03188284
A32: 13CW106 | B32: 250.225 | C32: 250.225 | D32: U1513 | E32: D | F32: 20 | G32: R | H32: 2 | I32: W | J32: 10 | K32: 15 | L32: 10.6 | M32: 14.50 | P32: 12.55 | Q32: 2.757716447 | R32: 0.228141 | S32: 55.00984041
A33: 13CW110 | B33: 250.825 | C33: 250.825 | D33: U1513 | E33: D | F33: 20 | G33: R | H33: 2 | I33: W | J33: 70 | K33: 75 | L33: 85.4 | M33: 96.90 | N33: 119.7 | P33: 100.67 | Q33: 17.45747213 | R33: 0.975233 | S33: 103.2231956
A34: 13CW112 | B34: 251.125 | C34: 251.125 | D34: U1513 | E34: D | F34: 20 | G34: R | H34: 2 | I34: W | J34: 100 | K34: 105 | L34: 12.4 | P34: 12.40 | R34: 0.314352 | S34: 39.44622589
A35: 13CW114 | B35: 251.375 | C35: 251.375 | D35: U1513 | E35: D | F35: 20 | G35: R | H35: 2 | I35: W | J35: 125 | K35: 130 | L35: 58.6 | P35: 58.60 | R35: 0.72369 | S35: 80.97389766
A36: 13CW116 | B36: 251.675 | C36: 251.675 | D36: U1513 | E36: D | F36: 20 | G36: R | H36: 3 | I36: W | J36: 5 | K36: 10 | L36: 36.4 | P36: 36.40 | R36: 0.521428 | S36: 69.80829568
A37: 13CW107 | B37: 250.365 | C37: 251.685 | D37: U1513 | E37: A | F37: 46 | G37: X | H37: 1 | I37: W | J37: 104 | K37: 109 | L37: 24.3 | P37: 24.30 | R37: 0.364589 | S37: 66.65039263
A38: 13CW109 | B38: 250.665 | C38: 251.985 | D38: U1513 | E38: A | F38: 46 | G38: X | H38: 1 | I38: W | J38: 131 | K38: 136 | L38: 86.8 | M38: 120.50 | N38: 132.5 | O38: 121.7 | P38: 115.38 | Q38: 19.79955808 | R38: 0.765489 | S38: 150.7206505
A39: 13CW111 | B39: 250.965 | C39: 252.285 | D39: U1513 | E39: A | F39: 46 | G39: X | H39: 2 | I39: W | J39: 14 | K39: 19 | L39: 62.5 | M39: 197.90 | P39: 130.20 | Q39: 95.74225817 | R39: 0.529926 | S39: 245.6946819
A40: 13CW113 | B40: 251.265 | C40: 252.585 | D40: U1513 | E40: A | F40: 46 | G40: X | H40: 2 | I40: W | J40: 44 | K40: 49 | L40: 38.6 | P40: 38.60 | R40: 0.315889 | S40: 122.1948216
A41: 13CW115 | B41: 251.565 | C41: 252.885 | D41: U1513 | E41: A | F41: 46 | G41: X | H41: 2 | I41: W | J41: 74 | K41: 79 | L41: 228.7 | M41: 234.90 | P41: 231.80 | Q41: 4.384062043 | R41: 0.747891 | S41: 309.9382129
A42: 13CW117 | B42: 251.865 | C42: 253.185 | D42: U1513 | E42: A | F42: 46 | G42: X | H42: 2 | I42: W | J42: 104 | K42: 109 | L42: 83.1 | P42: 83.10 | R42: 0.290029 | S42: 286.5230718
A43: 13CW118 | B43: 252.125 | C43: 253.445 | D43: U1513 | E43: A | F43: 46 | G43: X | H43: 2 | I43: W | J43: 130 | K43: 135 | L43: 133 | P43: 133.00 | R43: 0.756665 | S43: 175.7713123
A44: 13CW120 | B44: 252.445 | C44: 253.765 | D44: U1513 | E44: A | F44: 46 | G44: X | H44: 3 | I44: W | J44: 11 | K44: 16 | L44: 18.1 | M44: 30.60 | P44: 24.35 | Q44: 8.838834765 | R44: 0.243841 | S44: 99.86015477
A45: 13CW121 | B45: 252.765 | C45: 254.085 | D45: U1513 | E45: A | F45: 46 | G45: X | H45: 3 | I45: W | J45: 43 | K45: 48 | L45: 103.3 | M45: 183.00 | P45: 143.15 | Q45: 56.35641046 | R45: 0.683294 | S45: 209.4998639
A46: 13CW122 | B46: 253.045 | C46: 254.365 | D46: U1513 | E46: A | F46: 46 | G46: X | H46: 3 | I46: W | J46: 71 | K46: 76 | L46: 79 | P46: 79.00 | R46: 0.51058 | S46: 154.7259979
A47: 13CW123 | B47: 254.175 | C47: 255.3207068 | D47: U1513 | E47: A | F47: 47 | G47: X | H47: 1 | I47: W | J47: 5 | K47: 10 | L47: 45.6 | P47: 45.60 | R47: 0.301923 | S47: 151.0318856
A48: 13CW124 | B48: 254.475 | C48: 255.6207059 | D48: U1513 | E48: A | F48: 47 | G48: X | H48: 1 | I48: W | J48: 35 | K48: 40 | L48: 13 | M48: 13.40 | P48: 13.20 | Q48: 0.2828427125 | R48: 0.259933 | S48: 50.78231698
A49: 13CW125 | B49: 254.775 | C49: 255.920705 | D49: U1513 | E49: A | F49: 47 | G49: X | H49: 1 | I49: W | J49: 65 | K49: 70 | L49: 16 | P49: 16.00 | R49: 0.231098 | S49: 69.23469697
A50: 13CW126 | B50: 255.075 | C50: 256.2207041 | D50: U1513 | E50: A | F50: 47 | G50: X | H50: 1 | I50: W | J50: 95 | K50: 100 | L50: 134.4 | P50: 134.40 | R50: 0.485517 | S50: 276.8183194
A51: 13CW127 | B51: 255.375 | C51: 256.5207032 | D51: U1513 | E51: A | F51: 47 | G51: X | H51: 1 | I51: W | J51: 125 | K51: 130 | L51: 36.5 | P51: 36.50 | R51: 0.30697 | S51: 118.9041274
A52: 13CW128 | B52: 255.675 | C52: 256.8207023 | D52: U1513 | E52: A | F52: 47 | G52: X | H52: 2 | I52: W | J52: 5 | K52: 10 | L52: 24.4 | P52: 24.40 | R52: 0.247246 | S52: 98.68713751
A53: 13CW129 | B53: 255.975 | C53: 257.1207014 | D53: U1513 | E53: A | F53: 47 | G53: X | H53: 2 | I53: W | J53: 35 | K53: 40 | L53: 21.1 | P53: 21.10 | R53: 0.32271 | S53: 65.3837811
A54: 13CW130 | B54: 256.275 | C54: 257.4207005 | D54: U1513 | E54: A | F54: 47 | G54: X | H54: 2 | I54: W | J54: 65 | K54: 70 | L54: 60 | P54: 60.00 | R54: 0.300953 | S54: 199.3666785
A55: 13CW132 | B55: 256.875 | C55: 258.415 | D55: U1513 | E55: A | F55: 47 | G55: X | H55: 2 | I55: W | J55: 125 | K55: 130 | L55: 6.8 | P55: 6.80 | R55: 0.216528 | S55: 31.4047144
A56: 13CW133 | B56: 257.135 | C56: 258.675 | D56: U1513 | E56: A | F56: 47 | G56: X | H56: 3 | I56: W | J56: 0 | K56: 5 | L56: 38.4 | P56: 38.40 | R56: 0.528669 | S56: 72.63524058
A57: 13CW139 | B57: 258.855 | C57: 258.855 | D57: U1513 | E57: D | F57: 21 | G57: R | H57: 1 | I57: W | J57: 63 | K57: 68 | L57: 25.1 | P57: 25.10 | R57: 0.662799 | S57: 37.86970107
A58: 13CW134 | B58: 257.475 | C58: 259.015 | D58: U1513 | E58: A | F58: 47 | G58: X | H58: 3 | I58: W | J58: 34 | K58: 39 | L58: 50.7 | M58: 55.90 | P58: 53.30 | Q58: 3.676955262 | R58: 0.411835 | S58: 129.4207632
A59: 13CW141 | B59: 259.155 | C59: 259.155 | D59: U1513 | E59: D | F59: 21 | G59: R | H59: 1 | I59: W | J59: 93 | K59: 98 | L59: 15.5 | P59: 15.50 | R59: 0.24347 | S59: 63.66287428
A60: 13CW142 | B60: 259.455 | C60: 259.455 | D60: U1513 | E60: D | F60: 21 | G60: R | H60: 1 | I60: W | J60: 123 | K60: 128 | L60: 23.5 | P60: 23.50 | R60: 0.23748 | S60: 98.95570153
A61: 13CW143 | B61: 259.755 | C61: 259.755 | D61: U1513 | E61: D | F61: 21 | G61: R | H61: 2 | I61: W | J61: 3 | K61: 8 | L61: 24.3 | P61: 24.30 | R61: 0.273174 | S61: 88.95429287
A62: 13CW144 | B62: 260.055 | C62: 260.055 | D62: U1513 | E62: D | F62: 21 | G62: R | H62: 2 | I62: W | J62: 33 | K62: 38 | L62: 31.1 | P62: 31.10 | R62: 0.205082 | S62: 151.6466584
A63: 13CW135 | B63: 257.805 | C63: 260.2846667 | D63: U1513 | E63: A | F63: 47 | G63: X | H63: 3 | I63: W | J63: 68 | K63: 71 | L63: 79.6 | M63: 98.40 | N63: 103.3 | P63: 93.77 | Q63: 12.51092856 | R63: 0.283884 | S63: 330.2992302
A64: 13CW145 | B64: 260.355 | C64: 260.355 | D64: U1513 | E64: D | F64: 21 | G64: R | H64: 2 | I64: W | J64: 63 | K64: 68 | L64: 47.9 | M64: 115.50 | P64: 81.70 | Q64: 47.80041841 | R64: 0.860708 | S64: 94.92185503
A65: 13CW136 | B65: 258.015 | C65: 260.6172727 | D65: U1513 | E65: A | F65: 47 | G65: X | H65: 3 | I65: W | J65: 89 | K65: 92 | L65: 50.9 | P65: 50.90 | R65: 0.544255 | S65: 93.52233787
A66: 13CW146 | B66: 260.625 | C66: 260.625 | D66: U1513 | E66: D | F66: 21 | G66: R | H66: 2 | I66: W | J66: 90 | K66: 95 | L66: 65.7 | P66: 65.70 | R66: 0.524595 | S66: 125.2394704
A67: 13CW147 | B67: 260.955 | C67: 260.955 | D67: U1513 | E67: D | F67: 21 | G67: R | H67: 2 | I67: W | J67: 123 | K67: 128 | L67: 13.1 | P67: 13.10 | R67: 0.264858 | S67: 49.46046561
A68: 13CW137 | B68: 258.4 | C68: 261.3421094 | D68: U1513 | E68: A | F68: 47 | G68: X | H68: 3 | I68: W | J68: 127 | K68: 131 | L68: 49.1 | P68: 49.10 | R68: 0.558886 | S68: 87.85333682
A69: 13CW149 | B69: 261.49 | C69: 261.49 | D69: U1513 | E69: D | F69: 21 | G69: R | H69: 3 | I69: W | J69: 27 | K69: 31 | L69: 57.8 | P69: 57.80 | R69: 0.790257 | S69: 73.14076307
A70: 13CW150 | B70: 261.855 | C70: 261.855 | D70: U1513 | E70: D | F70: 21 | G70: R | H70: 3 | I70: W | J70: 63 | K70: 68 | L70: 18.9 | M70: 20.80 | P70: 19.85 | Q70: 1.343502884 | R70: 0.419642 | S70: 47.30222428
A71: 13CW140 | B71: 259.025 | C71: 262.3276563 | D71: U1513 | E71: A | F71: 47 | G71: X | H71: 4 | I71: W | J71: 39 | K71: 42 | L71: 27.5 | P71: 27.50 | R71: 0.741373 | S71: 37.09333898
A72: 13CW153 | B72: 262.755 | C72: 262.755 | D72: U1513 | E72: D | F72: 21 | G72: R | H72: 4 | I72: W | J72: 3 | K72: 8 | L72: 8.7 | M72: 9.00 | P72: 8.85 | Q72: 0.2121320344 | R72: 0.400455 | S72: 22.09986141
A73: 13CW154 | B73: 263.085 | C73: 263.085 | D73: U1513 | E73: D | F73: 21 | G73: R | H73: 4 | I73: W | J73: 36 | K73: 41 | L73: 117.6 | P73: 117.60 | R73: 1.05339 | S73: 111.6395637
A74: 13CW155 | B74: 263.355 | C74: 263.355 | D74: U1513 | E74: D | F74: 21 | G74: R | H74: 4 | I74: W | J74: 63 | K74: 68 | L74: 33.9 | P74: 33.90 | R74: 0.622063 | S74: 54.49608802
A75: 13CW156 | B75: 263.705 | C75: 263.705 | D75: U1513 | E75: D | F75: 21 | G75: R | H75: 4 | I75: W | J75: 98 | K75: 103 | L75: 77.1 | P75: 77.10 | R75: 0.878419 | S75: 87.77132553
A76: 13CW157 | B76: 263.81 | C76: 263.93 | D76: U1513 | E76: A | F76: 48 | G76: X | H76: 1 | I76: W | J76: 9 | K76: 13 | L76: 78.7 | P76: 78.70 | R76: 1.11298 | S76: 70.71106399
A77: 13CW158 | B77: 264.155 | C77: 264.275 | D77: U1513 | E77: A | F77: 48 | G77: X | H77: 1 | I77: W | J77: 43 | K77: 48 | L77: 17.2 | P77: 17.20 | R77: 0.566974 | S77: 30.33648809
A78: 13CW160 | B78: 264.455 | C78: 264.575 | D78: U1513 | E78: A | F78: 48 | G78: X | H78: 1 | I78: W | J78: 73 | K78: 78 | L78: 15.4 | M78: 15.20 | P78: 15.30 | Q78: 0.1414213562 | R78: 0.554409 | S78: 27.59695459
A79: 13CW161 | B79: 264.755 | C79: 264.875 | D79: U1513 | E79: A | F79: 48 | G79: X | H79: 1 | I79: W | J79: 103 | K79: 108 | L79: 17.4 | P79: 17.40 | R79: 0.717213 | S79: 24.26057531
A80: 13CW162 | B80: 265.055 | C80: 265.175 | D80: U1513 | E80: A | F80: 48 | G80: X | H80: 1 | I80: W | J80: 133 | K80: 138 | L80: 23.9 | P80: 23.90 | R80: 0.46962 | S80: 50.89221072
A81: 13CW163 | B81: 265.355 | C81: 265.475 | D81: U1513 | E81: A | F81: 48 | G81: X | H81: 2 | I81: W | J81: 18 | K81: 23 | L81: 20.9 | P81: 20.90 | R81: 0.506782 | S81: 41.24061233
A82: 13CW164 | B82: 265.655 | C82: 265.775 | D82: U1513 | E82: A | F82: 48 | G82: X | H82: 2 | I82: W | J82: 48 | K82: 53 | L82: 11.3 | M82: 22.30 | P82: 16.80 | Q82: 7.778174593 | R82: 0.242173 | S82: 69.3718953
A83: 13CW165 | B83: 265.995 | C83: 266.115 | D83: U1513 | E83: A | F83: 48 | G83: X | H83: 2 | I83: W | J83: 82 | K83: 87 | L83: 35.4 | P83: 35.40 | R83: 0.404065 | S83: 87.60966676
A84: 13CW166 | B84: 266.255 | C84: 266.375 | D84: U1513 | E84: A | F84: 48 | G84: X | H84: 2 | I84: W | J84: 108 | K84: 113 | L84: 67.5 | P84: 67.50 | R84: 0.965088 | S84: 69.94180842
A85: 13CW167 | B85: 266.555 | C85: 266.675 | D85: U1513 | E85: A | F85: 48 | G85: X | H85: 2 | I85: W | J85: 138 | K85: 143 | L85: 12.2 | P85: 12.20 | R85: 0.315343 | S85: 38.68803176
A86: 13CW168 | B86: 266.895 | C86: 267.015 | D86: U1513 | E86: A | F86: 48 | G86: X | H86: 3 | I86: W | J86: 23 | K86: 26 | L86: 24.8 | P86: 24.80 | R86: 0.392312 | S86: 63.21499215
A87: 13CW169 | B87: 267.155 | C87: 267.275 | D87: U1513 | E87: A | F87: 48 | G87: X | H87: 3 | I87: W | J87: 48 | K87: 53 | L87: 26 | P87: 26.00 | R87: 0.565303 | S87: 45.99303382
A88: 13CW170 | B88: 267.425 | C88: 267.545 | D88: U1513 | E88: A | F88: 48 | G88: X | H88: 3 | I88: W | J88: 75 | K88: 80 | L88: 42.2 | P88: 42.20 | R88: 0.695726 | S88: 60.65606288
A89: 13CW171 | B89: 267.755 | C89: 267.875 | D89: U1513 | E89: A | F89: 48 | G89: X | H89: 3 | I89: W | J89: 108 | K89: 113 | L89: 62.9 | M89: 228.70 | N89: 238.5 | P89: 176.70 | Q89: 98.67542754 | R89: 0.573174 | S89: 308.2833485
A90: 13CW172 | B90: 268.055 | C90: 268.175 | D90: U1513 | E90: A | F90: 48 | G90: X | H90: 3 | I90: W | J90: 138 | K90: 143 | L90: 106.9 | M90: 106.30 | P90: 106.60 | Q90: 0.4242640687 | R90: 1.15267 | S90: 92.48093557
A91: 13CW173 | B91: 268.355 | C91: 268.475 | D91: U1513 | E91: A | F91: 48 | G91: X | H91: 4 | I91: W | J91: 18 | K91: 23 | L91: 29.2 | M91: 31.50 | P91: 30.35 | Q91: 1.626345597 | R91: 0.477183 | S91: 63.60243345
A92: 13CW174 | B92: 268.655 | C92: 268.775 | D92: U1513 | E92: A | F92: 48 | G92: X | H92: 4 | I92: W | J92: 48 | K92: 53 | L92: 69.1 | P92: 69.10 | R92: 0.693099 | S92: 99.69715726
A93: 13CW175 | B93: 268.955 | C93: 269.075 | D93: U1513 | E93: A | F93: 48 | G93: X | H93: 4 | I93: W | J93: 78 | K93: 83 | L93: 35.4 | P93: 35.40 | R93: 0.660525 | S93: 53.59373226
A94: 13CW176 | B94: 269.255 | C94: 269.375 | D94: U1513 | E94: A | F94: 48 | G94: X | H94: 4 | I94: W | J94: 108 | K94: 113 | L94: 29.3 | P94: 29.30 | R94: 0.785535 | S94: 37.29942014
A95: 13CW177 | B95: 269.53 | C95: 269.65 | D95: U1513 | E95: A | F95: 48 | G95: X | H95: 4 | I95: W | J95: 135 | K95: 141 | L95: 54.1 | P95: 54.10 | R95: 0.651619 | S95: 83.02397567
A96: 13CW178 | B96: 269.825 | C96: 269.945 | D96: U1513 | E96: A | F96: 48 | G96: X | H96: 5 | I96: W | J96: 15 | K96: 20 | L96: 78.1 | P96: 78.10 | R96: 1.07869 | S96: 72.40263653
A97: 13CW179 | B97: 270.155 | C97: 270.275 | D97: U1513 | E97: A | F97: 48 | G97: X | H97: 5 | I97: W | J97: 48 | K97: 53 | L97: 205.4 | P97: 205.40 | R97: 1.8519 | S97: 110.9131163
A98: 13CW182 | B98: 277.725 | C98: 277.725 | D98: U1513 | E98: D | F98: 23 | G98: R | H98: 1 | I98: W | J98: 30 | K98: 35 | L98: 71.3 | P98: 71.30 | R98: 1.06573 | S98: 66.90249876
A99: 13CW183 | B99: 278.025 | C99: 278.025 | D99: U1513 | E99: D | F99: 23 | G99: R | H99: 1 | I99: W | J99: 60 | K99: 65 | L99: 82 | M99: 89.40 | N99: 137.5 | O99: 94.3 | P99: 100.80 | Q99: 24.98359462 | R99: 1.31636 | S99: 76.57479717
A100: 13CW184 | B100: 278.325 | C100: 278.325 | D100: U1513 | E100: D | F100: 23 | G100: R | H100: 1 | I100: W | J100: 90 | K100: 95 | L100: 80.6 | P100: 80.60 | R100: 1.11866 | S100: 72.05048898
A101: 13CW185 | B101: 278.625 | C101: 278.625 | D101: U1513 | E101: D | F101: 23 | G101: R | H101: 1 | I101: W | J101: 120 | K101: 125 | L101: 72.2 | P101: 72.20 | R101: 1.2981 | S101: 55.61975195
A102: 13CW186 | B102: 278.925 | C102: 278.925 | D102: U1513 | E102: D | F102: 23 | G102: R | H102: 2 | I102: W | J102: 0 | K102: 5 | L102: 51.8 | P102: 51.80 | R102: 1.23165 | S102: 42.05740267
A103: 13CW187 | B103: 279.225 | C103: 279.225 | D103: U1513 | E103: D | F103: 23 | G103: R | H103: 2 | I103: W | J103: 30 | K103: 35 | L103: 76.4 | P103: 76.40 | R103: 1.28826 | S103: 59.30479872
A104: 13CW188 | B104: 279.525 | C104: 279.525 | D104: U1513 | E104: D | F104: 23 | G104: R | H104: 2 | I104: W | J104: 60 | K104: 65 | L104: 77.1 | P104: 77.10 | R104: 1.20734 | S104: 63.85939338
A105: 13CW189 | B105: 279.825 | C105: 279.825 | D105: U1513 | E105: D | F105: 23 | G105: R | H105: 2 | I105: W | J105: 90 | K105: 95 | L105: 67.7 | P105: 67.70 | R105: 1.29994 | S105: 52.07932674
A106: 13CW190 | B106: 280.125 | C106: 280.125 | D106: U1513 | E106: D | F106: 23 | G106: R | H106: 2 | I106: W | J106: 120 | K106: 125 | L106: 78.5 | P106: 78.50 | R106: 1.27288 | S106: 61.67117089
A107: 13CW192 | B107: 280.725 | C107: 280.725 | D107: U1513 | E107: D | F107: 23 | G107: R | H107: 3 | I107: W | J107: 30 | K107: 35 | L107: 72.5 | P107: 72.50 | R107: 1.26913 | S107: 57.12574756
A108: 13CW193 | B108: 281.025 | C108: 281.025 | D108: U1513 | E108: D | F108: 23 | G108: R | H108: 3 | I108: W | J108: 60 | K108: 65 | L108: 91.3 | P108: 91.30 | R108: 1.36389 | S108: 66.94088233
A109: 13CW194 | B109: 281.325 | C109: 281.325 | D109: U1513 | E109: D | F109: 23 | G109: R | H109: 3 | I109: W | J109: 90 | K109: 95 | L109: 105.6 | M109: 103.80 | P109: 104.70 | Q109: 1.272792206 | R109: 1.27935 | S109: 81.83843358
A110: 13CW195 | B110: 281.625 | C110: 281.625 | D110: U1513 | E110: D | F110: 23 | G110: R | H110: 3 | I110: W | J110: 120 | K110: 125 | L110: 68.2 | P110: 68.20 | R110: 1.09782 | S110: 62.12311672
A111: 13CW196 | B111: 282.195 | C111: 282.195 | D111: U1513 | E111: D | F111: 23 | G111: R | H111: 4 | I111: W | J111: 26 | K111: 31 | L111: 60.7 | P111: 60.70 | R111: 0.925125 | S111: 65.61275503
A112: 13CW198 | B112: 282.825 | C112: 282.825 | D112: U1513 | E112: D | F112: 23 | G112: R | H112: 4 | I112: W | J112: 89 | K112: 94 | L112: 85.5 | P112: 85.50 | R112: 1.42809 | S112: 59.87017625
A113: 13CW199 | B113: 283.11 | C113: 283.11 | D113: U1513 | E113: D | F113: 23 | G113: R | H113: 4 | I113: W | J113: 119 | K113: 121 | L113: 107.1 | P113: 107.10 | R113: 1.64652 | S113: 65.04627943
A114: 13CW200 | B114: 283.725 | C114: 283.725 | D114: U1513 | E114: D | F114: 23 | G114: R | H114: 5 | I114: W | J114: 29 | K114: 34 | L114: 149.1 | P114: 149.10 | R114: 1.06613 | S114: 139.8516128
A115: 13CW201 | B115: 284.015 | C115: 284.015 | D115: U1513 | E115: D | F115: 23 | G115: R | H115: 5 | I115: W | J115: 58 | K115: 63 | L115: 112.8 | P115: 112.80 | R115: 1.30279 | S115: 86.58340945
A116: 16CW003 | B116: 455.875 | C116: 455.875 | D116: U1516 | E116: C | F116: 29 | G116: R | H116: 1 | I116: W | J116: 65 | K116: 70 | L116: 4.5 | P116: 4.50 | R116: 0.292157 | S116: 15.40267733
A117: 16CW010 | B117: 457.525 | C117: 457.525 | D117: U1516 | E117: C | F117: 29 | G117: R | H117: 3 | I117: W | J117: 35 | K117: 40 | L117: 9.3 | P117: 9.30 | R117: 0.254351 | S117: 36.5636463
A118: 16CW020 | B118: 459.975 | C118: 460.583 | D118: U1516 | E118: D | F118: 2 | G118: R | H118: 3 | I118: W | J118: 6 | K118: 11 | L118: 4 | P118: 4.00 | R118: 0.219925 | S118: 18.18801864
A119: 16CW048 | B119: 467.445 | C119: 467.269 | D119: U1516 | E119: C | F119: 31 | G119: R | H119: 3 | I119: W | J119: 26 | K119: 31 | L119: 75.7 | M119: 78.30 | P119: 77.00 | Q119: 1.838477631 | R119: 0.200906 | S119: 383.2638149
A120: 16CW058 | B120: 469.74 | C120: 469.718 | D120: U1516 | E120: D | F120: 4 | G120: R | H120: 3 | I120: A | J120: 30 | K120: 32 | L120: 22.4 | P120: 22.40 | R120: 0.314859 | S120: 71.14295605
A121: 16CW063 | B121: 469.84 | C121: 469.818 | D121: U1516 | E121: D | F121: 4 | G121: R | H121: 3 | I121: A | J121: 40 | K121: 42 | L121: 13.6 | P121: 13.60 | R121: 0.215663 | S121: 63.06135035
A122: 16CW071 | B122: 469.925 | C122: 469.903 | D122: U1516 | E122: D | F122: 4 | G122: R | H122: 3 | I122: A | J122: 49 | K122: 50 | L122: 199.3 | P122: 199.30 | R122: 9.9005 | S122: 20.13029645
A123: 16CW076 | B123: 469.975 | C123: 469.953 | D123: U1516 | E123: D | F123: 4 | G123: R | H123: 3 | I123: A | J123: 54 | K123: 55 | L123: 134.1 | P123: 134.10 | R123: 11.5205 | S123: 11.64011979
A124: 16CW081 | B124: 470.025 | C124: 470.003 | D124: U1516 | E124: D | F124: 4 | G124: R | H124: 3 | I124: A | J124: 59 | K124: 60 | L124: 98.8 | P124: 98.80 | R124: 2.98427 | S124: 33.10692397
A125: 16CW085 | B125: 470.065 | C125: 470.043 | D125: U1516 | E125: D | F125: 4 | G125: R | H125: 3 | I125: A | J125: 63 | K125: 64 | L125: 536.2 | P125: 536.20 | R125: 4.83389 | S125: 110.9251555
A126: 16CW091 | B126: 470.125 | C126: 470.103 | D126: U1516 | E126: D | F126: 4 | G126: R | H126: 3 | I126: A | J126: 69 | K126: 70 | L126: 28.4 | P126: 28.40 | R126: 0.182565 | S126: 155.5610331
A127: 16CW095 | B127: 470.2 | C127: 470.178 | D127: U1516 | E127: D | F127: 4 | G127: R | H127: 3 | I127: A | J127: 76 | K127: 78 | L127: 83.9 | P127: 83.90 | R127: 0.378014 | S127: 221.9494516
A128: 16CW097 | B128: 470.24 | C128: 470.218 | D128: U1516 | E128: D | F128: 4 | G128: R | H128: 3 | I128: A | J128: 80 | K128: 82 | L128: 19 | P128: 19.00 | R128: 0.136971 | S128: 138.7154945
A129: 16CW107 | B129: 470.42 | C129: 470.398 | D129: U1516 | E129: D | F129: 4 | G129: R | H129: 3 | I129: A | J129: 98 | K129: 100 | L129: 1614 | M129: 1604.00 | P129: 1609.00 | Q129: 7.071067812 | R129: 4.80365 | S129: 334.953629
A130: 16CW109 | B130: 470.46 | C130: 470.438 | D130: U1516 | E130: D | F130: 4 | G130: R | H130: 3 | I130: A | J130: 102 | K130: 104 | L130: 95.4 | P130: 95.40 | R130: 0.387492 | S130: 246.1986312
A131: 16CW112 | B131: 470.52 | C131: 470.498 | D131: U1516 | E131: D | F131: 4 | G131: R | H131: 3 | I131: A | J131: 108 | K131: 110 | L131: 22.1 | P131: 22.10 | R131: 0.271476 | S131: 81.40682786
A132: 16CW119 | B132: 470.66 | C132: 470.638 | D132: U1516 | E132: D | F132: 4 | G132: R | H132: 3 | I132: A | J132: 122 | K132: 124 | L132: 133.8 | P132: 133.80 | R132: 0.282471 | S132: 473.6769438
A133: 16CW120 | B133: 470.68 | C133: 470.658 | D133: U1516 | E133: D | F133: 4 | G133: R | H133: 3 | I133: A | J133: 124 | K133: 126 | L133: 78 | P133: 78.00 | R133: 0.524315 | S133: 148.7655322
A134: 16CW122 | B134: 470.72 | C134: 470.698 | D134: U1516 | E134: D | F134: 4 | G134: R | H134: 3 | I134: A | J134: 128 | K134: 130 | L134: 47.3 | P134: 47.30 | R134: 0.447612 | S134: 105.6718765
A135: 16CW126 | B135: 470.82 | C135: 470.798 | D135: U1516 | E135: D | F135: 4 | G135: R | H135: 3 | I135: A | J135: 138 | K135: 140 | L135: 19.6 | M135: 22.70 | P135: 21.15 | Q135: 2.192031022 | R135: 0.227532 | S135: 92.95395812
A136: 16CW131 | B136: 471.275 | C136: 471.253 | D136: U1516 | E136: D | F136: 4 | G136: R | H136: 4 | I136: W | J136: 32 | K136: 37 | L136: 23.5 | P136: 23.50 | R136: 0.259438 | S136: 90.58040842
A137: 16CW132 | B137: 471.77 | C137: 472.114 | D137: U1516 | E137: C | F137: 32 | G137: R | H137: 2 | I137: W | J137: 64.5 | K137: 69.5 | L137: 8.5 | P137: 8.50 | R137: 0.227379 | S137: 37.38251993
A138: 16CW134 | B138: 472.27 | C138: 472.614 | D138: U1516 | E138: C | F138: 32 | G138: R | H138: 2 | I138: W | J138: 114.5 | K138: 119.5 | L138: 6.3 | P138: 6.30 | R138: 0.26773 | S138: 23.53116946
A139: 16CW136 | B139: 472.945 | C139: 473.289 | D139: U1516 | E139: C | F139: 32 | G139: R | H139: 3 | I139: W | J139: 31 | K139: 36 | L139: 28.4 | P139: 28.40 | R139: 0.218112 | S139: 130.2083333
A140: 16CW137 | B140: 473.195 | C140: 473.539 | D140: U1516 | E140: C | F140: 32 | G140: R | H140: 3 | I140: W | J140: 56 | K140: 61 | L140: 33.1 | P140: 33.10 | R140: 0.380063 | S140: 87.09082442
A141: 16CW138 | B141: 473.445 | C141: 473.789 | D141: U1516 | E141: C | F141: 32 | G141: R | H141: 3 | I141: W | J141: 81 | K141: 86 | L141: 54.8 | P141: 54.80 | R141: 0.204101 | S141: 268.4945199
A142: 16CW139 | B142: 473.695 | C142: 474.039 | D142: U1516 | E142: C | F142: 32 | G142: R | H142: 3 | I142: W | J142: 106 | K142: 111 | L142: 162.8 | P142: 162.80 | R142: 0.629873 | S142: 258.4648016
A143: 16CW140 | B143: 474.165 | C143: 474.393 | D143: U1516 | E143: D | F143: 5 | G143: R | H143: 1 | I143: W | J143: 114 | K143: 119 | L143: 162.1 | M143: 170.20 | N143: 161.5 | P143: 164.60 | Q143: 4.859012245 | R143: 0.634029 | S143: 259.6095762
A144: 16CW141 | B144: 474.425 | C144: 474.653 | D144: U1516 | E144: D | F144: 5 | G144: R | H144: 1 | I144: W | J144: 140 | K144: 145 | L144: 46.2 | P144: 46.20 | R144: 0.277559 | S144: 166.4510969
A145: 16CW142 | B145: 474.665 | C145: 474.893 | D145: U1516 | E145: D | F145: 5 | G145: R | H145: 2 | I145: W | J145: 18 | K145: 23 | L145: 83.3 | P145: 83.30 | R145: 0.23656 | S145: 352.1305377
A146: 16CW143 | B146: 474.915 | C146: 475.143 | D146: U1516 | E146: D | F146: 5 | G146: R | H146: 2 | I146: W | J146: 43 | K146: 48 | L146: 20.6 | P146: 20.60 | R146: 0.3868 | S146: 53.25749741
A147: 16CW144 | B147: 475.165 | C147: 475.393 | D147: U1516 | E147: D | F147: 5 | G147: R | H147: 2 | I147: W | J147: 68 | K147: 73 | L147: 10 | P147: 10.00 | R147: 0.440363 | S147: 22.70853818
A148: 16CW146 | B148: 475.665 | C148: 475.893 | D148: U1516 | E148: D | F148: 5 | G148: R | H148: 2 | I148: W | J148: 118 | K148: 123 | L148: 15.9 | P148: 15.90 | R148: 0.219058 | S148: 72.58351669
A149: 16CW147 | B149: 475.915 | C149: 476.143 | D149: U1516 | E149: D | F149: 5 | G149: R | H149: 2 | I149: W | J149: 143 | K149: 148 | L149: 14.7 | P149: 14.70 | R149: 0.30514 | S149: 48.17460838
A150: 16CW148 | B150: 476.165 | C150: 476.4015844 | D150: U1516 | E150: D | F150: 5 | G150: R | H150: 3 | I150: W | J150: 18 | K150: 23 | L150: 41.7 | P150: 41.70 | R150: 0.417124 | S150: 99.97027263
A151: 16CW149 | B151: 476.385 | C151: 476.6634269 | D151: U1516 | E151: D | F151: 5 | G151: R | H151: 3 | I151: W | J151: 40 | K151: 45 | L151: 25.8 | P151: 25.80 | R151: 0.450013 | S151: 57.33167708
A152: 16CW150 | B152: 476.705 | C152: 477.029 | D152: U1516 | E152: C | F152: 33 | G152: R | H152: 3 | I152: W | J152: 15 | K152: 20 | L152: 170 | M152: 167.50 | P152: 168.75 | Q152: 1.767766953 | R152: 0.251085 | S152: 672.0831591
A153: 16CW151 | B153: 476.885 | C153: 477.2645325 | D153: U1516 | E153: D | F153: 5 | G153: R | H153: 3 | I153: W | J153: 90 | K153: 95 | L153: 85.4 | P153: 85.40 | R153: 0.504807 | S153: 169.1735653
A154: 16CW152 | B154: 476.985 | C154: 477.309 | D154: U1516 | E154: C | F154: 33 | G154: R | H154: 3 | I154: W | J154: 43 | K154: 48 | L154: 55.5 | P154: 55.50 | R154: 0.54677 | S154: 101.5052033
A155: 16CW153 | B155: 477.235 | C155: 477.559 | D155: U1516 | E155: C | F155: 33 | G155: R | H155: 3 | I155: W | J155: 68 | K155: 73 | L155: 29.7 | P155: 29.70 | R155: 0.402012 | S155: 73.87839169
A156: 16CW154 | B156: 477.485 | C156: 477.809 | D156: U1516 | E156: C | F156: 33 | G156: R | H156: 3 | I156: W | J156: 93 | K156: 98 | L156: 47.7 | P156: 47.70 | R156: 0.216813 | S156: 220.005258
A157: 16CW155 | B157: 477.705 | C157: 478.029 | D157: U1516 | E157: C | F157: 33 | G157: R | H157: 3 | I157: W | J157: 115 | K157: 120 | L157: 27.5 | P157: 27.50 | R157: 0.248911 | S157: 110.4812564
A158: 16CW156 | B158: 477.965 | C158: 478.289 | D158: U1516 | E158: C | F158: 33 | G158: R | H158: 4 | I158: W | J158: 1 | K158: 6 | L158: 16.4 | P158: 16.40 | R158: 0.247768 | S158: 66.19095283
A159: 16CW157 | B159: 478.235 | C159: 478.559 | D159: U1516 | E159: C | F159: 33 | G159: R | H159: 4 | I159: W | J159: 28 | K159: 33 | L159: 29.7 | P159: 29.70 | R159: 0.334316 | S159: 88.83810527
A160: 16CW158 | B160: 478.485 | C160: 478.809 | D160: U1516 | E160: C | F160: 33 | G160: R | H160: 4 | I160: W | J160: 53 | K160: 58 | L160: 18.1 | P160: 18.10 | R160: 0.214815 | S160: 84.25854805
A161: 16CW159 | B161: 478.715 | C161: 479.039 | D161: U1516 | E161: C | F161: 33 | G161: R | H161: 4 | I161: W | J161: 76 | K161: 81 | L161: 16.4 | P161: 16.40 | R161: 0.300122 | S161: 54.64444459
A162: 16CW160 | B162: 478.985 | C162: 479.309 | D162: U1516 | E162: C | F162: 33 | G162: R | H162: 5 | I162: W | J162: 2 | K162: 7 | L162: 17.6 | P162: 17.60 | R162: 0.373419 | S162: 47.13204202
A163: 16CW161 | B163: 479.235 | C163: 479.559 | D163: U1516 | E163: C | F163: 33 | G163: R | H163: 5 | I163: W | J163: 27 | K163: 32 | L163: 18.7 | M163: 20.90 | P163: 19.80 | Q163: 1.555634919 | R163: 0.337125 | S163: 58.73192436
A164: 16CW163 | B164: 479.485 | C164: 479.809 | D164: U1516 | E164: C | F164: 33 | G164: R | H164: 5 | I164: W | J164: 52 | K164: 57 | L164: 9.6 | P164: 9.60 | R164: 0.435882 | S164: 22.02430933
A165: 16CW162 | B165: 479.375 | C165: 480.511 | D165: U1516 | E165: C | F165: 34 | G165: R | H165: 1 | I165: W | J165: 15 | K165: 20 | L165: 32.8 | P165: 32.80 | R165: 0.378672 | S165: 86.61849833
A166: 16CW164 | B166: 479.64 | C166: 480.776 | D166: U1516 | E166: C | F166: 34 | G166: R | H166: 1 | I166: W | J166: 41 | K166: 47 | L166: 66 | P166: 66.00 | R166: 0.932795 | S166: 70.75509624
A167: 16CW165 | B167: 479.875 | C167: 481.011 | D167: U1516 | E167: C | F167: 34 | G167: R | H167: 1 | I167: W | J167: 65 | K167: 70 | L167: 89.7 | P167: 89.70 | R167: 1.12331 | S167: 79.85329072
A168: 16CW167 | B168: 480.375 | C168: 481.511 | D168: U1516 | E168: C | F168: 34 | G168: R | H168: 1 | I168: W | J168: 115 | K168: 120 | L168: 7.8 | P168: 7.80 | R168: 0.366934 | S168: 21.25722882
A169: 16CW168 | B169: 480.62 | C169: 481.756 | D169: U1516 | E169: C | F169: 34 | G169: R | H169: 1 | I169: W | J169: 140 | K169: 144 | L169: 9.6 | P169: 9.60 | R169: 0.321688 | S169: 29.84258039
A170: 16CW169 | B170: 480.805 | C170: 481.941 | D170: U1516 | E170: C | F170: 34 | G170: R | H170: 2 | I170: W | J170: 10 | K170: 15 | L170: 81.1 | M170: 77.50 | P170: 79.30 | Q170: 2.545584412 | R170: 1.38478 | S170: 57.265414
A171: 16CW170 | B171: 481.145 | C171: 482.281 | D171: U1516 | E171: C | F171: 34 | G171: R | H171: 2 | I171: W | J171: 44 | K171: 49 | L171: 37.4 | P171: 37.40 | R171: 0.417845 | S171: 89.50687456
A172: 16CW171 | B172: 481.375 | C172: 482.511 | D172: U1516 | E172: C | F172: 34 | G172: R | H172: 2 | I172: W | J172: 67 | K172: 72 | L172: 7.7 | P172: 7.70 | R172: 0.323946 | S172: 23.76939366
A173: 16CW172 | B173: 481.625 | C173: 482.761 | D173: U1516 | E173: C | F173: 34 | G173: R | H173: 2 | I173: W | J173: 92 | K173: 97 | L173: 8.4 | P173: 8.40 | R173: 0.468576 | S173: 17.92665437
A174: 16CW173 | B174: 481.875 | C174: 483.011 | D174: U1516 | E174: C | F174: 34 | G174: R | H174: 2 | I174: W | J174: 117 | K174: 122 | L174: 7.2 | P174: 7.20 | R174: 0.313649 | S174: 22.95559686
A175: 16CW174 | B175: 482.125 | C175: 483.261 | D175: U1516 | E175: C | F175: 34 | G175: R | H175: 3 | I175: W | J175: 3 | K175: 8 | L175: 13.1 | P175: 13.10 | R175: 0.378012 | S175: 34.6549845
A176: 16CW175 | B176: 482.415 | C176: 483.551 | D176: U1516 | E176: C | F176: 34 | G176: R | H176: 3 | I176: W | J176: 32 | K176: 37 | L176: 34.6 | P176: 34.60 | R176: 0.570166 | S176: 60.68408148
A177: 16CW176 | B177: 482.595 | C177: 483.731 | D177: U1516 | E177: C | F177: 34 | G177: R | H177: 3 | I177: W | J177: 50 | K177: 55 | L177: 32.3 | P177: 32.30 | R177: 0.738256 | S177: 43.75176091
A178: 16CW177 | B178: 482.875 | C178: 484.011 | D178: U1516 | E178: C | F178: 34 | G178: R | H178: 3 | I178: W | J178: 78 | K178: 83 | L178: 11.8 | P178: 11.80 | R178: 0.446372 | S178: 26.43534989
A179: 16CW178 | B179: 483.125 | C179: 484.261 | D179: U1516 | E179: C | F179: 34 | G179: R | H179: 4 | I179: W | J179: 0 | K179: 5 | L179: 12 | P179: 12.00 | R179: 0.462679 | S179: 25.93590805
A180: 16CW179 | B180: 483.425 | C180: 484.561 | D180: U1516 | E180: C | F180: 34 | G180: R | H180: 4 | I180: W | J180: 30 | K180: 35 | L180: 60.4 | M180: 64.80 | P180: 62.60 | Q180: 3.111269837 | R180: 0.853745 | S180: 73.3240019
A181: 16CW180 | B181: 483.625 | C181: 484.761 | D181: U1516 | E181: C | F181: 34 | G181: R | H181: 4 | I181: W | J181: 50 | K181: 55 | L181: 27.9 | P181: 27.90 | R181: 0.592158 | S181: 47.11580355
A182: 16CW181 | B182: 484.125 | C182: 485.015 | D182: U1516 | E182: C | F182: 35 | G182: R | H182: 1 | I182: W | J182: 10 | K182: 15 | L182: 22.1 | P182: 22.10 | R182: 0.676811 | S182: 32.65313359
A183: 16CW182 | B183: 484.375 | C183: 485.265 | D183: U1516 | E183: C | F183: 35 | G183: R | H183: 1 | I183: W | J183: 35 | K183: 40 | L183: 68.8 | P183: 68.80 | R183: 1.18192 | S183: 58.21036957
A184: 16CW183 | B184: 484.625 | C184: 485.515 | D184: U1516 | E184: C | F184: 35 | G184: R | H184: 1 | I184: W | J184: 60 | K184: 65 | L184: 35 | P184: 35.00 | R184: 0.999659 | S184: 35.01193907
A185: 16CW184 | B185: 484.875 | C185: 485.765 | D185: U1516 | E185: C | F185: 35 | G185: R | H185: 1 | I185: W | J185: 85 | K185: 90 | L185: 28.8 | P185: 28.80 | R185: 0.532403 | S185: 54.09436085
A186: 16CW185 | B186: 485.125 | C186: 486.015 | D186: U1516 | E186: C | F186: 35 | G186: R | H186: 1 | I186: W | J186: 110 | K186: 115 | L186: 13.2 | P186: 13.20 | R186: 0.581487 | S186: 22.70042151
A187: 16CW186 | B187: 485.375 | C187: 486.265 | D187: U1516 | E187: C | F187: 35 | G187: R | H187: 1 | I187: W | J187: 135 | K187: 140 | L187: 38.1 | M187: 39.90 | P187: 39.00 | Q187: 1.272792206 | R187: 0.507214 | S187: 76.8906221
A188: 16CW187 | B188: 485.625 | C188: 486.515 | D188: U1516 | E188: C | F188: 35 | G188: R | H188: 2 | I188: W | J188: 10 | K188: 15 | L188: 28.1 | P188: 28.10 | R188: 0.645113 | S188: 43.55826034
A189: 16CW188 | B189: 485.875 | C189: 486.765 | D189: U1516 | E189: C | F189: 35 | G189: R | H189: 2 | I189: W | J189: 35 | K189: 40 | L189: 26.8 | P189: 26.80 | R189: 0.649899 | S189: 41.23717685
A190: 16CW189 | B190: 486.125 | C190: 487.015 | D190: U1516 | E190: C | F190: 35 | G190: R | H190: 2 | I190: W | J190: 60 | K190: 65 | L190: 21.6 | P190: 21.60 | R190: 0.59058 | S190: 36.57421518
A191: 16CW190 | B191: 486.375 | C191: 487.265 | D191: U1516 | E191: C | F191: 35 | G191: R | H191: 2 | I191: W | J191: 85 | K191: 90 | L191: 18.1 | P191: 18.10 | R191: 0.488393 | S191: 37.06031823
A192: 16CW191 | B192: 486.625 | C192: 487.515 | D192: U1516 | E192: C | F192: 35 | G192: R | H192: 2 | I192: W | J192: 110 | K192: 115 | L192: 16.6 | P192: 16.60 | R192: 0.456033 | S192: 36.4008745
A193: 16CW192 | B193: 486.875 | C193: 487.765 | D193: U1516 | E193: C | F193: 35 | G193: R | H193: 2 | I193: W | J193: 135 | K193: 140 | L193: 13.6 | P193: 13.60 | R193: 0.322573 | S193: 42.16099922
A194: 16CW193 | B194: 487.125 | C194: 488.015 | D194: U1516 | E194: C | F194: 35 | G194: R | H194: 3 | I194: W | J194: 4 | K194: 9 | L194: 13.6 | P194: 13.60 | R194: 0.440244 | S194: 30.89195991
A195: 16CW194 | B195: 487.375 | C195: 488.265 | D195: U1516 | E195: C | F195: 35 | G195: R | H195: 3 | I195: W | J195: 29 | K195: 34 | L195: 95.2 | P195: 95.20 | R195: 0.77851 | S195: 122.2848775
A196: 16CW195 | B196: 487.545 | C196: 488.435 | D196: U1516 | E196: C | F196: 35 | G196: R | H196: 3 | I196: W | J196: 46 | K196: 51 | L196: 76.3 | M196: 74.80 | P196: 75.55 | Q196: 1.060660172 | R196: 0.723108 | S196: 104.4795522
A197: 16CW196 | B197: 487.885 | C197: 488.775 | D197: U1516 | E197: C | F197: 35 | G197: R | H197: 3 | I197: W | J197: 80 | K197: 85 | L197: 29.2 | P197: 29.20 | R197: 0.600409 | S197: 48.63351482
A198: 16CW197 | B198: 488.125 | C198: 489.015 | D198: U1516 | E198: C | F198: 35 | G198: R | H198: 4 | I198: W | J198: 2 | K198: 7 | L198: 30.5 | P198: 30.50 | R198: 0.464344 | S198: 65.68406182
A199: 16CW198 | B199: 488.375 | C199: 489.265 | D199: U1516 | E199: C | F199: 35 | G199: R | H199: 4 | I199: W | J199: 27 | K199: 32 | L199: 34.6 | P199: 34.60 | R199: 0.56877 | S199: 60.83302565
A200: 16CW199 | B200: 488.635 | C200: 489.525 | D200: U1516 | E200: C | F200: 35 | G200: R | H200: 4 | I200: W | J200: 53 | K200: 58 | L200: 92.6 | M200: 94.00 | P200: 93.30 | Q200: 0.9899494937 | R200: 0.709835 | S200: 131.4389964
... 62 more rows

Sheet Bulk carbonate isotopes
A1: Sample code | B1: Depth CCSF-M | C1: Site | D1: Hole | E1: Core | F1: Type | G1: Sect | H1: A/W | I1: Top offset (cm) | J1: Bottom offset (cm) | K1: d13C | L1: d18O | M1: d13C repeat | N1: d18O repeat | O1: d13C repeat 2 | P1: d18O repeat 2 | Q1: d13C s.d. | R1: d28O s.d | S1: Mean δ13C ‰ VPDB | T1: Mean δ18O ‰ VPDB
A2: 16CW001 | B2: 455.275 | C2: U1516 | D2: C | E2: 29 | F2: R | G2: 1 | H2: W | I2: 5 | J2: 10 | K2: 3.786561334 | L2: -2.117272828 | S2: 3.786561334 | T2: -2.117272828
A3: 16CW002 | B3: 455.525 | C3: U1516 | D3: C | E3: 29 | F3: R | G3: 1 | H3: W | I3: 30 | J3: 35 | K3: 3.746232398 | L3: -2.101970857 | S3: 3.746232398 | T3: -2.101970857
A4: 16CW003 | B4: 455.875 | C4: U1516 | D4: C | E4: 29 | F4: R | G4: 1 | H4: W | I4: 65 | J4: 70 | K4: 3.733396547 | L4: -1.96251784 | S4: 3.733396547 | T4: -1.96251784
A5: 16CW004 | B5: 456.045 | C5: U1516 | D5: C | E5: 29 | F5: R | G5: 1 | H5: W | I5: 82 | J5: 87 | K5: 3.718111281 | L5: -2.292828808 | S5: 3.718111281 | T5: -2.292828808
A6: 16CW005 | B6: 456.275 | C6: U1516 | D6: C | E6: 29 | F6: R | G6: 1 | H6: W | I6: 105 | J6: 110 | K6: 3.474308683 | L6: -2.064591363 | S6: 3.474308683 | T6: -2.064591363
A7: 16CW006 | B7: 456.525 | C7: U1516 | D7: C | E7: 29 | F7: R | G7: 2 | H7: W | I7: 0 | J7: 5 | K7: 3.774982443 | L7: -2.362363681 | S7: 3.774982443 | T7: -2.362363681
A8: 16CW007 | B8: 456.775 | C8: U1516 | D8: C | E8: 29 | F8: R | G8: 2 | H8: W | I8: 25 | J8: 30 | K8: 3.659769117 | L8: -2.773827113 | S8: 3.659769117 | T8: -2.773827113
A9: 16CW008 | B9: 457.025 | C9: U1516 | D9: C | E9: 29 | F9: R | G9: 2 | H9: W | I9: 50 | J9: 55 | K9: 3.927492694 | L9: -2.382152534 | M9: 3.865655362 | N9: -2.467161344 | Q9: 0.04372559691 | R9: 0.0601103059 | S9: 3.896574028 | T9: -2.424656939
A10: 16CW009 | B10: 457.275 | C10: U1516 | D10: C | E10: 29 | F10: R | G10: 3 | H10: W | I10: 10 | J10: 15 | K10: 3.882242556 | L10: -2.531865961 | S10: 3.882242556 | T10: -2.531865961
A11: 16CW010 | B11: 457.525 | C11: U1516 | D11: C | E11: 29 | F11: R | G11: 3 | H11: W | I11: 35 | J11: 40 | K11: 3.438440143 | L11: -1.139430169 | S11: 3.438440143 | T11: -1.139430169
A12: 16CW011 | B12: 457.775 | C12: U1516 | D12: C | E12: 29 | F12: R | G12: 3 | H12: W | I12: 60 | J12: 65 | K12: 3.656458119 | L12: -2.432038344 | S12: 3.656458119 | T12: -2.432038344
A13: 16CW012 | B13: 458.025 | C13: U1516 | D13: C | E13: 29 | F13: R | G13: 3 | H13: W | I13: 85 | J13: 90 | K13: 3.743207239 | L13: -2.560777286 | S13: 3.743207239 | T13: -2.560777286
A14: 16CW014 | B14: 458.525 | C14: U1516 | D14: C | E14: 29 | F14: R | G14: 4 | H14: W | I14: 21 | J14: 26 | K14: 3.563838286 | L14: -2.440194675 | S14: 3.563838286 | T14: -2.440194675
A15: 16CW013 | B15: 459.083 | C15: U1516 | D15: D | E15: 2 | F15: R | G15: 1 | H15: W | I15: 45 | J15: 50 | K15: 3.34980925 | L15: -1.862864617 | S15: 3.34980925 | T15: -1.862864617
A16: 16CW015 | B16: 459.333 | C16: U1516 | D16: D | E16: 2 | F16: R | G16: 1 | H16: W | I16: 70 | J16: 75 | K16: 3.628378487 | L16: -2.989594307 | S16: 3.628378487 | T16: -2.989594307
A17: 16CW016 | B17: 459.583 | C17: U1516 | D17: D | E17: 2 | F17: R | G17: 2 | H17: W | I17: 9 | J17: 14 | K17: 3.671297201 | L17: -2.90483514 | M17: 3.696108453 | N17: -2.667709748 | Q17: 0.01754420447 | R17: 0.1676729723 | S17: 3.683702827 | T17: -2.786272444
A18: 16CW017 | B18: 459.833 | C18: U1516 | D18: D | E18: 2 | F18: R | G18: 2 | H18: W | I18: 34 | J18: 39 | K18: 3.564183187 | L18: -2.697121263 | S18: 3.564183187 | T18: -2.697121263
A19: 16CW018 | B19: 460.083 | C19: U1516 | D19: D | E19: 2 | F19: R | G19: 2 | H19: W | I19: 59 | J19: 64 | K19: 3.66598603 | L19: -2.531222004 | S19: 3.66598603 | T19: -2.531222004
A20: 16CW019 | B20: 460.333 | C20: U1516 | D20: D | E20: 2 | F20: R | G20: 2 | H20: W | I20: 84 | J20: 89 | K20: 3.759883906 | L20: -2.472452529 | S20: 3.759883906 | T20: -2.472452529
A21: 16CW020 | B21: 460.583 | C21: U1516 | D21: D | E21: 2 | F21: R | G21: 3 | H21: W | I21: 6 | J21: 11 | K21: 3.799058814 | L21: -2.611963967 | S21: 3.799058814 | T21: -2.611963967
A22: 16CW021 | B22: 460.833 | C22: U1516 | D22: D | E22: 2 | F22: R | G22: 3 | H22: W | I22: 31 | J22: 36 | K22: 3.6334954 | L22: -2.33373918 | S22: 3.6334954 | T22: -2.33373918
A23: 16CW022 | B23: 461.083 | C23: U1516 | D23: D | E23: 2 | F23: R | G23: 3 | H23: W | I23: 56 | J23: 61 | K23: 3.252874392 | L23: -2.087768271 | S23: 3.252874392 | T23: -2.087768271
A24: 16CW024 | B24: 461.272 | C24: U1516 | D24: C | E24: 30 | F24: R | G24: 2 | H24: W | I24: 53 | J24: 58 | K24: 2.961610666 | L24: -2.398062261 | M24: 3.039376582 | N24: -2.21284579 | Q24: 0.05498880691 | R24: 0.1309678224 | S24: 3.000493624 | T24: -2.305454026
A25: 16CW023 | B25: 461.3328179 | C25: U1516 | D25: D | E25: 2 | F25: R | G25: 3 | H25: W | I25: 81 | J25: 86 | K25: 3.366467877 | L25: -2.618385356 | S25: 3.366467877 | T25: -2.618385356
A26: 16CW025 | B26: 461.522 | C26: U1516 | D26: C | E26: 30 | F26: R | G26: 2 | H26: W | I26: 78 | J26: 83 | K26: 3.270094496 | L26: -2.777507808 | S26: 3.270094496 | T26: -2.777507808
A27: 16CW026 | B27: 461.772 | C27: U1516 | D27: C | E27: 30 | F27: R | G27: 2 | H27: W | I27: 103 | J27: 108 | K27: 3.371256963 | L27: -2.842478818 | S27: 3.371256963 | T27: -2.842478818
A28: 16CW027 | B28: 462.022 | C28: U1516 | D28: C | E28: 30 | F28: R | G28: 2 | H28: W | I28: 128 | J28: 133 | K28: 3.348735911 | L28: -2.775723216 | S28: 3.348735911 | T28: -2.775723216
A29: 16CW028 | B29: 462.272 | C29: U1516 | D29: C | E29: 30 | F29: R | G29: 3 | H29: W | I29: 8 | J29: 13 | K29: 3.424771202 | L29: -2.855189416 | S29: 3.424771202 | T29: -2.855189416
A30: 16CW029 | B30: 462.522 | C30: U1516 | D30: C | E30: 30 | F30: R | G30: 3 | H30: W | I30: 33 | J30: 38 | K30: 3.496870132 | L30: -3.305976661 | S30: 3.496870132 | T30: -3.305976661
A31: 16CW030 | B31: 462.772 | C31: U1516 | D31: C | E31: 30 | F31: R | G31: 3 | H31: W | I31: 58 | J31: 63 | K31: 3.271924543 | L31: -2.787069031 | M31: 3.28100827 | N31: -2.498468809 | Q31: 0.006423165002 | R31: 0.2040711734 | S31: 3.276466407 | T31: -2.64276892
A32: 16CW032 | B32: 463.022 | C32: U1516 | D32: C | E32: 30 | F32: R | G32: 3 | H32: W | I32: 83 | J32: 88 | K32: 3.43208909 | L32: -2.353390144 | S32: 3.43208909 | T32: -2.353390144
A33: 16CW035 | B33: 463.322 | C33: U1516 | D33: C | E33: 30 | F33: R | G33: 3 | H33: W | I33: 113 | J33: 118 | K33: 3.410620106 | L33: -2.979075035 | S33: 3.410620106 | T33: -2.979075035
A34: 16CW036 | B34: 463.522 | C34: U1516 | D34: C | E34: 30 | F34: R | G34: 3 | H34: W | I34: 133 | J34: 138 | K34: 3.383316009 | L34: -2.536105059 | S34: 3.383316009 | T34: -2.536105059
A35: 16CW038 | B35: 463.782 | C35: U1516 | D35: C | E35: 30 | F35: R | G35: 4 | H35: W | I35: 20 | J35: 25 | K35: 3.523750131 | L35: -2.736939835 | S35: 3.523750131 | T35: -2.736939835
A36: 16CW031 | B36: 464.457 | C36: U1516 | D36: D | E36: 3 | F36: R | G36: 1 | H36: W | I36: 107 | J36: 112 | K36: 3.520526341 | L36: -2.702407943 | S36: 3.520526341 | T36: -2.702407943
A37: 16CW033 | B37: 464.707 | C37: U1516 | D37: D | E37: 3 | F37: R | G37: 2 | H37: W | I37: 1 | J37: 6 | K37: 3.428077772 | L37: -2.560632542 | S37: 3.428077772 | T37: -2.560632542
A38: 16CW034 | B38: 464.957 | C38: U1516 | D38: D | E38: 3 | F38: R | G38: 2 | H38: W | I38: 26 | J38: 31 | K38: 3.333711253 | L38: -2.337679531 | S38: 3.333711253 | T38: -2.337679531
A39: 16CW037 | B39: 465.207 | C39: U1516 | D39: D | E39: 3 | F39: R | G39: 2 | H39: W | I39: 51 | J39: 56 | K39: 3.496728165 | L39: -2.722824309 | S39: 3.496728165 | T39: -2.722824309
A40: 16CW040 | B40: 465.279 | C40: U1516 | D40: C | E40: 31 | F40: R | G40: 1 | H40: W | I40: 63 | J40: 68 | K40: 3.42771008 | L40: -2.878829383 | S40: 3.42771008 | T40: -2.878829383
A41: 16CW039 | B41: 465.4564533 | C41: U1516 | D41: D | E41: 3 | F41: R | G41: 2 | H41: W | I41: 76 | J41: 81 | K41: 3.571131738 | L41: -2.875620149 | S41: 3.571131738 | T41: -2.875620149
A42: 16CW041 | B42: 465.529 | C42: U1516 | D42: C | E42: 31 | F42: R | G42: 1 | H42: W | I42: 88 | J42: 93 | K42: 3.415581725 | L42: -3.089450179 | S42: 3.415581725 | T42: -3.089450179
A43: 16CW042 | B43: 465.759 | C43: U1516 | D43: C | E43: 31 | F43: R | G43: 2 | H43: W | I43: 2 | J43: 7 | K43: 3.36626482 | L43: -2.725865068 | S43: 3.36626482 | T43: -2.725865068
A44: 16CW043 | B44: 465.999 | C44: U1516 | D44: C | E44: 31 | F44: R | G44: 2 | H44: W | I44: 26 | J44: 31 | K44: 3.431365948 | L44: -2.587114508 | S44: 3.431365948 | T44: -2.587114508
A45: 16CW044 | B45: 466.249 | C45: U1516 | D45: C | E45: 31 | F45: R | G45: 2 | H45: W | I45: 51 | J45: 56 | K45: 3.554490312 | L45: -2.653582027 | S45: 3.554490312 | T45: -2.653582027
A46: 16CW045 | B46: 466.529 | C46: U1516 | D46: C | E46: 31 | F46: R | G46: 2 | H46: W | I46: 79 | J46: 84 | K46: 3.642965013 | L46: -3.17764399 | S46: 3.642965013 | T46: -3.17764399
A47: 16CW046 | B47: 466.779 | C47: U1516 | D47: C | E47: 31 | F47: R | G47: 2 | H47: W | I47: 104 | J47: 109 | K47: 4.083597746 | L47: -2.897707572 | M47: 4.075459398 | N47: -3.180724855 | Q47: 0.005754680875 | R47: 0.2001234397 | S47: 4.079528572 | T47: -3.039216214
A48: 16CW048 | B48: 467.269 | C48: U1516 | D48: C | E48: 31 | F48: R | G48: 3 | H48: W | I48: 26 | J48: 31 | K48: 4.108569602 | L48: -3.625071772 | S48: 4.108569602 | T48: -3.625071772
A49: 16CW126 | B49: 470.798 | C49: U1516 | D49: D | E49: 4 | F49: R | G49: 3 | H49: A | I49: 138 | J49: 140 | K49: 4.269547987 | L49: -1.952666106 | S49: 4.269547987 | T49: -1.952666106
A50: 16CW130 | B50: 471.003 | C50: U1516 | D50: D | E50: 4 | F50: R | G50: 4 | H50: W | I50: 7 | J50: 12 | K50: 4.01025425 | L50: -3.020863518 | S50: 4.01025425 | T50: -3.020863518
A51: 16CW131 | B51: 471.253 | C51: U1516 | D51: D | E51: 4 | F51: R | G51: 4 | H51: W | I51: 32 | J51: 37 | K51: 3.480862695 | L51: -2.923918763 | S51: 3.480862695 | T51: -2.923918763
A52: 16CW132 | B52: 472.114 | C52: U1516 | D52: C | E52: 32 | F52: R | G52: 2 | H52: W | I52: 64.5 | J52: 69.5 | K52: 3.408762584 | L52: -2.991462068 | S52: 3.408762584 | T52: -2.991462068
A53: 16CW133 | B53: 472.394 | C53: U1516 | D53: C | E53: 32 | F53: R | G53: 2 | H53: W | I53: 92.5 | J53: 97.5 | K53: 3.586409234 | L53: -2.902405074 | S53: 3.586409234 | T53: -2.902405074
A54: 16CW134 | B54: 472.614 | C54: U1516 | D54: C | E54: 32 | F54: R | G54: 2 | H54: W | I54: 114.5 | J54: 119.5 | K54: 3.533822056 | L54: -2.713016002 | S54: 3.533822056 | T54: -2.713016002
A55: 16CW136 | B55: 473.289 | C55: U1516 | D55: C | E55: 32 | F55: R | G55: 3 | H55: W | I55: 31 | J55: 36 | K55: 3.659506346 | L55: -3.03920624 | S55: 3.659506346 | T55: -3.03920624
A56: 16CW137 | B56: 473.539 | C56: U1516 | D56: C | E56: 32 | F56: R | G56: 3 | H56: W | I56: 56 | J56: 61 | K56: 3.994627338 | L56: -3.439673525 | S56: 3.994627338 | T56: -3.439673525
A57: 16CW138 | B57: 473.789 | C57: U1516 | D57: C | E57: 32 | F57: R | G57: 3 | H57: W | I57: 81 | J57: 86 | K57: 3.639957084 | L57: -2.78016041 | S57: 3.639957084 | T57: -2.78016041
A58: 16CW139 | B58: 474.039 | C58: U1516 | D58: C | E58: 32 | F58: R | G58: 3 | H58: W | I58: 106 | J58: 111 | K58: 3.52660693 | L58: -2.80214362 | S58: 3.52660693 | T58: -2.80214362
A59: 16CW140 | B59: 474.393 | C59: U1516 | D59: D | E59: 5 | F59: R | G59: 1 | H59: W | I59: 114 | J59: 119 | K59: 3.93755267 | L59: -2.952867875 | S59: 3.93755267 | T59: -2.952867875
A60: 16CW141 | B60: 474.653 | C60: U1516 | D60: D | E60: 5 | F60: R | G60: 1 | H60: W | I60: 140 | J60: 145 | K60: 3.80377973 | L60: -2.622906095 | S60: 3.80377973 | T60: -2.622906095
A61: 16CW142 | B61: 474.893 | C61: U1516 | D61: D | E61: 5 | F61: R | G61: 2 | H61: W | I61: 18 | J61: 23 | K61: 3.798129325 | L61: -3.46100833 | S61: 3.798129325 | T61: -3.46100833
A62: 16CW143 | B62: 475.143 | C62: U1516 | D62: D | E62: 5 | F62: R | G62: 2 | H62: W | I62: 43 | J62: 48 | K62: 3.699874228 | L62: -3.220135049 | S62: 3.699874228 | T62: -3.220135049
A63: 16CW144 | B63: 475.393 | C63: U1516 | D63: D | E63: 5 | F63: R | G63: 2 | H63: W | I63: 68 | J63: 73 | K63: 3.713243795 | L63: -2.376035846 | S63: 3.713243795 | T63: -2.376035846
A64: 16CW145 | B64: 475.643 | C64: U1516 | D64: D | E64: 5 | F64: R | G64: 2 | H64: W | I64: 93 | J64: 98 | K64: 3.633590622 | L64: -2.259514938 | M64: 3.643733413 | N64: -2.425838765 | Q64: 0.007172036041 | R64: 0.1176087055 | S64: 3.638662018 | T64: -2.342676851
A65: 16CW146 | B65: 475.893 | C65: U1516 | D65: D | E65: 5 | F65: R | G65: 2 | H65: W | I65: 118 | J65: 123 | K65: 3.927311509 | L65: -2.268723043 | S65: 3.927311509 | T65: -2.268723043
A66: 16CW147 | B66: 476.143 | C66: U1516 | D66: D | E66: 5 | F66: R | G66: 2 | H66: W | I66: 143 | J66: 148 | K66: 3.8131071 | L66: -2.308062237 | S66: 3.8131071 | T66: -2.308062237
A67: 16CW148 | B67: 476.4015844 | C67: U1516 | D67: D | E67: 5 | F67: R | G67: 3 | H67: W | I67: 18 | J67: 23 | K67: 3.502703333 | L67: -2.499452639 | S67: 3.502703333 | T67: -2.499452639
A68: 16CW149 | B68: 476.6634269 | C68: U1516 | D68: D | E68: 5 | F68: R | G68: 3 | H68: W | I68: 40 | J68: 45 | K68: 3.610554187 | L68: -2.469991907 | S68: 3.610554187 | T68: -2.469991907
A69: 16CW150 | B69: 477.029 | C69: U1516 | D69: C | E69: 33 | F69: R | G69: 3 | H69: W | I69: 15 | J69: 20 | K69: 3.466979792 | L69: -2.924085395 | M69: 3.477090567 | N69: -3.022432963 | Q69: 0.007149397571 | R69: 0.06954223194 | S69: 3.472035179 | T69: -2.973259179
A70: 16CW151 | B70: 477.2645325 | C70: U1516 | D70: D | E70: 5 | F70: R | G70: 3 | H70: W | I70: 90 | J70: 95 | K70: 2.251855162 | L70: -4.391664925 | S70: 2.251855162 | T70: -4.391664925
A71: 16CW152 | B71: 477.309 | C71: U1516 | D71: C | E71: 33 | F71: R | G71: 3 | H71: W | I71: 43 | J71: 48 | K71: 3.826613151 | L71: -3.060357001 | S71: 3.826613151 | T71: -3.060357001
A72: 16CW153 | B72: 477.559 | C72: U1516 | D72: C | E72: 33 | F72: R | G72: 3 | H72: W | I72: 68 | J72: 73 | K72: 3.763808787 | L72: -2.598849737 | S72: 3.763808787 | T72: -2.598849737
A73: 16CW154 | B73: 477.809 | C73: U1516 | D73: C | E73: 33 | F73: R | G73: 3 | H73: W | I73: 93 | J73: 98 | K73: 3.535897142 | L73: -2.820172042 | S73: 3.535897142 | T73: -2.820172042
A74: 16CW155 | B74: 478.029 | C74: U1516 | D74: C | E74: 33 | F74: R | G74: 3 | H74: W | I74: 115 | J74: 120 | K74: 3.576123724 | L74: -2.576468343 | S74: 3.576123724 | T74: -2.576468343
A75: 16CW156 | B75: 478.289 | C75: U1516 | D75: C | E75: 33 | F75: R | G75: 4 | H75: W | I75: 1 | J75: 6 | K75: 3.401594919 | L75: -2.858404995 | S75: 3.401594919 | T75: -2.858404995
A76: 16CW157 | B76: 478.559 | C76: U1516 | D76: C | E76: 33 | F76: R | G76: 4 | H76: W | I76: 28 | J76: 33 | K76: 3.824596569 | L76: -2.720288432 | M76: 3.787739157 | N76: -2.658543658 | Q76: 0.02606212622 | R76: 0.04366014868 | S76: 3.806167863 | T76: -2.689416045
A77: 16CW158 | B77: 478.809 | C77: U1516 | D77: C | E77: 33 | F77: R | G77: 4 | H77: W | I77: 53 | J77: 58 | K77: 3.615746848 | L77: -2.360510559 | S77: 3.615746848 | T77: -2.360510559
A78: 16CW159 | B78: 479.039 | C78: U1516 | D78: C | E78: 33 | F78: R | G78: 4 | H78: W | I78: 76 | J78: 81 | K78: 3.936833647 | L78: -1.906745479 | S78: 3.936833647 | T78: -1.906745479
A79: 16CW160 | B79: 479.309 | C79: U1516 | D79: C | E79: 33 | F79: R | G79: 5 | H79: W | I79: 2 | J79: 7 | K79: 3.909168642 | L79: -2.013647853 | S79: 3.909168642 | T79: -2.013647853
A80: 16CW161 | B80: 479.559 | C80: U1516 | D80: C | E80: 33 | F80: R | G80: 5 | H80: W | I80: 27 | J80: 32 | K80: 3.661629842 | L80: -2.05582729 | S80: 3.661629842 | T80: -2.05582729
A81: 16CW163 | B81: 479.809 | C81: U1516 | D81: C | E81: 33 | F81: R | G81: 5 | H81: W | I81: 52 | J81: 57 | K81: 3.471741594 | L81: -1.788401188 | S81: 3.471741594 | T81: -1.788401188
A82: 16CW162 | B82: 480.511 | C82: U1516 | D82: C | E82: 34 | F82: R | G82: 1 | H82: W | I82: 15 | J82: 20 | K82: 3.938618522 | L82: -2.038820749 | S82: 3.938618522 | T82: -2.038820749
A83: 16CW164 | B83: 480.776 | C83: U1516 | D83: C | E83: 34 | F83: R | G83: 1 | H83: W | I83: 41 | J83: 47 | K83: 3.184098236 | L83: -3.092456117 | S83: 3.184098236 | T83: -3.092456117
A84: 16CW165 | B84: 481.011 | C84: U1516 | D84: C | E84: 34 | F84: R | G84: 1 | H84: W | I84: 65 | J84: 70 | K84: 3.101618438 | L84: -2.700248268 | S84: 3.101618438 | T84: -2.700248268
A85: 16CW167 | B85: 481.511 | C85: U1516 | D85: C | E85: 34 | F85: R | G85: 1 | H85: W | I85: 115 | J85: 120 | K85: 3.317659449 | L85: -2.727630605 | S85: 3.317659449 | T85: -2.727630605
A86: 16CW168 | B86: 481.756 | C86: U1516 | D86: C | E86: 34 | F86: R | G86: 1 | H86: W | I86: 140 | J86: 144 | K86: 3.317638003 | L86: -2.934174502 | S86: 3.317638003 | T86: -2.934174502
A87: 16CW169 | B87: 481.941 | C87: U1516 | D87: C | E87: 34 | F87: R | G87: 2 | H87: W | I87: 10 | J87: 15 | K87: 2.908427554 | L87: -3.62378875 | S87: 2.908427554 | T87: -3.62378875
A88: 16CW170 | B88: 482.281 | C88: U1516 | D88: C | E88: 34 | F88: R | G88: 2 | H88: W | I88: 44 | J88: 49 | K88: 2.908269801 | L88: -2.909223986 | S88: 2.908269801 | T88: -2.909223986
A89: 16CW171 | B89: 482.511 | C89: U1516 | D89: C | E89: 34 | F89: R | G89: 2 | H89: W | I89: 67 | J89: 72 | K89: 2.976164598 | L89: -2.427712586 | S89: 2.976164598 | T89: -2.427712586
A90: 16CW172 | B90: 482.761 | C90: U1516 | D90: C | E90: 34 | F90: R | G90: 2 | H90: W | I90: 92 | J90: 97 | K90: 2.986956133 | L90: -2.513967496 | M90: 3.087149977 | N90: -2.467911242 | Q90: 0.07084774602 | R90: 0.03256668925 | S90: 3.037053055 | T90: -2.490939369
A91: 16CW173 | B91: 483.011 | C91: U1516 | D91: C | E91: 34 | F91: R | G91: 2 | H91: W | I91: 117 | J91: 122 | K91: 2.982945323 | L91: -1.953392424 | S91: 2.982945323 | T91: -1.953392424
A92: 16CW174 | B92: 483.261 | C92: U1516 | D92: C | E92: 34 | F92: R | G92: 3 | H92: W | I92: 3 | J92: 8 | K92: 2.834943244 | L92: -2.408653042 | S92: 2.834943244 | T92: -2.408653042
A93: 16CW175 | B93: 483.551 | C93: U1516 | D93: C | E93: 34 | F93: R | G93: 3 | H93: W | I93: 32 | J93: 37 | K93: 3.134819731 | L93: -3.032644813 | S93: 3.134819731 | T93: -3.032644813
A94: 16CW176 | B94: 483.731 | C94: U1516 | D94: C | E94: 34 | F94: R | G94: 3 | H94: W | I94: 50 | J94: 55 | K94: 2.822545048 | L94: -2.007960328 | S94: 2.822545048 | T94: -2.007960328
A95: 16CW177 | B95: 484.011 | C95: U1516 | D95: C | E95: 34 | F95: R | G95: 3 | H95: W | I95: 78 | J95: 83 | K95: 3.171480167 | L95: -2.080014527 | S95: 3.171480167 | T95: -2.080014527
A96: 16CW178 | B96: 484.261 | C96: U1516 | D96: C | E96: 34 | F96: R | G96: 4 | H96: W | I96: 0 | J96: 5 | K96: 3.219265899 | L96: -2.276467032 | S96: 3.219265899 | T96: -2.276467032
A97: 16CW179 | B97: 484.561 | C97: U1516 | D97: C | E97: 34 | F97: R | G97: 4 | H97: W | I97: 30 | J97: 35 | K97: 2.861769719 | L97: -2.648602577 | S97: 2.861769719 | T97: -2.648602577
A98: 16CW180 | B98: 484.761 | C98: U1516 | D98: C | E98: 34 | F98: R | G98: 4 | H98: W | I98: 50 | J98: 55 | K98: 3.166861942 | L98: -3.247296177 | S98: 3.166861942 | T98: -3.247296177
A99: 16CW181 | B99: 485.015 | C99: U1516 | D99: C | E99: 35 | F99: R | G99: 1 | H99: W | I99: 10 | J99: 15 | K99: 3.366929171 | L99: -3.325457382 | S99: 3.366929171 | T99: -3.325457382
A100: 16CW182 | B100: 485.265 | C100: U1516 | D100: C | E100: 35 | F100: R | G100: 1 | H100: W | I100: 35 | J100: 40 | K100: 3.525176189 | L100: -2.951184499 | S100: 3.525176189 | T100: -2.951184499
A101: 16CW183 | B101: 485.515 | C101: U1516 | D101: C | E101: 35 | F101: R | G101: 1 | H101: W | I101: 60 | J101: 65 | K101: 3.150783452 | L101: -3.127607068 | S101: 3.150783452 | T101: -3.127607068
A102: 16CW184 | B102: 485.765 | C102: U1516 | D102: C | E102: 35 | F102: R | G102: 1 | H102: W | I102: 85 | J102: 90 | K102: 3.455842461 | L102: -3.234774043 | S102: 3.455842461 | T102: -3.234774043
A103: 16CW185 | B103: 486.015 | C103: U1516 | D103: C | E103: 35 | F103: R | G103: 1 | H103: W | I103: 110 | J103: 115 | K103: 3.682709493 | L103: -2.692882942 | S103: 3.682709493 | T103: -2.692882942
A104: 16CW186 | B104: 486.265 | C104: U1516 | D104: C | E104: 35 | F104: R | G104: 1 | H104: W | I104: 135 | J104: 140 | K104: 3.415394149 | L104: -4.275457934 | S104: 3.415394149 | T104: -4.275457934
A105: 16CW187 | B105: 486.515 | C105: U1516 | D105: C | E105: 35 | F105: R | G105: 2 | H105: W | I105: 10 | J105: 15 | K105: 3.864374129 | L105: -2.374864461 | S105: 3.864374129 | T105: -2.374864461
A106: 16CW188 | B106: 486.765 | C106: U1516 | D106: C | E106: 35 | F106: R | G106: 2 | H106: W | I106: 35 | J106: 40 | K106: 3.823618577 | L106: -3.641853533 | S106: 3.823618577 | T106: -3.641853533
A107: 16CW189 | B107: 487.015 | C107: U1516 | D107: C | E107: 35 | F107: R | G107: 2 | H107: W | I107: 60 | J107: 65 | K107: 3.887837499 | L107: -4.321965274 | S107: 3.887837499 | T107: -4.321965274
A108: 16CW191 | B108: 487.515 | C108: U1516 | D108: C | E108: 35 | F108: R | G108: 2 | H108: W | I108: 110 | J108: 115 | K108: 4.729002648 | L108: -1.70579237 | S108: 4.729002648 | T108: -1.70579237
A109: 16CW192 | B109: 487.765 | C109: U1516 | D109: C | E109: 35 | F109: R | G109: 2 | H109: W | I109: 135 | J109: 140 | K109: 4.345942505 | L109: -1.369313049 | S109: 4.345942505 | T109: -1.369313049
A110: 16CW197 | B110: 489.015 | C110: U1516 | D110: C | E110: 35 | F110: R | G110: 4 | H110: W | I110: 2 | J110: 7 | K110: 4.966369194 | L110: 0.07621287429 | S110: 4.966369194 | T110: 0.07621287429
A111: 16CW199 | B111: 489.525 | C111: U1516 | D111: C | E111: 35 | F111: R | G111: 4 | H111: W | I111: 53 | J111: 58 | K111: 3.880992179 | L111: -2.75401313 | S111: 3.880992179 | T111: -2.75401313
A112: 16CW200 | B112: 489.795 | C112: U1516 | D112: C | E112: 36 | F112: R | G112: 1 | H112: W | I112: 15 | J112: 20 | K112: 3.886352759 | L112: -2.121645446 | S112: 3.886352759 | T112: -2.121645446
A113: 16CW201 | B113: 490.045 | C113: U1516 | D113: C | E113: 36 | F113: R | G113: 1 | H113: W | I113: 40 | J113: 45 | K113: 3.800090679 | L113: -2.917300951 | S113: 3.800090679 | T113: -2.917300951
A114: 16CW202 | B114: 490.295 | C114: U1516 | D114: C | E114: 36 | F114: R | G114: 1 | H114: W | I114: 65 | J114: 70 | K114: 3.425682921 | L114: -2.343195495 | S114: 3.425682921 | T114: -2.343195495
A115: 16CW204 | B115: 490.795 | C115: U1516 | D115: C | E115: 36 | F115: R | G115: 1 | H115: W | I115: 115 | J115: 120 | K115: 3.257141345 | L115: -3.499539273 | S115: 3.257141345 | T115: -3.499539273
A116: 16CW205 | B116: 491.045 | C116: U1516 | D116: C | E116: 36 | F116: R | G116: 1 | H116: W | I116: 140 | J116: 145 | K116: 3.491123665 | L116: -2.492090799 | S116: 3.491123665 | T116: -2.492090799
A117: 16CW207 | B117: 491.545 | C117: U1516 | D117: C | E117: 36 | F117: R | G117: 2 | H117: W | I117: 37 | J117: 42 | K117: 3.345736121 | L117: -2.227921178 | S117: 3.345736121 | T117: -2.227921178
A118: 16CW208 | B118: 491.795 | C118: U1516 | D118: C | E118: 36 | F118: R | G118: 2 | H118: W | I118: 62 | J118: 67 | K118: 3.37523236 | L118: -3.533018828 | S118: 3.37523236 | T118: -3.533018828
A119: 16CW209 | B119: 492.045 | C119: U1516 | D119: C | E119: 36 | F119: R | G119: 2 | H119: W | I119: 87 | J119: 92 | K119: 3.330265921 | L119: -2.328331543 | S119: 3.330265921 | T119: -2.328331543
A120: 16CW210 | B120: 492.295 | C120: U1516 | D120: C | E120: 36 | F120: R | G120: 2 | H120: W | I120: 112 | J120: 117 | K120: 2.206468298 | L120: -2.126095529 | S120: 2.206468298 | T120: -2.126095529
A121: 16CW216 | B121: 493.795 | C121: U1516 | D121: C | E121: 36 | F121: R | G121: 4 | H121: W | I121: 6 | J121: 11 | K121: 3.301813163 | L121: -1.084499188 | S121: 3.301813163 | T121: -1.084499188
A122: 16CW217 | B122: 494.045 | C122: U1516 | D122: C | E122: 36 | F122: R | G122: 4 | H122: W | I122: 31 | J122: 36 | K122: 3.558202692 | L122: -1.95012762 | S122: 3.558202692 | T122: -1.95012762
A123: 16CW223 | B123: 495.7794695 | C123: U1516 | D123: C | E123: 37 | F123: R | G123: 1 | H123: W | I123: 120 | J123: 125 | K123: 3.058590233 | L123: 1.197903263 | S123: 3.058590233 | T123: 1.197903263
A124: 16CW239 | B124: 507.625 | C124: U1516 | D124: C | E124: 38 | F124: R | G124: 4 | H124: W | I124: 123 | J124: 128 | K124: 3.551364149 | L124: -1.66160141 | S124: 3.551364149 | T124: -1.66160141
A125: 16CW240 | B125: 508.425 | C125: U1516 | D125: C | E125: 38 | F125: R | G125: 5 | H125: W | I125: 68 | J125: 73 | K125: 2.929745802 | L125: -1.994453785 | S125: 2.929745802 | T125: -1.994453785
A126: 16CW242 | B126: 513.225 | C126: U1516 | D126: C | E126: 39 | F126: R | G126: 1 | H126: W | I126: 40 | J126: 45 | K126: 3.350343906 | L126: -1.748755513 | S126: 3.350343906 | T126: -1.748755513
A127: 16CW244 | B127: 522.825 | C127: U1516 | D127: C | E127: 40 | F127: R | G127: 1 | H127: W | I127: 40 | J127: 45 | K127: 3.072322819 | L127: -1.506742052 | S127: 3.072322819 | T127: -1.506742052
A128: 16CW245 | B128: 523.625 | C128: U1516 | D128: C | E128: 40 | F128: R | G128: 1 | H128: W | I128: 120 | J128: 125 | K128: 2.909594422 | L128: -2.098548455 | S128: 2.909594422 | T128: -2.098548455
A129: 16CW246 | B129: 524.405 | C129: U1516 | D129: C | E129: 40 | F129: R | G129: 2 | H129: W | I129: 47 | J129: 52 | K129: 2.329299687 | L129: -2.142403182 | S129: 2.329299687 | T129: -2.142403182
A130: 16CW248 | B130: 526.025 | C130: U1516 | D130: C | E130: 40 | F130: R | G130: 3 | H130: W | I130: 56 | J130: 61 | K130: 2.649714253 | L130: -1.769196624 | S130: 2.649714253 | T130: -1.769196624
A131: 16CW249 | B131: 526.825 | C131: U1516 | D131: C | E131: 40 | F131: R | G131: 4 | H131: W | I131: 18 | J131: 23 | K131: 2.676733154 | L131: -1.761976681 | S131: 2.676733154 | T131: -1.761976681
A132: 16CW250 | B132: 527.625 | C132: U1516 | D132: C | E132: 40 | F132: R | G132: 4 | H132: W | I132: 98 | J132: 103 | K132: 2.939576006 | L132: -1.758614719 | S132: 2.939576006 | T132: -1.758614719
A133: 16CW251 | B133: 528.425 | C133: U1516 | D133: C | E133: 40 | F133: R | G133: 5 | H133: W | I133: 24 | J133: 29 | K133: 2.976357726 | L133: -1.566729728 | S133: 2.976357726 | T133: -1.566729728
A134: 16CW252 | B134: 529.225 | C134: U1516 | D134: C | E134: 40 | F134: R | G134: 5 | H134: W | I134: 104 | J134: 109 | K134: 3.136548028 | L134: -1.524573697 | S134: 3.136548028 | T134: -1.524573697
A135: 16CW253 | B135: 530.025 | C135: U1516 | D135: C | E135: 40 | F135: R | G135: 6 | H135: W | I135: 31 | J135: 36 | K135: 2.848202304 | L135: -1.552223633 | S135: 2.848202304 | T135: -1.552223633
A136: 16CW254 | B136: 530.825 | C136: U1516 | D136: C | E136: 40 | F136: R | G136: 7 | H136: W | I136: 6 | J136: 11 | K136: 3.096685273 | L136: -1.666259651 | S136: 3.096685273 | T136: -1.666259651
A137: 16CW255 | B137: 532.455 | C137: U1516 | D137: C | E137: 41 | F137: R | G137: 1 | H137: W | I137: 43 | J137: 48 | K137: 2.962793938 | L137: -2.097301271 | M137: 2.988184486 | N137: -2.121107897 | Q137: 0.01795382872 | R137: 0.01683382675 | S137: 2.975489212 | T137: -2.109204584
A138: 16CW256 | B138: 533.185 | C138: U1516 | D138: C | E138: 41 | F138: R | G138: 1 | H138: W | I138: 116 | J138: 121 | K138: 2.897715137 | L138: -1.64453574 | S138: 2.897715137 | T138: -1.64453574
A139: 16CW257 | B139: 534.025 | C139: U1516 | D139: C | E139: 41 | F139: R | G139: 2 | H139: W | I139: 53 | J139: 58 | K139: 3.168086442 | L139: -1.581166941 | S139: 3.168086442 | T139: -1.581166941
A140: 16CW258 | B140: 534.825 | C140: U1516 | D140: C | E140: 41 | F140: R | G140: 2 | H140: W | I140: 133 | J140: 138 | K140: 3.357783471 | L140: -1.952823085 | S140: 3.357783471 | T140: -1.952823085
A141: 13CW009 | B141: 220.025 | C141: U1513 | D141: D | E141: 15 | F141: R | G141: 1 | H141: W | I141: 20 | J141: 25 | K141: 2.839159817 | L141: -3.145140554 | S141: 2.839159817 | T141: -3.145140554
A142: 13CW010 | B142: 220.825 | C142: U1513 | D142: D | E142: 15 | F142: R | G142: 1 | H142: W | I142: 100 | J142: 105 | K142: 2.980142542 | L142: -3.025290088 | S142: 2.980142542 | T142: -3.025290088
A143: 13CW012 | B143: 221.625 | C143: U1513 | D143: D | E143: 15 | F143: R | G143: 2 | H143: W | I143: 41 | J143: 46 | K143: 2.80498569 | L143: -3.412454527 | S143: 2.80498569 | T143: -3.412454527
A144: 13CW014 | B144: 223.225 | C144: U1513 | D144: D | E144: 15 | F144: R | G144: 3 | H144: W | I144: 61 | J144: 66 | K144: 3.157264293 | L144: -3.447552518 | M144: 3.145963591 | N144: -3.417495879 | Q144: 0.007990802761 | R144: 0.02125325322 | S144: 3.151613942 | T144: -3.432524199
A145: 13CW015 | B145: 224.015 | C145: U1513 | D145: D | E145: 15 | F145: R | G145: 3 | H145: W | I145: 140 | J145: 145 | K145: 3.116549682 | L145: -3.653322948 | M145: 3.141349871 | N145: -3.626246102 | Q145: 0.01753638195 | R145: 0.01914622121 | S145: 3.128949777 | T145: -3.639784525
A146: 13CW017 | B146: 225.625 | C146: U1513 | D146: D | E146: 15 | F146: R | G146: 5 | H146: W | I146: 42 | J146: 47 | K146: 3.574237413 | L146: -3.367958006 | S146: 3.574237413 | T146: -3.367958006
A147: 13CW018 | B147: 226.425 | C147: U1513 | D147: D | E147: 15 | F147: R | G147: 6 | H147: W | I147: 10 | J147: 15 | K147: 4.052810559 | L147: -2.777456767 | S147: 4.052810559 | T147: -2.777456767
A148: 13CW019 | B148: 227.225 | C148: U1513 | D148: D | E148: 15 | F148: R | G148: 6 | H148: W | I148: 90 | J148: 95 | K148: 3.530650799 | L148: -3.336380135 | S148: 3.530650799 | T148: -3.336380135
A149: 13CW021 | B149: 229.645 | C149: U1513 | D149: D | E149: 16 | F149: R | G149: 1 | H149: W | I149: 22 | J149: 27 | K149: 3.410291932 | L149: -3.48824066 | S149: 3.410291932 | T149: -3.48824066
A150: 13CW022 | B150: 230.445 | C150: U1513 | D150: D | E150: 16 | F150: R | G150: 1 | H150: W | I150: 102 | J150: 107 | K150: 3.795376444 | L150: -3.134427418 | S150: 3.795376444 | T150: -3.134427418
A151: 13CW024 | B151: 232.025 | C151: U1513 | D151: D | E151: 16 | F151: R | G151: 3 | H151: W | I151: 30 | J151: 35 | K151: 3.506978465 | L151: -3.751325613 | S151: 3.506978465 | T151: -3.751325613
A152: 13CW025 | B152: 232.875 | C152: U1513 | D152: D | E152: 16 | F152: R | G152: 4 | H152: W | I152: 10 | J152: 15 | K152: 3.283545245 | L152: -3.439893653 | S152: 3.283545245 | T152: -3.439893653
A153: 13CW026 | B153: 233.625 | C153: U1513 | D153: D | E153: 16 | F153: R | G153: 4 | H153: W | I153: 85 | J153: 90 | K153: 3.379526744 | L153: -3.155891196 | S153: 3.379526744 | T153: -3.155891196
A154: 13CW028 | B154: 234.425 | C154: U1513 | D154: D | E154: 17 | F154: R | G154: 1 | H154: W | I154: 20 | J154: 25 | K154: 3.51518971 | L154: -3.264174699 | S154: 3.51518971 | T154: -3.264174699
A155: 13CW029 | B155: 235.225 | C155: U1513 | D155: D | E155: 17 | F155: R | G155: 1 | H155: W | I155: 100 | J155: 105 | K155: 3.232156578 | L155: -3.623869104 | S155: 3.232156578 | T155: -3.623869104
A156: 13CW031 | B156: 236.825 | C156: U1513 | D156: D | E156: 17 | F156: R | G156: 3 | H156: W | I156: 7 | J156: 12 | K156: 2.896134437 | L156: -3.176580338 | M156: 2.864566398 | N156: -3.338311828 | Q156: 0.02232197423 | R156: 0.1143614331 | S156: 2.880350417 | T156: -3.257446083
A157: 13CW033 | B157: 237.625 | C157: U1513 | D157: A | E157: 43 | F157: X | G157: 1 | H157: W | I157: 61 | J157: 64 | K157: 3.428429372 | L157: -3.177948539 | M157: 3.452968658 | N157: -3.143117264 | Q157: 0.01735189517 | R157: 0.0246294307 | S157: 3.440699015 | T157: -3.160532902
A158: 13CW034 | B158: 238.425 | C158: U1513 | D158: D | E158: 17 | F158: R | G158: 4 | H158: W | I158: 45 | J158: 50 | K158: 3.262587127 | L158: -3.550298348 | S158: 3.262587127 | T158: -3.550298348
A159: 13CW035 | B159: 240.030182 | C159: U1513 | D159: D | E159: 18 | F159: R | G159: 1 | H159: W | I159: 99 | J159: 104 | K159: 3.081462564 | L159: -3.132054356 | S159: 3.081462564 | T159: -3.132054356
A160: 13CW036 | B160: 240.340182 | C160: U1513 | D160: D | E160: 18 | F160: R | G160: 1 | H160: W | I160: 130 | J160: 135 | K160: 3.052471986 | L160: -3.796575227 | S160: 3.052471986 | T160: -3.796575227
A161: 13CW037 | B161: 240.630182 | C161: U1513 | D161: D | E161: 18 | F161: R | G161: 2 | H161: W | I161: 23 | J161: 28 | K161: 3.186395636 | L161: -3.315358754 | S161: 3.186395636 | T161: -3.315358754
A162: 13CW038 | B162: 240.930182 | C162: U1513 | D162: D | E162: 18 | F162: R | G162: 2 | H162: W | I162: 53 | J162: 58 | K162: 3.251266067 | L162: -3.591586502 | S162: 3.251266067 | T162: -3.591586502
A163: 13CW039 | B163: 241.230182 | C163: U1513 | D163: D | E163: 18 | F163: R | G163: 2 | H163: W | I163: 83 | J163: 88 | K163: 3.372635382 | L163: -3.408727248 | S163: 3.372635382 | T163: -3.408727248
A164: 13CW040 | B164: 241.530182 | C164: U1513 | D164: D | E164: 18 | F164: R | G164: 2 | H164: W | I164: 113 | J164: 118 | K164: 3.263023119 | L164: -3.471824473 | S164: 3.263023119 | T164: -3.471824473
A165: 13CW041 | B165: 241.830182 | C165: U1513 | D165: D | E165: 18 | F165: R | G165: 2 | H165: W | I165: 143 | J165: 148 | K165: 3.010194909 | L165: -3.08185996 | S165: 3.010194909 | T165: -3.08185996
A166: 13CW042 | B166: 242.130182 | C166: U1513 | D166: D | E166: 18 | F166: R | G166: 3 | H166: W | I166: 23 | J166: 28 | K166: 3.144629705 | L166: -3.468685118 | S166: 3.144629705 | T166: -3.468685118
A167: 13CW043 | B167: 242.430182 | C167: U1513 | D167: D | E167: 18 | F167: R | G167: 3 | H167: W | I167: 53 | J167: 58 | K167: 3.222705519 | L167: -3.404896321 | S167: 3.222705519 | T167: -3.404896321
A168: 13CW044 | B168: 242.730182 | C168: U1513 | D168: D | E168: 18 | F168: R | G168: 3 | H168: W | I168: 83 | J168: 88 | K168: 3.358645238 | L168: -3.836290337 | S168: 3.358645238 | T168: -3.836290337
A169: 13CW045 | B169: 243.030182 | C169: U1513 | D169: D | E169: 18 | F169: R | G169: 3 | H169: W | I169: 113 | J169: 118 | K169: 3.652341471 | L169: -3.426086728 | S169: 3.652341471 | T169: -3.426086728
A170: 13CW046 | B170: 243.330182 | C170: U1513 | D170: D | E170: 18 | F170: R | G170: 3 | H170: W | I170: 143 | J170: 148 | K170: 4.013114787 | L170: -3.052830369 | S170: 4.013114787 | T170: -3.052830369
A171: 13CW049 | B171: 244.225 | C171: U1513 | D171: D | E171: 19 | F171: R | G171: 1 | H171: W | I171: 40 | J171: 45 | K171: 3.841718442 | L171: -4.587110225 | M171: 4.020021888 | N171: -4.396913117 | Q171: 0.1260795757 | R171: 0.1344896651 | S171: 3.930870165 | T171: -4.492011671
A172: 13CW094 | B172: 247.837 | C172: U1513 | D172: A | E172: 45 | F172: X | G172: 3 | H172: W | I172: 17 | J172: 20 | K172: 3.78202275 | L172: -2.713583475 | S172: 3.78202275 | T172: -2.713583475
A173: 13CW099 | B173: 248.077 | C173: U1513 | D173: A | E173: 45 | F173: X | G173: 3 | H173: W | I173: 40 | J173: 45 | K173: 3.672317223 | L173: -2.785064523 | S173: 3.672317223 | T173: -2.785064523
A174: 13CW101 | B174: 248.725 | C174: U1513 | D174: D | E174: 20 | F174: R | G174: 1 | H174: W | I174: 10 | J174: 15 | K174: 3.27135671 | L174: -3.353798303 | S174: 3.27135671 | T174: -3.353798303
A175: 13CW102 | B175: 249.025 | C175: U1513 | D175: D | E175: 20 | F175: R | G175: 1 | H175: W | I175: 40 | J175: 45 | K175: 3.855509716 | L175: -2.498482234 | S175: 3.855509716 | T175: -2.498482234
A176: 13CW103 | B176: 249.325 | C176: U1513 | D176: D | E176: 20 | F176: R | G176: 1 | H176: W | I176: 70 | J176: 75 | K176: 3.340453201 | L176: -3.054558969 | S176: 3.340453201 | T176: -3.054558969
A177: 13CW104 | B177: 249.625 | C177: U1513 | D177: D | E177: 20 | F177: R | G177: 1 | H177: W | I177: 100 | J177: 105 | K177: 3.438171936 | L177: -3.267898611 | S177: 3.438171936 | T177: -3.267898611
A178: 13CW105 | B178: 249.925 | C178: U1513 | D178: D | E178: 20 | F178: R | G178: 1 | H178: W | I178: 130 | J178: 135 | K178: 3.413875995 | L178: -3.005291944 | S178: 3.413875995 | T178: -3.005291944
A179: 13CW106 | B179: 250.225 | C179: U1513 | D179: D | E179: 20 | F179: R | G179: 2 | H179: W | I179: 10 | J179: 15 | K179: 3.456667373 | L179: -2.688561532 | S179: 3.456667373 | T179: -2.688561532
A180: 13CW108 | B180: 250.525 | C180: U1513 | D180: D | E180: 20 | F180: R | G180: 2 | H180: W | I180: 40 | J180: 45 | K180: 3.622873516 | L180: -3.04155057 | S180: 3.622873516 | T180: -3.04155057
A181: 13CW110 | B181: 250.825 | C181: U1513 | D181: D | E181: 20 | F181: R | G181: 2 | H181: W | I181: 70 | J181: 75 | K181: 3.435221633 | L181: -2.571288263 | S181: 3.435221633 | T181: -2.571288263
A182: 13CW112 | B182: 251.125 | C182: U1513 | D182: D | E182: 20 | F182: R | G182: 2 | H182: W | I182: 100 | J182: 105 | K182: 3.965639566 | L182: -2.226451467 | S182: 3.965639566 | T182: -2.226451467
A183: 13CW114 | B183: 251.375 | C183: U1513 | D183: D | E183: 20 | F183: R | G183: 2 | H183: W | I183: 125 | J183: 130 | K183: 3.612745785 | L183: -2.711152137 | S183: 3.612745785 | T183: -2.711152137
A184: 13CW116 | B184: 251.675 | C184: U1513 | D184: D | E184: 20 | F184: R | G184: 3 | H184: W | I184: 5 | J184: 10 | K184: 3.491184367 | L184: -2.9492506 | S184: 3.491184367 | T184: -2.9492506
A185: 13CW107 | B185: 251.685 | C185: U1513 | D185: A | E185: 46 | F185: X | G185: 1 | H185: W | I185: 104 | J185: 109 | K185: 3.642257232 | L185: -3.052415234 | S185: 3.642257232 | T185: -3.052415234
A186: 13CW109 | B186: 251.985 | C186: U1513 | D186: A | E186: 46 | F186: X | G186: 1 | H186: W | I186: 131 | J186: 136 | K186: 3.448083143 | L186: -3.089819462 | S186: 3.448083143 | T186: -3.089819462
A187: 13CW111 | B187: 252.285 | C187: U1513 | D187: A | E187: 46 | F187: X | G187: 2 | H187: W | I187: 14 | J187: 19 | K187: 3.203942395 | L187: -2.835493656 | S187: 3.203942395 | T187: -2.835493656
A188: 13CW113 | B188: 252.585 | C188: U1513 | D188: A | E188: 46 | F188: X | G188: 2 | H188: W | I188: 44 | J188: 49 | K188: 3.643229325 | L188: -2.41102108 | S188: 3.643229325 | T188: -2.41102108
A189: 13CW115 | B189: 252.885 | C189: U1513 | D189: A | E189: 46 | F189: X | G189: 2 | H189: W | I189: 74 | J189: 79 | K189: 3.458630844 | L189: -2.823399245 | S189: 3.458630844 | T189: -2.823399245
A190: 13CW117 | B190: 253.185 | C190: U1513 | D190: A | E190: 46 | F190: X | G190: 2 | H190: W | I190: 104 | J190: 109 | K190: 3.253988048 | L190: -2.824934459 | S190: 3.253988048 | T190: -2.824934459
A191: 13CW118 | B191: 253.445 | C191: U1513 | D191: A | E191: 46 | F191: X | G191: 2 | H191: W | I191: 130 | J191: 135 | K191: 3.624926402 | L191: -3.209339094 | M191: 3.68883659 | N191: -3.14841328 | Q191: 0.04519132755 | R191: 0.04308105595 | S191: 3.656881496 | T191: -3.178876187
A192: 13CW120 | B192: 253.765 | C192: U1513 | D192: A | E192: 46 | F192: X | G192: 3 | H192: W | I192: 11 | J192: 16 | K192: 3.688518275 | L192: -3.124061719 | M192: 3.607674109 | N192: -3.100754627 | O192: 3.611351531 | P192: -3.002492187 | Q192: 0.04565086521 | R192: 0.06452115757 | S192: 3.635847972 | T192: -3.075769511
A193: 13CW121 | B193: 254.085 | C193: U1513 | D193: A | E193: 46 | F193: X | G193: 3 | H193: W | I193: 43 | J193: 48 | K193: 3.793783402 | L193: -2.851279272 | S193: 3.793783402 | T193: -2.851279272
A194: 13CW122 | B194: 254.365 | C194: U1513 | D194: A | E194: 46 | F194: X | G194: 3 | H194: W | I194: 71 | J194: 76 | K194: 3.555791439 | L194: -2.496497599 | S194: 3.555791439 | T194: -2.496497599
A195: 13CW123 | B195: 255.3207068 | C195: U1513 | D195: A | E195: 47 | F195: X | G195: 1 | H195: W | I195: 5 | J195: 10 | K195: 3.545725679 | L195: -2.643203919 | S195: 3.545725679 | T195: -2.643203919
A196: 13CW124 | B196: 255.6207059 | C196: U1513 | D196: A | E196: 47 | F196: X | G196: 1 | H196: W | I196: 35 | J196: 40 | K196: 3.776922775 | L196: -2.37327172 | S196: 3.776922775 | T196: -2.37327172
A197: 13CW125 | B197: 255.920705 | C197: U1513 | D197: A | E197: 47 | F197: X | G197: 1 | H197: W | I197: 65 | J197: 70 | K197: 3.607002275 | L197: -2.39232006 | S197: 3.607002275 | T197: -2.39232006
A198: 13CW126 | B198: 256.2207041 | C198: U1513 | D198: A | E198: 47 | F198: X | G198: 1 | H198: W | I198: 95 | J198: 100 | K198: 3.780481077 | L198: -2.95087956 | S198: 3.780481077 | T198: -2.95087956
A199: 13CW127 | B199: 256.5207032 | C199: U1513 | D199: A | E199: 47 | F199: X | G199: 1 | H199: W | I199: 125 | J199: 130 | K199: 3.618428468 | L199: -2.599838822 | S199: 3.618428468 | T199: -2.599838822
A200: 13CW128 | B200: 256.8207023 | C200: U1513 | D200: A | E200: 47 | F200: X | G200: 2 | H200: W | I200: 5 | J200: 10 | K200: 3.857385813 | L200: -2.456913775 | S200: 3.857385813 | T200: -2.456913775
... 56 more rows

Sheet Benthic foram isotopes
A1: Long sample name | B1: Depth (mbsf) | C1: Species | D1: No of specimens | E1: δ13C (‰) VPDB | F1: δ18O (‰) VPDB | G1: Depth CCSF-M | H1: Data source
A2: U1516C-26R-4, 112-115 cm | C2: Lenticulina sp. | E2: 0.7778781056 | F2: -1.069931436 | G2: 431.63 | H2: Petrizzo (2021)
A3: U1516C-26R-4, 130-133 cm | C3: Gavelinellinae | E3: 1.658513904 | F3: -0.5648119926 | G3: 431.81 | H3: Petrizzo (2021)
A4: U1516C-26R-4, 130-133 cm | C4: Lenticulina sp. | E4: 0.9530413151 | F4: -0.9755695343 | G4: 431.81 | H4: Petrizzo (2021)
A5: U1516C-26R-4, 130-133 cm | C5: Lenticulina sp. | E5: 3.075541258 | F5: -1.345888543 | G5: 431.81 | H5: Petrizzo (2021)
A6: U1516C-26R-5, 80-83 cm | C6: Lenticulina sp. | E6: 0.8325993419 | F6: -1.141052175 | G6: 432.72 | H6: Petrizzo (2021)
A7: U1516C-27R-1, 7-10 cm | C7: Gavelinellinae | E7: 2.227481586 | F7: -0.3225906312 | G7: 436.07 | H7: Petrizzo (2021)
A8: U1516C-27R-2, 19-22 cm | C8: Lenticulina sp. | E8: 0.85231179 | F8: -1.380744147 | G8: 437.61 | H8: Petrizzo (2021)
A9: U1516C-27R-2, 19-22 cm | C9: Lenticulina sp. | E9: 1.521257281 | F9: -1.111796069 | G9: 437.61 | H9: Petrizzo (2021)
A10: U1516C-27R-4, 58-61 cm | C10: Lenticulina sp. | E10: 1.679196191 | F10: -0.8828078032 | G10: 440.96 | H10: Petrizzo (2021)
A11: U1516C-28R-5, 70-73 cm | C11: Gavelinellinae | E11: 1.746241065 | F11: -1.344411981 | G11: 451.57 | H11: Petrizzo (2021)
A12: U1516C-28R-5, 70-73 cm | C12: Nuttallides sp. | E12: 1.710921737 | F12: -1.032711935 | G12: 451.57 | H12: Petrizzo (2021)
A13: U1516C-29R-1, 120-123 cm | C13: Gavelinellinae | E13: 2.117556425 | F13: -0.6508723021 | G13: 456.4 | H13: Petrizzo (2021)
A14: U1516C-29R-3, 50-53 cm | C14: Gavelinellinae | E14: 2.416257191 | F14: -0.9054476261 | G14: 457.65 | H14: Petrizzo (2021)
A15: U1516D-2R-1, 10-13 cm | C15: Gavelinellinae | E15: 2.334892921 | F15: -1.109431855 | G15: 458.4037223 | H15: Petrizzo (2021)
A16: U1516D-2R-1, 10-13 cm | C16: Lenticulina sp. | E16: 0.8066528956 | F16: -1.631765119 | G16: 458.4037223 | H16: Petrizzo (2021)
A17: U1516D-2R-1, 10-13 cm | C17: Lenticulina sp. | E17: 1.010075442 | F17: -1.640258423 | G17: 458.4037223 | H17: Petrizzo (2021)
A18: U1516D-2R-1W-10-13 | B18: 458.1 | C18: Cibicides complanata | D18: 5 | E18: 2.362309556 | F18: -1.013807375 | G18: 458.4037223 | H18: This study
A19: U1516D-2R-1W-10-13 | B19: 458.1 | C19: Gaudryina australis | D19: 3 | E19: 3.595215488 | F19: -1.384097616 | G19: 458.4037223 | H19: This study
A20: U1516D-2R-1W-10-13 | B20: 458.1 | C20: Gyroidinoides lenticulus | D20: 5 | E20: 2.150358002 | F20: -0.9603446635 | G20: 458.4037223 | H20: This study
A21: U1516D-2R-1W-10-13 | B21: 458.1 | C21: Gyroidinoides quadratus | D21: 2 | E21: 3.036859146 | F21: -1.155845131 | G21: 458.4037223 | H21: This study
A22: U1516D-2R-1W-10-13 | B22: 458.1 | C22: Lenticulina | D22: 1 | E22: 1.05388895 | F22: -1.392982533 | G22: 458.4037223 | H22: This study
A23: U1516D-2R-1W-10-13 | B23: 458.1 | C23: Osangularia utaturensis | D23: 5 | E23: 2.49347919 | F23: -1.29676636 | G23: 458.4037223 | H23: This study
A24: U1516D-2R-1W-10-13 | B24: 458.1 | C24: Praebulimina nannina | D24: 8 | E24: 2.139492731 | F24: -0.6989541914 | G24: 458.4037223 | H24: This study
A25: U1516C-29R-4, 35-38 cm | C25: Gavelinellinae | E25: 2.358681107 | F25: -0.9057188034 | G25: 458.64 | H25: Petrizzo (2021)
A26: U1516C-29R-4, 35-38 cm | C26: Gavelinellinae | E26: 2.371409798 | F26: -1.015697837 | G26: 458.64 | H26: Petrizzo (2021)
A27: U1516D-2R-1, 70-73 cm | C27: Gavelinellinae | E27: 2.260692529 | F27: -1.194057576 | G27: 459.004 | H27: Petrizzo (2021)
A28: U1516D-2R-1W-70-73 | B28: 458.7 | C28: Cibicides complanata | D28: 2 | E28: 2.077528698 | F28: -0.9658539661 | G28: 459.004 | H28: This study
A29: U1516D-2R-1W-70-73 | B29: 458.7 | C29: Gyroidinoides lenticulus | D29: 3 | E29: 2.764002172 | F29: -0.7959613796 | G29: 459.004 | H29: This study
A30: U1516D-2R-1W-70-73 | B30: 458.7 | C30: Gyroidinoides quadratus | D30: 8 | E30: 2.431221359 | F30: -1.2661771 | G30: 459.004 | H30: This study
A31: U1516D-2R-1W-70-73 | B31: 458.7 | C31: Lenticulina | D31: 2 | E31: 1.093678487 | F31: -1.308051977 | G31: 459.004 | H31: This study
A32: U1516D-2R-1W-70-73 | B32: 458.7 | C32: Osangularia utaturensis | D32: 4 | E32: 2.40522833 | F32: -1.339294818 | G32: 459.004 | H32: This study
A33: U1516D-2R-1W-70-73 | B33: 458.7 | C33: Praebulimina nannina | D33: 8 | E33: 2.442969358 | F33: -0.9406512213 | G33: 459.004 | H33: This study
A34: U1516C-30R-1, 10-13 cm | C34: Gavelinellinae | E34: 2.197198085 | F34: -1.139243833 | G34: 459.3171839 | H34: Petrizzo (2021)
A35: U1516C-30R-1, 10-13 cm | C35: Nuttallides sp. | E35: 2.23 | F35: -0.96 | G35: 459.3171839 | H35: Petrizzo (2021)
A36: U1516D-2R-3W-22-25 | B36: 460.11 | C36: Cibicides complanata | D36: 2 | E36: 2.447030645 | F36: -0.9877277758 | G36: 460.414 | H36: This study
A37: U1516D-2R-3, 100-103 cm | C37: Gavelinellinae | E37: 2.248625499 | F37: -1.004257989 | G37: 461.1939438 | H37: Petrizzo (2021)
A38: U1516D-2R-3, 100-103 cm | C38: Lenticulina sp. | E38: 1.891282183 | F38: -1.483926368 | G38: 461.1939438 | H38: Petrizzo (2021)
A39: U1516D-2R-3W-100-103 | B39: 460.89 | C39: Cibicides complanata | D39: 2 | E39: 2.102669153 | F39: -0.9890694888 | G39: 461.1939438 | H39: This study
A40: U1516D-2R-3W-100-103 | B40: 460.89 | C40: Gaudryina australis | D40: 3 | E40: 3.54552513 | F40: -1.65037339 | G40: 461.1939438 | H40: This study
A41: U1516D-2R-3W-100-103 | B41: 460.89 | C41: Gyroidinoides quadratus | D41: 6 | E41: 3.181664717 | F41: -1.264916 | G41: 461.1939438 | H41: This study
A42: U1516D-2R-3W-100-103 | B42: 460.89 | C42: Lenticulina | D42: 1 | E42: 1.303544867 | F42: -1.487818425 | G42: 461.1939438 | H42: This study
A43: U1516D-2R-4W-20-23 | B43: 461.21 | C43: Cibicides complanata | D43: 2 | E43: 2.082743439 | F43: -1.262082923 | G43: 461.513654 | H43: This study
A44: U1516D-2R-4W-20-23 | B44: 461.21 | C44: Gaudryina australis | D44: 3 | E44: 3.494559492 | F44: -1.746873773 | G44: 461.513654 | H44: This study
A45: U1516D-2R-4W-20-23 | B45: 461.21 | C45: Gyroidinoides lenticulus | D45: 6 | E45: 2.042951064 | F45: -1.160229012 | G45: 461.513654 | H45: This study
A46: U1516D-2R-4W-20-23 | B46: 461.21 | C46: Gyroidinoides quadratus | D46: 5 | E46: 2.645996031 | F46: -1.348277972 | G46: 461.513654 | H46: This study
A47: U1516D-2R-4W-20-23 | B47: 461.21 | C47: Lenticulina | D47: 1 | E47: 0.775300852 | F47: -1.74376908 | G47: 461.513654 | H47: This study
A48: U1516D-2R-4W-80-83 | B48: 461.81 | C48: Gaudryina australis | D48: 3 | E48: 3.477156428 | F48: -1.626125438 | G48: 462.26 | H48: This study
A49: U1516D-2R-4W-80-83 | B49: 461.81 | C49: Gyroidinoides lenticulus | D49: 6 | E49: 1.866237782 | F49: -1.153565822 | G49: 462.26 | H49: This study
A50: U1516D-2R-4W-80-83 | B50: 461.81 | C50: Gyroidinoides quadratus | D50: 7 | E50: 2.086309322 | F50: -1.342568153 | G50: 462.26 | H50: This study
A51: U1516D-2R-4W-80-83 | B51: 461.81 | C51: Lenticulina | D51: 1 | E51: 1.509549763 | F51: -1.27365488 | G51: 462.26 | H51: This study
A52: U1516D-2R-4W-80-83 | B52: 461.81 | C52: Osangularia utaturensis | D52: 5 | E52: 2.133652702 | F52: -1.356171347 | G52: 462.26 | H52: This study
A53: U1516D-2R-4W-80-83 | B53: 461.81 | C53: Tappanina laciniosa | D53: 8 | E53: 2.190262759 | F53: -1.122872212 | G53: 462.26 | H53: This study
A54: U1516C-30R-4, 52-55 cm | C54: Lenticulina sp. | E54: 1.103999758 | F54: -1.839731717 | G54: 464.0770425 | H54: Petrizzo (2021)
A55: U1516C-30R-4, 52-55 cm | C55: Lenticulina sp. | E55: 2.263662124 | F55: -1.16319325 | G55: 464.0770425 | H55: Petrizzo (2021)
A56: U1516D-3R-1, 121-123 cm | C56: Gavelinellinae | E56: 2.066545896 | F56: -1.430879466 | G56: 464.141 | H56: Petrizzo (2021)
A57: U1516D-3R-1W-121-123 | B57: 463.71 | C57: Cibicides complanata | D57: 3 | E57: 2.208775648 | F57: -1.21268306 | G57: 464.141 | H57: This study
A58: U1516D-3R-1W-121-123 | B58: 463.71 | C58: Gaudryina australis | D58: 2 | E58: 3.366146483 | F58: -1.854210895 | G58: 464.141 | H58: This study
A59: U1516D-3R-1W-121-123 | B59: 463.71 | C59: Gyroidinoides lenticulus | D59: 4 | G59: 464.141 | H59: This study
A60: U1516D-3R-1W-121-123 | B60: 463.71 | C60: Gyroidinoides quadratus | D60: 2 | G60: 464.141 | H60: This study
A61: U1516D-3R-1W-121-123 | B61: 463.71 | C61: Lenticulina | D61: 1 | E61: 2.165902921 | F61: -1.184633812 | G61: 464.141 | H61: This study
A62: U1516D-3R-1W-121-123 | B62: 463.71 | C62: Tappanina laciniosa | D62: 2 | G62: 464.141 | H62: This study
A63: U1516D-3R-2, 15-18 cm | C63: Gavelinellinae | E63: 2.237117461 | F63: -1.418652646 | G63: 464.391 | H63: Petrizzo (2021)
A64: U1516D-3R-2W-15-18 | B64: 463.96 | C64: Cibicides complanata | D64: 2 | E64: 2.263713297 | F64: -1.259506323 | G64: 464.391 | H64: This study
A65: U1516D-3R-2W-15-18 | B65: 463.96 | C65: Gyroidinoides lenticulus | D65: 2 | G65: 464.391 | H65: This study
A66: U1516D-3R-2W-15-18 | B66: 463.96 | C66: Lenticulina | D66: 1 | E66: 0.8021682964 | F66: -1.854563414 | G66: 464.391 | H66: This study
A67: U1516D-3R-2W-15-18 | B67: 463.96 | C67: Praebulimina nannina | D67: 5 | E67: -5.029744366 | F67: -2.318377121 | G67: 464.391 | H67: This study
A68: U1516D-3R-2W-15-18 | B68: 463.96 | C68: Tappanina laciniosa | D68: 5 | G68: 464.391 | H68: This study
A69: U1516C-31R-1, 60-63 cm | C69: Lenticulina sp. | E69: 1.547638965 | F69: -1.516764951 | G69: 465.224 | H69: Petrizzo (2021)
A70: U1516C-31R-1, 60-63 cm | C70: Lenticulina sp. | E70: 1.734637928 | F70: -1.565178466 | G70: 465.224 | H70: Petrizzo (2021)
A71: U1516C-31R-1, 60-63 cm | C71: Lenticulina sp. | E71: 1.937844348 | F71: -1.483757329 | G71: 465.224 | H71: Petrizzo (2021)
A72: U1516C-31R-1, 60-63 cm | C72: Lenticulina sp. | E72: 2.308733058 | F72: -1.445036721 | G72: 465.224 | H72: Petrizzo (2021)
A73: U1516D-3R-2W-120-123 | B73: 465.01 | C73: Lenticulina | D73: 3 | G73: 465.4404889 | H73: This study
A74: U1516D-3R-2W-120-123 | B74: 465.01 | C74: Praebulimina nannina | D74: 3 | G74: 465.4404889 | H74: This study
A75: U1516D-3R-3, 52-55 cm | C75: Gavelinellinae | E75: 2.63 | F75: -1.63 | G75: 466.29 | H75: Petrizzo (2021)
A76: U1516D-3R-3, 52-55 cm | C76: Nuttallides sp. | E76: 2.50648301 | F76: -1.501803152 | G76: 466.29 | H76: Petrizzo (2021)
A77: U1516D-3R-3W-52-55 | B77: 465.78 | C77: Praebulimina nannina | D77: 7 | E77: 2.534326262 | F77: -1.50435479 | G77: 466.29 | H77: This study
A78: U1516D-3R-3W-52-55 | B78: 465.78 | C78: Cibicides complanata | D78: 2 | G78: 466.29 | H78: This study
A79: U1516D-3R-3W-52-55 | B79: 465.78 | C79: Gaudryina australis | D79: 2 | E79: 3.571220327 | F79: -1.930578179 | G79: 466.29 | H79: This study
A80: U1516D-3R-3W-52-55 | B80: 465.78 | C80: Gyroidinoides lenticulus | D80: 6 | E80: 2.13574767 | F80: -1.404085007 | G80: 466.29 | H80: This study
A81: U1516D-3R-3W-52-55 | B81: 465.78 | C81: Gyroidinoides quadratus | D81: 4 | G81: 466.29 | H81: This study
A82: U1516D-3R-3W-52-55 | B82: 465.78 | C82: Lenticulina | D82: 1 | E82: 2.308439231 | F82: -1.374235913 | G82: 466.29 | H82: This study
A83: U1516D-3R-3W-52-55 | B83: 465.78 | C83: Osangularia utaturensis | D83: 5 | E83: 2.463584991 | F83: -1.675164557 | G83: 466.29 | H83: This study
A84: U1516D-4R-1W-9-12 | B84: 467.09 | C84: Cibicides complanata | D84: 2 | E84: 2.884933458 | F84: -1.340045372 | G84: 467.079 | H84: This study
A85: U1516D-4R-1W-9-12 | B85: 467.09 | C85: Gaudryina australis | D85: 3 | E85: 2.825001106 | F85: -1.833882538 | G85: 467.079 | H85: This study
A86: U1516D-4R-1W-9-12 | B86: 467.09 | C86: Gyroidinoides lenticulus | D86: 2 | G86: 467.079 | H86: This study
A87: U1516D-4R-1W-9-12 | B87: 467.09 | C87: Gyroidinoides quadratus | D87: 6 | G87: 467.079 | H87: This study
A88: U1516D-4R-1W-9-12 | B88: 467.09 | C88: Lenticulina | D88: 1 | E88: 2.624047407 | F88: -1.436788701 | G88: 467.079 | H88: This study
A89: U1516D-4R-1W-9-12 | B89: 467.09 | C89: Osangularia utaturensis | D89: 5 | E89: 3.084268748 | F89: -1.31668328 | G89: 467.079 | H89: This study
A90: U1516D-4R-1W-9-12 | B90: 467.09 | C90: Praebulimina nannina | D90: 6 | E90: 2.710667002 | F90: -1.292271689 | G90: 467.079 | H90: This study
A91: U1516C-32R-1, 147-150 cm | C91: Gavelinellinae | E91: 1.296890211 | F91: -1.151510954 | G91: 471.4095 | H91: Petrizzo (2021)
A92: U1516C-32R-1, 147-150 cm | C92: Gyroidinoides globosus | E92: 1.265238595 | F92: -0.6154769063 | G92: 471.4095 | H92: Petrizzo (2021)
A93: U1516C-32R-1W-147-150 | B93: 471.07 | C93: Cibicides cenomanica | D93: 5 | G93: 471.4095 | H93: This study
A94: U1516C-32R-1W-147-150 | B94: 471.07 | C94: Gavelinella barremiana | D94: 4 | G94: 471.4095 | H94: This study
A95: U1516C-32R-1W-147-150 | B95: 471.07 | C95: Gyroidinoides lenticulus | D95: 5 | G95: 471.4095 | H95: This study
A96: U1516D-4R-4W-65-70 | B96: 471.58 | C96: Cibicides cenomanica | D96: 4 | E96: 1.532021059 | F96: -1.265231887 | G96: 471.5714706 | H96: This study
A97: U1516D-4R-4W-65-70 | B97: 471.58 | C97: Gyroidinoides lenticulus | D97: 6 | E97: 1.179648881 | F97: -0.5554240874 | G97: 471.5714706 | H97: This study
A98: U1516D-4R-4W-65-70 | B98: 471.58 | C98: Osangularia utaturensis | D98: 5 | E98: 1.626331899 | F98: -1.112195609 | G98: 471.5714706 | H98: This study
A99: U1516C-32R-2, 33-36 cm | C99: Gavelinellinae | E99: 1.165024233 | F99: -1.385948074 | G99: 471.774 | H99: Petrizzo (2021)
A100: U1516C-32R-2, 33-36 cm | C100: Gyroidinoides globosus | E100: 0.9719293237 | F100: -0.840309453 | G100: 471.774 | H100: Petrizzo (2021)
A101: U1516C-32-2, 50-53 cm | C101: Gyroidinoides globosus | E101: 0.6747004807 | F101: -1.33683337 | G101: 471.944 | H101: Petrizzo (2021)
A102: U1516C-32-2, 50-53 cm | C102: Gyroidinoides globosus | E102: 0.8290356219 | F102: -0.8035018563 | G102: 471.944 | H102: Petrizzo (2021)
A103: U1516C-32-2, 50-53 cm | C103: Lenticulina sp. | E103: -0.7304988742 | F103: -1.33240025 | G103: 471.944 | H103: Petrizzo (2021)
A104: U1516C-32-2, 50-53 cm | C104: Lenticulina sp. | E104: -0.3477502406 | F104: -1.178115296 | G104: 471.944 | H104: Petrizzo (2021)
A105: U1516D-4R-5W-0-3 | B105: 471.97 | C105: Cibicides cenomanica | D105: 3 | G105: 471.9735147 | H105: This study
A106: U1516D-4R-5W-0-3 | B106: 471.97 | C106: Gyroidinoides lenticulus | D106: 5 | E106: 2.109273933 | F106: -0.3697821374 | G106: 471.9735147 | H106: This study
A107: U1516D-4R-5W-0-3 | B107: 471.97 | C107: Gyroidinoides quadratus | D107: 2 | G107: 471.9735147 | H107: This study
A108: U1516D-4R-5W-0-3 | B108: 471.97 | C108: Lenticulina | D108: 1 | E108: 1.11418356 | F108: -0.8669589888 | G108: 471.9735147 | H108: This study
A109: U1516D-4R-5W-0-3 | B109: 471.97 | C109: Osangularia utaturensis | D109: 1 | G109: 471.9735147 | H109: This study
A110: U1516D-4R-5W-0-3 | B110: 471.97 | C110: Tappanina laciniosa | D110: 10 | G110: 471.9735147 | H110: This study
A111: U1516C-32R-2W-115-118 | B111: 472.245 | C111: Gyroidinoides lenticulus | D111: 4 | E111: 0.5949552516 | F111: -0.5104018647 | G111: 472.589 | H111: This study
A112: U1516C-32R-2W-115-118 | B112: 472.245 | C112: Lenticulina | D112: 2 | G112: 472.589 | H112: This study
A113: U1516C-32R-2W-115-118 | B113: 472.245 | C113: Cibicides cenomanica | D113: 6 | G113: 472.589 | H113: This study
A114: U1516C-32R-2, 115-118 cm | C114: Gavelinellinae | E114: 0.75 | F114: -0.79 | G114: 472.594 | H114: Petrizzo (2021)
A115: U1516C-32R-2, 115-118 cm | C115: Gavelinellinae | E115: 1.160259438 | F115: -1.335237515 | G115: 472.594 | H115: Petrizzo (2021)
A116: U1516C-32R-2, 115-118 cm | C116: Gavelinellinae | E116: 1.172024679 | F116: -1.258793366 | G116: 472.594 | H116: Petrizzo (2021)
A117: U1516C-32R-2, 115-118 cm | C117: Gyroidinoides globosus | E117: 0.7338528156 | F117: -0.7755654573 | G117: 472.594 | H117: Petrizzo (2021)
A118: U1516C-32R-2, 115-118 cm | C118: Lenticulina sp. | E118: -1.099502254 | F118: -1.422313464 | G118: 472.594 | H118: Petrizzo (2021)
A119: U1516C-32R-2, 115-118 cm | C119: Lenticulina sp. | E119: -0.1806213439 | F119: -1.310392392 | G119: 472.594 | H119: Petrizzo (2021)
A120: U1516C-32R-2, 115-118 cm | C120: Lenticulina sp. | E120: 0.4753891051 | F120: -1.125218642 | G120: 472.594 | H120: Petrizzo (2021)
A121: U1516D-4R-5W-64-67 | B121: 472.61 | C121: Cibicides cenomanica | D121: 6 | E121: 1.775112466 | F121: -1.004127835 | G121: 472.73 | H121: This study
A122: U1516D-4R-5W-64-67 | B122: 472.61 | C122: Gavelinella barremiana | D122: 5 | E122: 1.344875398 | F122: -1.094132519 | G122: 472.73 | H122: This study
A123: U1516D-4R-5W-64-67 | B123: 472.61 | C123: Gyroidinoides lenticulus | D123: 6 | E123: 1.715848397 | F123: -0.3353686519 | G123: 472.73 | H123: This study
A124: U1516D-4R-5W-64-67 | B124: 472.61 | C124: Gyroidinoides quadratus | D124: 8 | E124: 1.979470801 | F124: -0.7965329722 | G124: 472.73 | H124: This study
A125: U1516D-4R-5W-64-67 | B125: 472.61 | C125: Lenticulina | D125: 2 | E125: 0.2848956223 | F125: -0.8517874317 | G125: 472.73 | H125: This study
A126: U1516C-32R-3, 15-18 cm | C126: Gavelinellinae | E126: 1.51 | F126: -1.4 | G126: 473.094 | H126: Petrizzo (2021)
A127: U1516C-32R-3, 15-18 cm | C127: Gyroidinoides globosus | E127: 1.038031679 | F127: -0.8857692003 | G127: 473.094 | H127: Petrizzo (2021)
A128: U1516C-32R-3, 15-18 cm | C128: Lenticulina sp. | E128: -0.3409346223 | F128: -1.421458197 | G128: 473.094 | H128: Petrizzo (2021)
A129: U1516C-32R-3W-15-18 | B129: 472.76 | C129: Gavelinella barremiana | D129: 1 | G129: 473.104 | H129: This study
A130: U1516C-32R-3W-15-18 | B130: 472.76 | C130: Lenticulina | D130: 1 | E130: 0.2514686453 | F130: -0.617682943 | G130: 473.104 | H130: This study
A131: U1516C-32R-3W-15-18 | B131: 472.76 | C131: Gyroidinoides lenticulus | D131: 4 | E131: 0.781272777 | F131: -0.7943554985 | G131: 473.104 | H131: This study
A132: U1516D-5R-1W-17-20 | B132: 473.17 | C132: Cibicides cenomanica | D132: 6 | E132: 1.757437441 | F132: -1.316056889 | G132: 473.3297634 | H132: This study
A133: U1516D-5R-1W-17-20 | B133: 473.17 | C133: Gavelinella barremiana | D133: 5 | E133: 1.323398849 | F133: -0.9183016268 | G133: 473.3297634 | H133: This study
A134: U1516D-5R-1W-17-20 | B134: 473.17 | C134: Gyroidinoides lenticulus | D134: 5 | E134: 1.197243008 | F134: -0.6894847534 | G134: 473.3297634 | H134: This study
A135: U1516D-5R-1W-17-20 | B135: 473.17 | C135: Lenticulina | D135: 3 | E135: -0.2900545593 | F135: -1.267059348 | G135: 473.3297634 | H135: This study
A136: U1516D-5R-1W-17-20 | B136: 473.17 | C136: Osangularia utaturensis | D136: 5 | E136: 1.980389406 | F136: -0.6200910436 | G136: 473.3297634 | H136: This study
A137: U1516C-32R-3, 53-56 cm | C137: Gavelinellinae | E137: 1.224321079 | F137: -0.8856209636 | G137: 473.474 | H137: Petrizzo (2021)
A138: U1516C-32R-3, 53-56 cm | C138: Gavelinellinae | E138: 1.249761057 | F138: -1.04683913 | G138: 473.474 | H138: Petrizzo (2021)
A139: U1516C-32R-3, 53-56 cm | C139: Gyroidinoides globosus | E139: 0.8134015322 | F139: -0.7447825789 | G139: 473.474 | H139: Petrizzo (2021)
A140: U1516C-32R-3W-53-56 | B140: 473.14 | C140: Cibicides cenomanica | D140: 8 | E140: 1.034076954 | F140: -0.5187734089 | G140: 473.484 | H140: This study
A141: U1516C-32R-3W-53-56 | B141: 473.14 | C141: Gyroidinoides lenticulus | D141: 4 | G141: 473.484 | H141: This study
A142: U1516C-32R-3W-53-56 | B142: 473.14 | C142: Gavelinella barremiana | D142: 5 | G142: 473.484 | H142: This study
A143: U1516D-5R-1W-90-93 | B143: 473.9 | C143: Cibicides cenomanica | D143: 5 | G143: 474.0158065 | H143: This study
A144: U1516D-5R-1W-90-93 | B144: 473.9 | C144: Gyroidinoides lenticulus | D144: 6 | E144: 0.9824358547 | F144: -0.6921640993 | G144: 474.0158065 | H144: This study
A145: U1516D-5R-1W-90-93 | B145: 473.9 | C145: Lenticulina | D145: 1 | G145: 474.0158065 | H145: This study
A146: U1516C-32R-3, 108-111 cm | C146: Gavelinellinae | E146: 1.079786044 | F146: -1.034039211 | G146: 474.024 | H146: Petrizzo (2021)
A147: U1516C-32R-3, 108-111 cm | C147: Gavelinellinae | E147: 1.189969999 | F147: -0.8496123672 | G147: 474.024 | H147: Petrizzo (2021)
A148: U1516C-32R-3, 108-111 cm | C148: Lenticulina sp. | E148: -0.1191206083 | F148: -1.307923865 | G148: 474.024 | H148: Petrizzo (2021)
A149: U1516D-5R-2W-20-23 | B149: 474.66 | C149: Cibicides cenomanica | D149: 6 | G149: 474.774 | H149: This study
A150: U1516D-5R-2W-20-23 | B150: 474.66 | C150: Gyroidinoides lenticulus | D150: 6 | E150: 0.9949165101 | F150: -0.7316550519 | G150: 474.774 | H150: This study
A151: U1516D-5R-2W-20-23 | B151: 474.66 | C151: Lenticulina | D151: 2 | G151: 474.774 | H151: This study
A152: U1516C-33R-1W-13-16 | B152: 474.53 | C152: Cibicides cenomanica | D152: 5 | G152: 474.9391736 | H152: This study
A153: U1516C-33R-1W-13-16 | B153: 474.53 | C153: Gyroidinoides lenticulus | D153: 4 | G153: 474.9391736 | H153: This study
A154: U1516C-33R-1W-13-16 | B154: 474.53 | C154: Lenticulina | D154: 2 | G154: 474.9391736 | H154: This study
A155: U1516C-33R-1W-13-16 | B155: 474.53 | C155: Tappanina laciniosa | D155: 2 | G155: 474.9391736 | H155: This study
A156: U1516C-33R-1, 13-16 cm | C156: Gavelinellinae | E156: 1.387849045 | F156: -1.071370971 | G156: 474.9391736 | H156: Petrizzo (2021)
A157: U1516C-33R-1, 13-16 cm | C157: Gavelinellinae | E157: 1.450138044 | F157: -1.273202312 | G157: 474.9391736 | H157: Petrizzo (2021)
A158: U1516C-33R-1, 13-16 cm | C158: Gyroidinoides globosus | E158: 0.8338055134 | F158: -0.7350226164 | G158: 474.9391736 | H158: Petrizzo (2021)
A159: U1516C-33R-1, 13-16 cm | C159: Gyroidinoides globosus | E159: 0.8711288691 | F159: -0.7542237163 | G159: 474.9391736 | H159: Petrizzo (2021)
A160: U1516C-33R-1, 13-16 cm | C160: Lenticulina sp. | E160: -0.2969687164 | F160: -1.240509403 | G160: 474.9391736 | H160: Petrizzo (2021)
A161: U1516D-5R-2W-90-93 | B161: 475.36 | C161: Cibicides cenomanica | D161: 5 | E161: 1.782198372 | F161: -1.174959137 | G161: 475.474 | H161: This study
A162: U1516D-5R-2W-90-93 | B162: 475.36 | C162: Gavelinella barremiana | D162: 5 | E162: 1.529955173 | F162: -1.080261199 | G162: 475.474 | H162: This study
A163: U1516D-5R-2W-90-93 | B163: 475.36 | C163: Gyroidinoides lenticulus | D163: 5 | E163: 1.175147946 | F163: -0.6186240949 | G163: 475.474 | H163: This study
A164: U1516D-5R-2W-90-93 | B164: 475.36 | C164: Lenticulina | D164: 1 | E164: 0.988477518 | F164: -0.8906011018 | G164: 475.474 | H164: This study
A165: U1516C-33R-1, 88-91 cm | C165: Gavelinellinae | E165: 1.545566773 | F165: -0.6880046606 | G165: 475.604 | H165: Petrizzo (2021)
A166: U1516C-33R-1, 88-91 cm | C166: Gavelinellinae | E166: 1.593227249 | F166: -0.8861315966 | G166: 475.604 | H166: Petrizzo (2021)
A167: U1516C-33R-1, 88-91 cm | C167: Gavelinellinae | E167: 1.619552118 | F167: -0.5475216031 | G167: 475.604 | H167: Petrizzo (2021)
A168: U1516C-33R-1, 88-91 cm | C168: Gavelinellinae | E168: 1.62315402 | F168: -0.5166393399 | G168: 475.604 | H168: Petrizzo (2021)
A169: U1516C-33R-1, 88-91 cm | C169: Gyroidinoides globosus | E169: 1.239315248 | F169: -0.5411344647 | G169: 475.604 | H169: Petrizzo (2021)
A170: U1516C-33R-1, 88-91 cm | C170: Gyroidinoides globosus | E170: 1.430248958 | F170: -0.7771486163 | G170: 475.604 | H170: Petrizzo (2021)
A171: U1516C-33R-1, 88-91 cm | C171: Gyroidinoides globosus | E171: 1.51133976 | F171: -0.6058197498 | G171: 475.604 | H171: Petrizzo (2021)
A172: U1516C-33R-2, 34-37 cm | C172: Gavelinellinae | E172: 1.337138168 | F172: -0.7400497516 | G172: 476.074 | H172: Petrizzo (2021)
A173: U1516C-33R-2, 34-37 cm | C173: Gavelinellinae | E173: 1.41065108 | F173: -0.6911406239 | G173: 476.074 | H173: Petrizzo (2021)
A174: U1516C-33R-2, 34-37 cm | C174: Gyroidinoides globosus | E174: 0.9128984133 | F174: -0.8185353001 | G174: 476.074 | H174: Petrizzo (2021)
A175: U1516C-33R-2, 34-37 cm | C175: Gyroidinoides globosus | E175: 0.9476644913 | F175: -0.8548322042 | G175: 476.074 | H175: Petrizzo (2021)
A176: U1516D-5R-3W-13-15 | B176: 476.09 | C176: Cibicides cenomanica | D176: 3 | G176: 476.204 | H176: This study
A177: U1516C-33R-2, 86-89 cm | C177: Gavelinellinae | E177: 1.127699606 | F177: -1.399069222 | G177: 476.594 | H177: Petrizzo (2021)
A178: U1516C-33R-2, 86-89 cm | C178: Gyroidinoides globosus | E178: 0.7084476272 | F178: -0.7052908858 | G178: 476.594 | H178: Petrizzo (2021)
A179: U1516C-33R-2W-86-89 | B179: 476.27 | C179: Tappanina laciniosa | D179: 8 | G179: 476.594 | H179: This study
A180: U1516C-33R-2W-86-89 | B180: 476.27 | C180: Cibicides cenomanica | D180: 5 | G180: 476.594 | H180: This study
A181: U1516C-33R-2W-86-89 | B181: 476.27 | C181: Gavelinella barremiana | D181: 5 | G181: 476.594 | H181: This study
A182: U1516C-33R-2W-86-89 | B182: 476.27 | C182: Gyroidinoides lenticulus | D182: 5 | G182: 476.594 | H182: This study
A183: U1516C-33R-2W-86-89 | B183: 476.27 | C183: Gyroidinoides quadratus | D183: 5 | G183: 476.594 | H183: This study
A184: U1516D-5R-3W-88-91 | B184: 476.84 | C184: Cibicides cenomanica | D184: 1 | G184: 477.016695 | H184: This study
A185: U1516C-33R-3, 56-59 cm | C185: Gavelinellinae | E185: 1.09 | F185: -1.28 | G185: 477.414 | H185: Petrizzo (2021)
A186: U1516C-33R-3, 56-59 cm | C186: Lenticulina sp. | E186: -0.6 | F186: -1.27 | G186: 477.414 | H186: Petrizzo (2021)
A187: U1516C-33R-3, 56-59 cm | C187: Lenticulina sp. | E187: 0.2043951273 | F187: -0.91 | G187: 477.414 | H187: Petrizzo (2021)
A188: U1516D-5R-3W-125-128 | B188: 477.21 | C188: Cibicides complanata | D188: 1 | G188: 477.422383 | H188: This study
A189: U1516D-5R-3W-125-128 | B189: 477.21 | C189: Gyroidinoides lenticulus | D189: 5 | E189: 0.5933600794 | F189: -0.6486168416 | G189: 477.422383 | H189: This study
A190: U1516D-5R-3W-125-128 | B190: 477.21 | C190: Lenticulina | D190: 2 | E190: 0.3537543329 | F190: -0.9984087412 | G190: 477.422383 | H190: This study
A191: U1516D-5R-3W-125-128 | B191: 477.21 | C191: Osangularia utaturensis | D191: 4 | E191: 1.819526177 | F191: -0.6170527788 | G191: 477.422383 | H191: This study
A192: U1516C-33R-3, 118-121 cm | C192: Lenticulina sp. | E192: -0.2782723486 | F192: -1.33387388 | G192: 478.034 | H192: Petrizzo (2021)
A193: U1516C-33R-3, 118-121 cm | C193: Lenticulina sp. | E193: -0.008237536252 | F193: -1.251649868 | G193: 478.034 | H193: Petrizzo (2021)
A194: U1516C-33R-3W-126-129 | B194: 477.79 | C194: Cibicides cenomanica | D194: 3 | G194: 478.114 | H194: This study
A195: U1516C-33R-3W-126-129 | B195: 477.79 | C195: Gyroidinoides quadratus | D195: 2 | G195: 478.114 | H195: This study
A196: U1516C-33R-3W-126-129 | B196: 477.79 | C196: Lenticulina | D196: 4 | G196: 478.114 | H196: This study
A197: U1516C-33R-3, 126-129 cm | C197: Gavelinellinae | E197: 0.909563945 | F197: -1.403336324 | G197: 478.114 | H197: Petrizzo (2021)
A198: U1516C-33R-4, 8-11 cm | C198: Gavelinellinae | E198: 1.163248491 | F198: -1.32 | G198: 478.334 | H198: Petrizzo (2021)
A199: U1516C-33R-4, 8-11 cm | C199: Gavelinellinae | E199: 1.214881253 | F199: -1.33 | G199: 478.334 | H199: Petrizzo (2021)
A200: U1516C-33R-4, 8-11 cm | C200: Gyroidinoides globosus | E200: 0.9245048881 | F200: -0.88 | G200: 478.334 | H200: Petrizzo (2021)
... 57 more rows

Sheet Benthic forams species offset
A1: Cibicides | E1: Gavelinellinae | I1: Gyroidinoides | M1: Lenticulina | Q1: Average δ13C (‰) VPDB | R1: Average δ18O (‰) VPDB | S1: Offset Carbon | T1: Offset Oxygen | U1: Notes
A2: δ13C (‰) VPDB | B2: δ18O (‰) VPDB | D2: Depth | E2: δ13C (‰) VPDB | F2: δ18O (‰) VPDB | H2: Depth | I2: δ13C (‰) VPDB | J2: δ18O (‰) VPDB | L2: Depth | M2: δ13C (‰) VPDB | N2: δ18O (‰) VPDB | P2: Cibicides | Q2: -1.279329577 | R2: -1.055829832 | S2: 0 | T2: 0
A3: 1.532021059 | B3: -1.265231887 | D3: 471.4095 | E3: 1.296890211 | F3: -1.151510954 | H3: 471.4095 | I3: 1.265238595 | J3: -0.6154769063 | L3: 471.944 | M3: -0.7304988742 | N3: -1.33240025 | P3: Gavelinellinae | Q3: 1.279329577 | R3: -1.007941886 | S3: -2.558659154 | T3: -0.0478879454
A4: 1.775112466 | B4: -1.004127835 | D4: 471.774 | E4: 1.165024233 | F4: -1.385948074 | H4: 471.5714706 | I4: 1.179648881 | J4: -0.5554240874 | L4: 471.944 | M4: -0.3477502406 | N4: -1.178115296 | P4: Gyroidinoides | Q4: 1.009143019 | R4: -0.6830083287 | S4: -2.288472596 | T4: -0.3728215029
A5: 1.757437441 | B5: -1.316056889 | D5: 472.594 | E5: 0.75 | F5: -0.79 | H5: 471.774 | I5: 0.9719293237 | J5: -0.840309453 | L5: 471.9735147 | M5: 1.11418356 | N5: -0.8669589888 | P5: Lenticulina | Q5: 0.04728349429 | R5: -1.131620657 | S5: -1.326613071 | T5: 0.07579082509
A6: 1.034076954 | B6: -0.5187734089 | D6: 472.594 | E6: 1.160259438 | F6: -1.335237515 | H6: 471.944 | I6: 0.6747004807 | J6: -1.33683337 | L6: 472.594 | M6: -1.099502254 | N6: -1.422313464 | P6: Osangularia utaturensis | S6: 0 | T6: 0 | U6: No offset applied
A7: 1.782198372 | B7: -1.174959137 | D7: 472.594 | E7: 1.172024679 | F7: -1.258793366 | H7: 471.944 | I7: 0.8290356219 | J7: -0.8035018563 | L7: 472.594 | M7: -0.1806213439 | N7: -1.310392392
D8: 472.73 | E8: 1.344875398 | F8: -1.094132519 | H8: 471.9735147 | I8: 2.109273933 | J8: -0.3697821374 | L8: 472.594 | M8: 0.4753891051 | N8: -1.125218642
A9: 1.576169258 | B9: -1.055829832 | D9: 473.094 | E9: 1.51 | F9: -1.4 | H9: 472.589 | I9: 0.5949552516 | J9: -0.5104018647 | L9: 472.73 | M9: 0.2848956223 | N9: -0.8517874317
D10: 473.3297634 | E10: 1.323398849 | F10: -0.9183016268 | H10: 472.594 | I10: 0.7338528156 | J10: -0.7755654573 | L10: 473.094 | M10: -0.3409346223 | N10: -1.421458197
D11: 473.474 | E11: 1.224321079 | F11: -0.8856209636 | H11: 472.73 | I11: 1.715848397 | J11: -0.3353686519 | L11: 473.104 | M11: 0.2514686453 | N11: -0.617682943
D12: 473.474 | E12: 1.249761057 | F12: -1.04683913 | H12: 473.094 | I12: 1.038031679 | J12: -0.8857692003 | L12: 473.3297634 | M12: -0.2900545593 | N12: -1.267059348
D13: 474.024 | E13: 1.079786044 | F13: -1.034039211 | H13: 473.104 | I13: 0.781272777 | J13: -0.7943554985 | L13: 474.024 | M13: -0.1191206083 | N13: -1.307923865
D14: 474.024 | E14: 1.189969999 | F14: -0.8496123672 | H14: 473.3297634 | I14: 1.197243008 | J14: -0.6894847534 | L14: 474.9391736 | M14: -0.2969687164 | N14: -1.240509403
D15: 474.9391736 | E15: 1.387849045 | F15: -1.071370971 | H15: 473.474 | I15: 0.8134015322 | J15: -0.7447825789 | L15: 475.474 | M15: 0.988477518 | N15: -0.8906011018
D16: 474.9391736 | E16: 1.450138044 | F16: -1.273202312 | H16: 474.0158065 | I16: 0.9824358547 | J16: -0.6921640993 | L16: 477.414 | M16: -0.6 | N16: -1.27
D17: 475.474 | E17: 1.529955173 | F17: -1.080261199 | H17: 474.774 | I17: 0.9949165101 | J17: -0.7316550519 | L17: 477.414 | M17: 0.2043951273 | N17: -0.91
D18: 475.604 | E18: 1.545566773 | F18: -0.6880046606 | H18: 474.9391736 | I18: 0.8338055134 | J18: -0.7350226164 | L18: 477.422383 | M18: 0.3537543329 | N18: -0.9984087412
D19: 475.604 | E19: 1.593227249 | F19: -0.8861315966 | H19: 474.9391736 | I19: 0.8711288691 | J19: -0.7542237163 | L19: 478.034 | M19: -0.2782723486 | N19: -1.33387388
D20: 475.604 | E20: 1.619552118 | F20: -0.5475216031 | H20: 475.474 | I20: 1.175147946 | J20: -0.6186240949 | L20: 478.034 | M20: -0.008237536252 | N20: -1.251649868
D21: 475.604 | E21: 1.62315402 | F21: -0.5166393399 | H21: 475.604 | I21: 1.239315248 | J21: -0.5411344647 | L21: 478.334 | M21: 0.13 | N21: -1.34
D22: 476.074 | E22: 1.337138168 | F22: -0.7400497516 | H22: 475.604 | I22: 1.430248958 | J22: -0.7771486163 | L22: 478.334 | M22: 0.3423698068 | N22: -1.22
D23: 476.074 | E23: 1.41065108 | F23: -0.6911406239 | H23: 475.604 | I23: 1.51133976 | J23: -0.6058197498 | L23: 479.174 | M23: -0.2048128635 | N23: -1.092415142
D24: 476.594 | E24: 1.127699606 | F24: -1.399069222 | H24: 476.074 | I24: 0.9128984133 | J24: -0.8185353001 | L24: 479.174 | M24: 0.1029113665 | N24: -1.099588799
D25: 477.414 | E25: 1.09 | F25: -1.28 | H25: 476.074 | I25: 0.9476644913 | J25: -0.8548322042 | L25: 479.174 | M25: 0.1531985015 | N25: -1.368500042
D26: 478.114 | E26: 0.909563945 | F26: -1.403336324 | H26: 476.594 | I26: 0.7084476272 | J26: -0.7052908858 | L26: 479.174 | M26: 0.3809183002 | N26: -0.9162828207
D27: 478.334 | E27: 1.163248491 | F27: -1.32 | H27: 477.422383 | I27: 0.5933600794 | J27: -0.6486168416 | L27: 479.174 | M27: 0.8968994379 | N27: -0.6573758006
D28: 478.334 | E28: 1.214881253 | F28: -1.33 | H28: 478.334 | I28: 0.9245048881 | J28: -0.88 | L28: AVERAGE | M28: 0.04728349429 | N28: -1.131620657
D29: 479.834 | E29: 1.195455712 | F29: -0.6693487287 | H29: 478.334 | I29: 1.033222091 | J29: -0.68
D30: 479.834 | E30: 1.202081841 | F30: -0.515716356 | H30: 479.174 | I30: 0.7281799078 | J30: -0.44267084
D31: 479.834 | E31: 1.234084225 | F31: -0.6684862852 | H31: 479.834 | I31: 0.7417228043 | J31: -0.5084445
H32: 479.834 | I32: 0.8282381117 | J32: -0.4424603403
D33: AVERAGE | E33: 1.279329577 | F33: -1.007941886 | H33: 479.834 | I33: 0.922424233 | J33: -0.479559052
H35: AVERAGE | I35: 1.009143019 | J35: -0.6830083287

Sheet Benthic forams composite calc
A1: Cibicides | I1: Gavelinellinae | Q1: Gyroidinoides | Y1: Lenticulina | AG1: Osangularia utaturensis
A2: Depth CCSF-M | B2: δ13C (‰) VPDB | C2: δ18O (‰) VPDB | D2: Offset C | E2: Offset O | F2: Composite δ13C (‰) VPDB | G2: Composite δ18O (‰) VPDB | I2: Depth | J2: δ13C (‰) VPDB | K2: δ18O (‰) VPDB | L2: Offset C | M2: Offset O | N2: Composite δ13C (‰) VPDB | O2: Composite δ18O (‰) VPDB | Q2: Depth | R2: δ13C (‰) VPDB | S2: δ18O (‰) VPDB | T2: Offset C | U2: Offset O | V2: Composite δ13C (‰) VPDB | W2: Composite δ18O (‰) VPDB | Y2: Depth | Z2: δ13C (‰) VPDB | AA2: δ18O (‰) VPDB | AB2: Offset C | AC2: Offset O | AD2: Composite δ13C (‰) VPDB | AE2: Composite δ18O (‰) VPDB | AG2: Depth | AH2: δ13C (‰) VPDB | AI2: δ18O (‰) VPDB | AJ2: Offset C | AK2: Offset O | AL2: Composite δ13C (‰) VPDB | AM2: Composite δ18O (‰) VPDB
A3: 458.4037 | B3: 2.36231 | C3: -1.01381 | D3: 0 | E3: 0 | F3: 2.36231 | G3: -1.01381 | I3: 431.81 | J3: 1.658514 | K3: -0.56481 | L3: 0.29684 | M3: -0.04789 | N3: 1.955354 | O3: -0.6127 | Q3: 458.4037 | R3: 2.150358 | S3: -0.96034 | T3: 0.567026 | U3: -0.37282 | V3: 2.717384 | W3: -1.33317 | Y3: 431.63 | Z3: 0.777878 | AA3: -1.06993 | AB3: 1.528886 | AC3: 0.075791 | AD3: 2.306764 | AE3: -0.99414 | AG3: 458.4037 | AH3: 2.493479 | AI3: -1.29677 | AJ3: 0 | AK3: 0 | AL3: 2.493479 | AM3: -1.29677
A4: 459.004 | B4: 2.077529 | C4: -0.96585 | D4: 0 | E4: 0 | F4: 2.077529 | G4: -0.96585 | I4: 436.07 | J4: 2.227482 | K4: -0.32259 | L4: 0.29684 | M4: -0.04789 | N4: 2.524321 | O4: -0.37048 | Q4: 459.004 | R4: 2.764002 | S4: -0.79596 | T4: 0.567026 | U4: -0.37282 | V4: 3.331028 | W4: -1.16878 | Y4: 431.81 | Z4: 0.953041 | AA4: -0.97557 | AB4: 1.528886 | AC4: 0.075791 | AD4: 2.481927 | AE4: -0.89978 | AG4: 459.004 | AH4: 2.405228 | AI4: -1.33929 | AJ4: 0 | AK4: 0 | AL4: 2.405228 | AM4: -1.33929
A5: 460.414 | B5: 2.447031 | C5: -0.98773 | D5: 0 | E5: 0 | F5: 2.447031 | G5: -0.98773 | I5: 451.57 | J5: 1.746241 | K5: -1.34441 | L5: 0.29684 | M5: -0.04789 | N5: 2.043081 | O5: -1.3923 | Q5: 461.5137 | R5: 2.042951 | S5: -1.16023 | T5: 0.567026 | U5: -0.37282 | V5: 2.609977 | W5: -1.53305 | Y5: 431.81 | Z5: 3.075541 | AA5: -1.34589 | AB5: 1.528886 | AC5: 0.075791 | AD5: 4.604427 | AE5: -1.2701 | AG5: 462.26 | AH5: 2.133653 | AI5: -1.35617 | AJ5: 0 | AK5: 0 | AL5: 2.133653 | AM5: -1.35617
A6: 461.1939 | B6: 2.102669 | C6: -0.98907 | D6: 0 | E6: 0 | F6: 2.102669 | G6: -0.98907 | I6: 456.4 | J6: 2.117556 | K6: -0.65087 | L6: 0.29684 | M6: -0.04789 | N6: 2.414396 | O6: -0.69876 | Q6: 462.26 | R6: 1.866238 | S6: -1.15357 | T6: 0.567026 | U6: -0.37282 | V6: 2.433264 | W6: -1.52639 | Y6: 432.72 | Z6: 0.832599 | AA6: -1.14105 | AB6: 1.528886 | AC6: 0.075791 | AD6: 2.361485 | AE6: -1.06526 | AG6: 466.29 | AH6: 2.463585 | AI6: -1.67516 | AJ6: 0 | AK6: 0 | AL6: 2.463585 | AM6: -1.67516
A7: 461.5137 | B7: 2.082743 | C7: -1.26208 | D7: 0 | E7: 0 | F7: 2.082743 | G7: -1.26208 | I7: 457.65 | J7: 2.416257 | K7: -0.90545 | L7: 0.29684 | M7: -0.04789 | N7: 2.713097 | O7: -0.95334 | Q7: 466.29 | R7: 2.135748 | S7: -1.40409 | T7: 0.567026 | U7: -0.37282 | V7: 2.702774 | W7: -1.77691 | Y7: 437.61 | Z7: 0.852312 | AA7: -1.38074 | AB7: 1.528886 | AC7: 0.075791 | AD7: 2.381198 | AE7: -1.30495 | AG7: 467.079 | AH7: 3.084269 | AI7: -1.31668 | AJ7: 0 | AK7: 0 | AL7: 3.084269 | AM7: -1.31668
A8: 464.141 | B8: 2.208776 | C8: -1.21268 | D8: 0 | E8: 0 | F8: 2.208776 | G8: -1.21268 | I8: 458.4037 | J8: 2.334893 | K8: -1.10943 | L8: 0.29684 | M8: -0.04789 | N8: 2.631733 | O8: -1.15732 | Q8: 471.4095 | R8: 1.265239 | S8: -0.61548 | T8: 0.567026 | U8: -0.37282 | V8: 1.832265 | W8: -0.9883 | Y8: 437.61 | Z8: 1.521257 | AA8: -1.1118 | AB8: 1.528886 | AC8: 0.075791 | AD8: 3.050143 | AE8: -1.03601 | AG8: 471.5715 | AH8: 1.626332 | AI8: -1.1122 | AJ8: 0 | AK8: 0 | AL8: 1.626332 | AM8: -1.1122
A9: 464.391 | B9: 2.263713 | C9: -1.25951 | D9: 0 | E9: 0 | F9: 2.263713 | G9: -1.25951 | I9: 458.64 | J9: 2.358681 | K9: -0.90572 | L9: 0.29684 | M9: -0.04789 | N9: 2.655521 | O9: -0.95361 | Q9: 471.5715 | R9: 1.179649 | S9: -0.55542 | T9: 0.567026 | U9: -0.37282 | V9: 1.746675 | W9: -0.92825 | Y9: 440.96 | Z9: 1.679196 | AA9: -0.88281 | AB9: 1.528886 | AC9: 0.075791 | AD9: 3.208082 | AE9: -0.80702 | AG9: 473.3298 | AH9: 1.980389 | AI9: -0.62009 | AJ9: 0 | AK9: 0 | AL9: 1.980389 | AM9: -0.62009
A10: 467.079 | B10: 2.884933 | C10: -1.34005 | D10: 0 | E10: 0 | F10: 2.884933 | G10: -1.34005 | I10: 458.64 | J10: 2.37141 | K10: -1.0157 | L10: 0.29684 | M10: -0.04789 | N10: 2.668249 | O10: -1.06359 | Q10: 471.774 | R10: 0.971929 | S10: -0.84031 | T10: 0.567026 | U10: -0.37282 | V10: 1.538956 | W10: -1.21313 | Y10: 458.4037 | Z10: 1.053889 | AA10: -1.39298 | AB10: 1.528886 | AC10: 0.075791 | AD10: 2.582775 | AE10: -1.31719 | AG10: 477.4224 | AH10: 1.819526 | AI10: -0.61705 | AJ10: 0 | AK10: 0 | AL10: 1.819526 | AM10: -0.61705
A11: 471.5715 | B11: 1.532021 | C11: -1.26523 | D11: 0 | E11: 0 | F11: 1.532021 | G11: -1.26523 | I11: 459.004 | J11: 2.260693 | K11: -1.19406 | L11: 0.29684 | M11: -0.04789 | N11: 2.557532 | O11: -1.24195 | Q11: 471.944 | R11: 0.6747 | S11: -1.33683 | T11: 0.567026 | U11: -0.37282 | V11: 1.241727 | W11: -1.70965 | Y11: 458.4037 | Z11: 0.806653 | AA11: -1.63177 | AB11: 1.528886 | AC11: 0.075791 | AD11: 2.335539 | AE11: -1.55597
A12: 472.73 | B12: 1.775112 | C12: -1.00413 | D12: 0 | E12: 0 | F12: 1.775112 | G12: -1.00413 | I12: 459.3172 | J12: 2.197198 | K12: -1.13924 | L12: 0.29684 | M12: -0.04789 | N12: 2.494038 | O12: -1.18713 | Q12: 471.944 | R12: 0.829036 | S12: -0.8035 | T12: 0.567026 | U12: -0.37282 | V12: 1.396062 | W12: -1.17632 | Y12: 458.4037 | Z12: 1.010075 | AA12: -1.64026 | AB12: 1.528886 | AC12: 0.075791 | AD12: 2.538961 | AE12: -1.56447
A13: 473.3298 | B13: 1.757437 | C13: -1.31606 | D13: 0 | E13: 0 | F13: 1.757437 | G13: -1.31606 | I13: 461.1939 | J13: 2.248625 | K13: -1.00426 | L13: 0.29684 | M13: -0.04789 | N13: 2.545465 | O13: -1.05215 | Q13: 471.9735 | R13: 2.109274 | S13: -0.36978 | T13: 0.567026 | U13: -0.37282 | V13: 2.6763 | W13: -0.7426 | Y13: 459.004 | Z13: 1.093678 | AA13: -1.30805 | AB13: 1.528886 | AC13: 0.075791 | AD13: 2.622564 | AE13: -1.23226
A14: 473.484 | B14: 1.034077 | C14: -0.51877 | D14: 0 | E14: 0 | F14: 1.034077 | G14: -0.51877 | I14: 464.141 | J14: 2.066546 | K14: -1.43088 | L14: 0.29684 | M14: -0.04789 | N14: 2.363386 | O14: -1.47877 | Q14: 472.589 | R14: 0.594955 | S14: -0.5104 | T14: 0.567026 | U14: -0.37282 | V14: 1.161981 | W14: -0.88322 | Y14: 461.1939 | Z14: 1.891282 | AA14: -1.48393 | AB14: 1.528886 | AC14: 0.075791 | AD14: 3.420168 | AE14: -1.40814
A15: 475.474 | B15: 1.782198 | C15: -1.17496 | D15: 0 | E15: 0 | F15: 1.782198 | G15: -1.17496 | I15: 464.391 | J15: 2.237117 | K15: -1.41865 | L15: 0.29684 | M15: -0.04789 | N15: 2.533957 | O15: -1.46654 | Q15: 472.594 | R15: 0.733853 | S15: -0.77557 | T15: 0.567026 | U15: -0.37282 | V15: 1.300879 | W15: -1.14839 | Y15: 461.1939 | Z15: 1.303545 | AA15: -1.48782 | AB15: 1.528886 | AC15: 0.075791 | AD15: 2.832431 | AE15: -1.41203
I16: 466.29 | J16: 2.63 | K16: -1.63 | L16: 0.29684 | M16: -0.04789 | N16: 2.92684 | O16: -1.67789 | Q16: 472.73 | R16: 1.715848 | S16: -0.33537 | T16: 0.567026 | U16: -0.37282 | V16: 2.282875 | W16: -0.70819 | Y16: 461.5137 | Z16: 0.775301 | AA16: -1.74377 | AB16: 1.528886 | AC16: 0.075791 | AD16: 2.304187 | AE16: -1.66798
I17: 471.4095 | J17: 1.29689 | K17: -1.15151 | L17: 0.29684 | M17: -0.04789 | N17: 1.59373 | O17: -1.1994 | Q17: 473.094 | R17: 1.038032 | S17: -0.88577 | T17: 0.567026 | U17: -0.37282 | V17: 1.605058 | W17: -1.25859 | Y17: 462.26 | Z17: 1.50955 | AA17: -1.27365 | AB17: 1.528886 | AC17: 0.075791 | AD17: 3.038436 | AE17: -1.19786
I18: 471.774 | J18: 1.165024 | K18: -1.38595 | L18: 0.29684 | M18: -0.04789 | N18: 1.461864 | O18: -1.43384 | Q18: 473.104 | R18: 0.781273 | S18: -0.79436 | T18: 0.567026 | U18: -0.37282 | V18: 1.348299 | W18: -1.16718 | Y18: 464.077 | Z18: 1.104 | AA18: -1.83973 | AB18: 1.528886 | AC18: 0.075791 | AD18: 2.632886 | AE18: -1.76394
I19: 472.594 | J19: 0.75 | K19: -0.79 | L19: 0.29684 | M19: -0.04789 | N19: 1.04684 | O19: -0.83789 | Q19: 473.3298 | R19: 1.197243 | S19: -0.68948 | T19: 0.567026 | U19: -0.37282 | V19: 1.764269 | W19: -1.06231 | Y19: 464.077 | Z19: 2.263662 | AA19: -1.16319 | AB19: 1.528886 | AC19: 0.075791 | AD19: 3.792548 | AE19: -1.0874
I20: 472.594 | J20: 1.160259 | K20: -1.33524 | L20: 0.29684 | M20: -0.04789 | N20: 1.457099 | O20: -1.38313 | Q20: 473.474 | R20: 0.813402 | S20: -0.74478 | T20: 0.567026 | U20: -0.37282 | V20: 1.380428 | W20: -1.1176 | Y20: 464.141 | Z20: 2.165903 | AA20: -1.18463 | AB20: 1.528886 | AC20: 0.075791 | AD20: 3.694789 | AE20: -1.10884
I21: 472.594 | J21: 1.172025 | K21: -1.25879 | L21: 0.29684 | M21: -0.04789 | N21: 1.468864 | O21: -1.30668 | Q21: 474.0158 | R21: 0.982436 | S21: -0.69216 | T21: 0.567026 | U21: -0.37282 | V21: 1.549462 | W21: -1.06499 | Y21: 464.391 | Z21: 0.802168 | AA21: -1.85456 | AB21: 1.528886 | AC21: 0.075791 | AD21: 2.331054 | AE21: -1.77877
I22: 472.73 | J22: 1.344875 | K22: -1.09413 | L22: 0.29684 | M22: -0.04789 | N22: 1.641715 | O22: -1.14202 | Q22: 474.774 | R22: 0.994917 | S22: -0.73166 | T22: 0.567026 | U22: -0.37282 | V22: 1.561943 | W22: -1.10448 | Y22: 465.224 | Z22: 1.547639 | AA22: -1.51676 | AB22: 1.528886 | AC22: 0.075791 | AD22: 3.076525 | AE22: -1.44097
I23: 473.094 | J23: 1.51 | K23: -1.4 | L23: 0.29684 | M23: -0.04789 | N23: 1.80684 | O23: -1.44789 | Q23: 474.9392 | R23: 0.833806 | S23: -0.73502 | T23: 0.567026 | U23: -0.37282 | V23: 1.400832 | W23: -1.10784 | Y23: 465.224 | Z23: 1.734638 | AA23: -1.56518 | AB23: 1.528886 | AC23: 0.075791 | AD23: 3.263524 | AE23: -1.48939
I24: 473.3298 | J24: 1.323399 | K24: -0.9183 | L24: 0.29684 | M24: -0.04789 | N24: 1.620239 | O24: -0.96619 | Q24: 474.9392 | R24: 0.871129 | S24: -0.75422 | T24: 0.567026 | U24: -0.37282 | V24: 1.438155 | W24: -1.12705 | Y24: 465.224 | Z24: 1.937844 | AA24: -1.48376 | AB24: 1.528886 | AC24: 0.075791 | AD24: 3.46673 | AE24: -1.40797
I25: 473.474 | J25: 1.224321 | K25: -0.88562 | L25: 0.29684 | M25: -0.04789 | N25: 1.521161 | O25: -0.93351 | Q25: 475.474 | R25: 1.175148 | S25: -0.61862 | T25: 0.567026 | U25: -0.37282 | V25: 1.742174 | W25: -0.99145 | Y25: 465.224 | Z25: 2.308733 | AA25: -1.44504 | AB25: 1.528886 | AC25: 0.075791 | AD25: 3.837619 | AE25: -1.36925
I26: 473.474 | J26: 1.249761 | K26: -1.04684 | L26: 0.29684 | M26: -0.04789 | N26: 1.546601 | O26: -1.09473 | Q26: 475.604 | R26: 1.239315 | S26: -0.54113 | T26: 0.567026 | U26: -0.37282 | V26: 1.806341 | W26: -0.91396 | Y26: 466.29 | Z26: 2.308439 | AA26: -1.37424 | AB26: 1.528886 | AC26: 0.075791 | AD26: 3.837325 | AE26: -1.29845
I27: 474.024 | J27: 1.079786 | K27: -1.03404 | L27: 0.29684 | M27: -0.04789 | N27: 1.376626 | O27: -1.08193 | Q27: 475.604 | R27: 1.430249 | S27: -0.77715 | T27: 0.567026 | U27: -0.37282 | V27: 1.997275 | W27: -1.14997 | Y27: 467.079 | Z27: 2.624047 | AA27: -1.43679 | AB27: 1.528886 | AC27: 0.075791 | AD27: 4.152933 | AE27: -1.361
I28: 474.024 | J28: 1.18997 | K28: -0.84961 | L28: 0.29684 | M28: -0.04789 | N28: 1.48681 | O28: -0.8975 | Q28: 475.604 | R28: 1.51134 | S28: -0.60582 | T28: 0.567026 | U28: -0.37282 | V28: 2.078366 | W28: -0.97864 | Y28: 471.944 | Z28: -0.7305 | AA28: -1.3324 | AB28: 1.528886 | AC28: 0.075791 | AD28: 0.798387 | AE28: -1.25661
I29: 474.9392 | J29: 1.387849 | K29: -1.07137 | L29: 0.29684 | M29: -0.04789 | N29: 1.684689 | O29: -1.11926 | Q29: 476.074 | R29: 0.912898 | S29: -0.81854 | T29: 0.567026 | U29: -0.37282 | V29: 1.479925 | W29: -1.19136 | Y29: 471.944 | Z29: -0.34775 | AA29: -1.17812 | AB29: 1.528886 | AC29: 0.075791 | AD29: 1.181136 | AE29: -1.10232
I30: 474.9392 | J30: 1.450138 | K30: -1.2732 | L30: 0.29684 | M30: -0.04789 | N30: 1.746978 | O30: -1.32109 | Q30: 476.074 | R30: 0.947664 | S30: -0.85483 | T30: 0.567026 | U30: -0.37282 | V30: 1.514691 | W30: -1.22765 | Y30: 471.9735 | Z30: 1.114184 | AA30: -0.86696 | AB30: 1.528886 | AC30: 0.075791 | AD30: 2.643069 | AE30: -0.79117
I31: 475.474 | J31: 1.529955 | K31: -1.08026 | L31: 0.29684 | M31: -0.04789 | N31: 1.826795 | O31: -1.12815 | Q31: 476.594 | R31: 0.708448 | S31: -0.70529 | T31: 0.567026 | U31: -0.37282 | V31: 1.275474 | W31: -1.07811 | Y31: 472.594 | Z31: -1.0995 | AA31: -1.42231 | AB31: 1.528886 | AC31: 0.075791 | AD31: 0.429384 | AE31: -1.34652
I32: 475.604 | J32: 1.545567 | K32: -0.688 | L32: 0.29684 | M32: -0.04789 | N32: 1.842406 | O32: -0.73589 | Q32: 477.4224 | R32: 0.59336 | S32: -0.64862 | T32: 0.567026 | U32: -0.37282 | V32: 1.160386 | W32: -1.02144 | Y32: 472.594 | Z32: -0.18062 | AA32: -1.31039 | AB32: 1.528886 | AC32: 0.075791 | AD32: 1.348264 | AE32: -1.2346
I33: 475.604 | J33: 1.593227 | K33: -0.88613 | L33: 0.29684 | M33: -0.04789 | N33: 1.890067 | O33: -0.93402 | Q33: 478.334 | R33: 0.924505 | S33: -0.88 | T33: 0.567026 | U33: -0.37282 | V33: 1.491531 | W33: -1.25282 | Y33: 472.594 | Z33: 0.475389 | AA33: -1.12522 | AB33: 1.528886 | AC33: 0.075791 | AD33: 2.004275 | AE33: -1.04943
I34: 475.604 | J34: 1.619552 | K34: -0.54752 | L34: 0.29684 | M34: -0.04789 | N34: 1.916392 | O34: -0.59541 | Q34: 478.334 | R34: 1.033222 | S34: -0.68 | T34: 0.567026 | U34: -0.37282 | V34: 1.600248 | W34: -1.05282 | Y34: 472.73 | Z34: 0.284896 | AA34: -0.85179 | AB34: 1.528886 | AC34: 0.075791 | AD34: 1.813781 | AE34: -0.776
I35: 475.604 | J35: 1.623154 | K35: -0.51664 | L35: 0.29684 | M35: -0.04789 | N35: 1.919994 | O35: -0.56453 | Q35: 479.174 | R35: 0.72818 | S35: -0.44267 | T35: 0.567026 | U35: -0.37282 | V35: 1.295206 | W35: -0.81549 | Y35: 473.094 | Z35: -0.34093 | AA35: -1.42146 | AB35: 1.528886 | AC35: 0.075791 | AD35: 1.187951 | AE35: -1.34567
I36: 476.074 | J36: 1.337138 | K36: -0.74005 | L36: 0.29684 | M36: -0.04789 | N36: 1.633978 | O36: -0.78794 | Q36: 479.834 | R36: 0.741723 | S36: -0.50844 | T36: 0.567026 | U36: -0.37282 | V36: 1.308749 | W36: -0.88127 | Y36: 473.104 | Z36: 0.251469 | AA36: -0.61768 | AB36: 1.528886 | AC36: 0.075791 | AD36: 1.780354 | AE36: -0.54189
I37: 476.074 | J37: 1.410651 | K37: -0.69114 | L37: 0.29684 | M37: -0.04789 | N37: 1.707491 | O37: -0.73903 | Q37: 479.834 | R37: 0.828238 | S37: -0.44246 | T37: 0.567026 | U37: -0.37282 | V37: 1.395264 | W37: -0.81528 | Y37: 473.3298 | Z37: -0.29005 | AA37: -1.26706 | AB37: 1.528886 | AC37: 0.075791 | AD37: 1.238831 | AE37: -1.19127
I38: 476.594 | J38: 1.1277 | K38: -1.39907 | L38: 0.29684 | M38: -0.04789 | N38: 1.424539 | O38: -1.44696 | Q38: 479.834 | R38: 0.922424 | S38: -0.47956 | T38: 0.567026 | U38: -0.37282 | V38: 1.48945 | W38: -0.85238 | Y38: 474.024 | Z38: -0.11912 | AA38: -1.30792 | AB38: 1.528886 | AC38: 0.075791 | AD38: 1.409765 | AE38: -1.23213
I39: 477.414 | J39: 1.09 | K39: -1.28 | L39: 0.29684 | M39: -0.04789 | N39: 1.38684 | O39: -1.32789 | Q39: 480.566 | R39: 0.670447 | S39: -0.65877 | T39: 0.567026 | U39: -0.37282 | V39: 1.237473 | W39: -1.03159 | Y39: 474.9392 | Z39: -0.29697 | AA39: -1.24051 | AB39: 1.528886 | AC39: 0.075791 | AD39: 1.231917 | AE39: -1.16472
I40: 478.114 | J40: 0.909564 | K40: -1.40334 | L40: 0.29684 | M40: -0.04789 | N40: 1.206404 | O40: -1.45122 | Q40: 481.406 | R40: 0.68 | S40: -0.77 | T40: 0.567026 | U40: -0.37282 | V40: 1.247026 | W40: -1.14282 | Y40: 475.474 | Z40: 0.988478 | AA40: -0.8906 | AB40: 1.528886 | AC40: 0.075791 | AD40: 2.517363 | AE40: -0.81481
I41: 478.334 | J41: 1.163248 | K41: -1.32 | L41: 0.29684 | M41: -0.04789 | N41: 1.460088 | O41: -1.36789 | Q41: 482.956 | R41: 0.421542 | S41: -0.5332 | T41: 0.567026 | U41: -0.37282 | V41: 0.988568 | W41: -0.90602 | Y41: 477.414 | Z41: -0.6 | AA41: -1.27 | AB41: 1.528886 | AC41: 0.075791 | AD41: 0.928886 | AE41: -1.19421
I42: 478.334 | J42: 1.214881 | K42: -1.33 | L42: 0.29684 | M42: -0.04789 | N42: 1.511721 | O42: -1.37789 | Q42: 483.266 | R42: 0.857462 | S42: -0.38677 | T42: 0.567026 | U42: -0.37282 | V42: 1.424488 | W42: -0.75959 | Y42: 477.414 | Z42: 0.204395 | AA42: -0.91 | AB42: 1.528886 | AC42: 0.075791 | AD42: 1.733281 | AE42: -0.83421
I43: 479.834 | J43: 1.195456 | K43: -0.66935 | L43: 0.29684 | M43: -0.04789 | N43: 1.492295 | O43: -0.71724 | Q43: 484.686 | R43: 0.290568 | S43: -0.84899 | T43: 0.567026 | U43: -0.37282 | V43: 0.857594 | W43: -1.22182 | Y43: 477.4224 | Z43: 0.353754 | AA43: -0.99841 | AB43: 1.528886 | AC43: 0.075791 | AD43: 1.88264 | AE43: -0.92262
I44: 479.834 | J44: 1.202082 | K44: -0.51572 | L44: 0.29684 | M44: -0.04789 | N44: 1.498922 | O44: -0.5636 | Q44: 484.686 | R44: 0.269089 | S44: -0.84401 | T44: 0.567026 | U44: -0.37282 | V44: 0.836115 | W44: -1.21683 | Y44: 478.034 | Z44: -0.27827 | AA44: -1.33387 | AB44: 1.528886 | AC44: 0.075791 | AD44: 1.250613 | AE44: -1.25808
I45: 479.834 | J45: 1.234084 | K45: -0.66849 | L45: 0.29684 | M45: -0.04789 | N45: 1.530924 | O45: -0.71637 | Q45: 487.64 | R45: 1.153607 | S45: -0.67523 | T45: 0.567026 | U45: -0.37282 | V45: 1.720633 | W45: -1.04805 | Y45: 478.034 | Z45: -0.00824 | AA45: -1.25165 | AB45: 1.528886 | AC45: 0.075791 | AD45: 1.520648 | AE45: -1.17586
I46: 480.566 | J46: 1.29 | K46: -1.29 | L46: 0.29684 | M46: -0.04789 | N46: 1.58684 | O46: -1.33789 | Y46: 478.334 | Z46: 0.13 | AA46: -1.34 | AB46: 1.528886 | AC46: 0.075791 | AD46: 1.658886 | AE46: -1.26421
I47: 481.406 | J47: 1.17 | K47: -0.49 | L47: 0.29684 | M47: -0.04789 | N47: 1.46684 | O47: -0.53789 | Y47: 478.334 | Z47: 0.34237 | AA47: -1.22 | AB47: 1.528886 | AC47: 0.075791 | AD47: 1.871256 | AE47: -1.14421
I48: 481.836 | J48: 0.88043 | K48: -1.16 | L48: 0.29684 | M48: -0.04789 | N48: 1.177269 | O48: -1.20789 | Y48: 479.174 | Z48: -0.20481 | AA48: -1.09242 | AB48: 1.528886 | AC48: 0.075791 | AD48: 1.324073 | AE48: -1.01662
I49: 483.266 | J49: 0.828995 | K49: -1.13236 | L49: 0.29684 | M49: -0.04789 | N49: 1.125835 | O49: -1.18025 | Y49: 479.174 | Z49: 0.102911 | AA49: -1.09959 | AB49: 1.528886 | AC49: 0.075791 | AD49: 1.631797 | AE49: -1.0238
I50: 483.266 | J50: -0.50856 | K50: -1.12307 | L50: 0.29684 | M50: -0.04789 | N50: -0.21172 | O50: -1.17096 | Y50: 479.174 | Z50: 0.153199 | AA50: -1.3685 | AB50: 1.528886 | AC50: 0.075791 | AD50: 1.682084 | AE50: -1.29271
I51: 483.266 | J51: 0.842556 | K51: -1.29867 | L51: 0.29684 | M51: -0.04789 | N51: 1.139395 | O51: -1.34656 | Y51: 479.174 | Z51: 0.380918 | AA51: -0.91628 | AB51: 1.528886 | AC51: 0.075791 | AD51: 1.909804 | AE51: -0.84049
I52: 483.266 | J52: 1.085626 | K52: -1.25912 | L52: 0.29684 | M52: -0.04789 | N52: 1.382466 | O52: -1.307 | Y52: 479.174 | Z52: 0.896899 | AA52: -0.65738 | AB52: 1.528886 | AC52: 0.075791 | AD52: 2.425785 | AE52: -0.58158
I53: 484.686 | J53: 0.623351 | K53: -1.50922 | L53: 0.29684 | M53: -0.04789 | N53: 0.920191 | O53: -1.5571 | Y53: 481.406 | Z53: 0.003984 | AA53: -1.08697 | AB53: 1.528886 | AC53: 0.075791 | AD53: 1.532869 | AE53: -1.01118
I54: 485.07 | J54: 0.872962 | K54: -1.09916 | L54: 0.29684 | M54: -0.04789 | N54: 1.169802 | O54: -1.14705 | Y54: 481.836 | Z54: -0.09 | AA54: -1.12 | AB54: 1.528886 | AC54: 0.075791 | AD54: 1.438886 | AE54: -1.04421
I55: 486.14 | J55: 1.232055 | K55: -0.75656 | L55: 0.29684 | M55: -0.04789 | N55: 1.528894 | O55: -0.80445 | Y55: 483.266 | Z55: -0.60763 | AA55: -1.34234 | AB55: 1.528886 | AC55: 0.075791 | AD55: 0.921251 | AE55: -1.26655
Y56: 483.266 | Z56: 1.193275 | AA56: -0.66164 | AB56: 1.528886 | AC56: 0.075791 | AD56: 2.722161 | AE56: -0.58585
Y57: 484.686 | Z57: -0.23832 | AA57: -0.63483 | AB57: 1.528886 | AC57: 0.075791 | AD57: 1.290563 | AE57: -0.55904

Sheet Composite curve
A1: Ordered by sp / group | F1: Ordered by sample depth | K1: Multi sp average for each depth horizon
A2: Sp / group | B2: Depth CCSF-M | C2: Composite δ13C (‰) VPDB | D2: Composite δ18O (‰) VPDB | F2: Sp / group | G2: Depth CCSF-M | H2: Composite δ13C (‰) VPDB | I2: Composite δ18O (‰) VPDB | K2: Depth | L2: Average Composite δ13C (‰) VPDB of all sp / groups | M2: Average Composite δ18O (‰) VPDB of all sp / groups
A3: Cibicides | B3: 458.4037 | C3: 2.36231 | D3: -1.01381 | F3: Lenticulina | G3: 431.63 | H3: 2.306764 | I3: -0.99414 | K3: 431.63 | L3: 2.306764 | M3: -0.99414
A4: Cibicides | B4: 459.004 | C4: 2.077529 | D4: -0.96585 | F4: Gavelinellinae | G4: 431.81 | H4: 1.955354 | I4: -0.6127 | K4: 431.81 | L4: =AVERAGE(H4:H6) -> 3.013902667 | M4: =AVERAGE(I4:I6) -> -0.9275266667
A5: Cibicides | B5: 460.414 | C5: 2.447031 | D5: -0.98773 | F5: Lenticulina | G5: 431.81 | H5: 2.481927 | I5: -0.89978 | K5: 432.72 | L5: 2.361485 | M5: -1.06526
A6: Cibicides | B6: 461.1939 | C6: 2.102669 | D6: -0.98907 | F6: Lenticulina | G6: 431.81 | H6: 4.604427 | I6: -1.2701 | K6: 436.07 | L6: 2.524321 | M6: -0.37048
A7: Cibicides | B7: 461.5137 | C7: 2.082743 | D7: -1.26208 | F7: Lenticulina | G7: 432.72 | H7: 2.361485 | I7: -1.06526 | K7: 437.61 | L7: =AVERAGE(H9:H10) -> 2.7156705 | M7: =AVERAGE(I9:I10) -> -1.17048
A8: Cibicides | B8: 464.141 | C8: 2.208776 | D8: -1.21268 | F8: Gavelinellinae | G8: 436.07 | H8: 2.524321 | I8: -0.37048 | K8: 440.96 | L8: 3.208082 | M8: -0.80702
A9: Cibicides | B9: 464.391 | C9: 2.263713 | D9: -1.25951 | F9: Lenticulina | G9: 437.61 | H9: 2.381198 | I9: -1.30495 | K9: 451.57 | L9: 2.043081 | M9: -1.3923
A10: Cibicides | B10: 467.079 | C10: 2.884933 | D10: -1.34005 | F10: Lenticulina | G10: 437.61 | H10: 3.050143 | I10: -1.03601 | K10: 456.4 | L10: 2.414396 | M10: -0.69876
A11: Cibicides | B11: 471.5715 | C11: 1.532021 | D11: -1.26523 | F11: Lenticulina | G11: 440.96 | H11: 3.208082 | I11: -0.80702 | K11: 457.65 | L11: 2.713097 | M11: -0.95334
A12: Cibicides | B12: 472.73 | C12: 1.775112 | D12: -1.00413 | F12: Gavelinellinae | G12: 451.57 | H12: 2.043081 | I12: -1.3923 | K12: 458.4037 | L12: =AVERAGE(H15:H21) -> 2.523168714 | M12: =AVERAGE(I15:I21) -> -1.319814286
A13: Cibicides | B13: 473.3298 | C13: 1.757437 | D13: -1.31606 | F13: Gavelinellinae | G13: 456.4 | H13: 2.414396 | I13: -0.69876 | K13: 458.64 | L13: =AVERAGE(H22:H23) -> 2.661885 | M13: =AVERAGE(I22:I23) -> -1.0086
A14: Cibicides | B14: 473.484 | C14: 1.034077 | D14: -0.51877 | F14: Gavelinellinae | G14: 457.65 | H14: 2.713097 | I14: -0.95334 | K14: 459.004 | L14: =AVERAGE(H24:H28) -> 2.5987762 | M14: =AVERAGE(I24:I28) -> -1.189626
A15: Cibicides | B15: 475.474 | C15: 1.782198 | D15: -1.17496 | F15: Cibicides | G15: 458.4037 | H15: 2.36231 | I15: -1.01381 | K15: 459.3172 | L15: 2.494038 | M15: -1.18713
A16: Gavelinellinae | B16: 431.81 | C16: 1.955354 | D16: -0.6127 | F16: Gavelinellinae | G16: 458.4037 | H16: 2.631733 | I16: -1.15732 | K16: 460.414 | L16: 2.447031 | M16: -0.98773
A17: Gavelinellinae | B17: 436.07 | C17: 2.524321 | D17: -0.37048 | F17: Gyroidinoides | G17: 458.4037 | H17: 2.717384 | I17: -1.33317 | K17: 461.1939 | L17: =AVERAGE(H31:H34) -> 2.72518325 | M17: =AVERAGE(I31:I34) -> -1.2153475
A18: Gavelinellinae | B18: 451.57 | C18: 2.043081 | D18: -1.3923 | F18: Osangularia utaturensis | G18: 458.4037 | H18: 2.493479 | I18: -1.29677 | K18: 461.5137 | L18: =AVERAGE(H35:H37) -> 2.332302333 | M18: =AVERAGE(I35:I37) -> -1.487703333
A19: Gavelinellinae | B19: 456.4 | C19: 2.414396 | D19: -0.69876 | F19: Lenticulina | G19: 458.4037 | H19: 2.582775 | I19: -1.31719 | K19: 462.26 | L19: =AVERAGE(H38:H40) -> 2.535117667 | M19: =AVERAGE(I38:I40) -> -1.36014
A20: Gavelinellinae | B20: 457.65 | C20: 2.713097 | D20: -0.95334 | F20: Lenticulina | G20: 458.4037 | H20: 2.335539 | I20: -1.55597 | K20: 464.077 | L20: =AVERAGE(H41:H42) -> 3.212717 | M20: =AVERAGE(I41:I42) -> -1.42567
A21: Gavelinellinae | B21: 458.4037 | C21: 2.631733 | D21: -1.15732 | F21: Lenticulina | G21: 458.4037 | H21: 2.538961 | I21: -1.56447 | K21: 464.141 | L21: =AVERAGE(H43:H45) -> 2.755650333 | M21: =AVERAGE(I43:I45) -> -1.266763333
A22: Gavelinellinae | B22: 458.64 | C22: 2.655521 | D22: -0.95361 | F22: Gavelinellinae | G22: 458.64 | H22: 2.655521 | I22: -0.95361 | K22: 464.391 | L22: =AVERAGE(H46:H48) -> 2.376241333 | M22: =AVERAGE(I46:I48) -> -1.501606667
A23: Gavelinellinae | B23: 458.64 | C23: 2.668249 | D23: -1.06359 | F23: Gavelinellinae | G23: 458.64 | H23: 2.668249 | I23: -1.06359 | K23: 465.224 | L23: =AVERAGE(H49:H52) -> 3.4110995 | M23: =AVERAGE(I49:I52) -> -1.426895
A24: Gavelinellinae | B24: 459.004 | C24: 2.557532 | D24: -1.24195 | F24: Cibicides | G24: 459.004 | H24: 2.077529 | I24: -0.96585 | K24: 466.29 | L24: =AVERAGE(H53:H56) -> 2.982631 | M24: =AVERAGE(I53:I56) -> -1.6071025
A25: Gavelinellinae | B25: 459.3172 | C25: 2.494038 | D25: -1.18713 | F25: Gavelinellinae | G25: 459.004 | H25: 2.557532 | I25: -1.24195 | K25: 467.079 | L25: =AVERAGE(H57:H59) -> 3.374045 | M25: =AVERAGE(I57:I59) -> -1.339243333
A26: Gavelinellinae | B26: 461.1939 | C26: 2.545465 | D26: -1.05215 | F26: Gyroidinoides | G26: 459.004 | H26: 3.331028 | I26: -1.16878 | K26: 471.4095 | L26: =AVERAGE(H60:H61) -> 1.7129975 | M26: =AVERAGE(I60:I61) -> -1.09385
A27: Gavelinellinae | B27: 464.141 | C27: 2.363386 | D27: -1.47877 | F27: Osangularia utaturensis | G27: 459.004 | H27: 2.405228 | I27: -1.33929 | K27: 471.5715 | L27: =AVERAGE(H27:H29) -> 2.507276667 | M27: =AVERAGE(I27:I29) -> -1.252893333
A28: Gavelinellinae | B28: 464.391 | C28: 2.533957 | D28: -1.46654 | F28: Lenticulina | G28: 459.004 | H28: 2.622564 | I28: -1.23226 | K28: 471.774 | L28: =AVERAGE(H28:H29) -> 2.558301 | M28: =AVERAGE(I28:I29) -> -1.209695
A29: Gavelinellinae | B29: 466.29 | C29: 2.92684 | D29: -1.67789 | F29: Gavelinellinae | G29: 459.3172 | H29: 2.494038 | I29: -1.18713 | K29: 471.944 | L29: =AVERAGE(H29:H32) -> 2.39730075 | M29: =AVERAGE(I29:I32) -> -1.05402
A30: Gavelinellinae | B30: 471.4095 | C30: 1.59373 | D30: -1.1994 | F30: Cibicides | G30: 460.414 | H30: 2.447031 | I30: -0.98773 | K30: 471.9735 | L30: =AVERAGE(H30:H31) -> 2.27485 | M30: =AVERAGE(I30:I31) -> -0.9884
A31: Gavelinellinae | B31: 471.774 | C31: 1.461864 | D31: -1.43384 | F31: Cibicides | G31: 461.1939 | H31: 2.102669 | I31: -0.98907 | K31: 472.589 | L31: 1.161981 | M31: -0.88322
A32: Gavelinellinae | B32: 472.594 | C32: 1.04684 | D32: -0.83789 | F32: Gavelinellinae | G32: 461.1939 | H32: 2.545465 | I32: -1.05215 | K32: 472.594 | L32: =AVERAGE(H32:H38) -> 2.604033571 | M32: =AVERAGE(I32:I38) -> -1.408831429
A33: Gavelinellinae | B33: 472.594 | C33: 1.457099 | D33: -1.38313 | F33: Lenticulina | G33: 461.1939 | H33: 3.420168 | I33: -1.40814 | K33: 472.73 | L33: =AVERAGE(H33:H36) -> 2.73632975 | M33: =AVERAGE(I33:I36) -> -1.403825
A34: Gavelinellinae | B34: 472.594 | C34: 1.468864 | D34: -1.30668 | F34: Lenticulina | G34: 461.1939 | H34: 2.832431 | I34: -1.41203 | K34: 473.094 | L34: =AVERAGE(H34:H36) -> 2.508383667 | M34: =AVERAGE(I34:I36) -> -1.402386667
A35: Gavelinellinae | B35: 472.73 | C35: 1.641715 | D35: -1.14202 | F35: Cibicides | G35: 461.5137 | H35: 2.082743 | I35: -1.26208 | K35: 473.104 | L35: =AVERAGE(H35:H36) -> 2.34636 | M35: =AVERAGE(I35:I36) -> -1.397565
A36: Gavelinellinae | B36: 473.094 | C36: 1.80684 | D36: -1.44789 | F36: Gyroidinoides | G36: 461.5137 | H36: 2.609977 | I36: -1.53305 | K36: 473.3298 | L36: =AVERAGE(H36:H40) -> 2.5039034 | M36: =AVERAGE(I36:I40) -> -1.45629
A37: Gavelinellinae | B37: 473.3298 | C37: 1.620239 | D37: -0.96619 | F37: Lenticulina | G37: 461.5137 | H37: 2.304187 | I37: -1.66798 | K37: 473.474 | L37: =AVERAGE(H37:H39) -> 2.290368 | M37: =AVERAGE(I37:I39) -> -1.516846667
A38: Gavelinellinae | B38: 473.474 | C38: 1.521161 | D38: -0.93351 | F38: Gyroidinoides | G38: 462.26 | H38: 2.433264 | I38: -1.52639 | K38: 473.484 | L38: 1.034077 | M38: -0.51877
A39: Gavelinellinae | B39: 473.474 | C39: 1.546601 | D39: -1.09473 | F39: Osangularia utaturensis | G39: 462.26 | H39: 2.133653 | I39: -1.35617 | K39: 474.0158 | L39: 1.549462 | M39: -1.06499
A40: Gavelinellinae | B40: 474.024 | C40: 1.376626 | D40: -1.08193 | F40: Lenticulina | G40: 462.26 | H40: 3.038436 | I40: -1.19786 | K40: 474.024 | L40: =AVERAGE(H40:H42) -> 3.154623333 | M40: =AVERAGE(I40:I42) -> -1.349733333
A41: Gavelinellinae | B41: 474.024 | C41: 1.48681 | D41: -0.8975 | F41: Lenticulina | G41: 464.077 | H41: 2.632886 | I41: -1.76394 | K41: 474.774 | L41: 1.561943 | M41: -1.10448
A42: Gavelinellinae | B42: 474.9392 | C42: 1.684689 | D42: -1.11926 | F42: Lenticulina | G42: 464.077 | H42: 3.792548 | I42: -1.0874 | K42: 474.9392 | L42: =AVERAGE(H42:H46) -> 2.8646424 | M42: =AVERAGE(I42:I46) -> -1.22944
A43: Gavelinellinae | B43: 474.9392 | C43: 1.746978 | D43: -1.32109 | F43: Cibicides | G43: 464.141 | H43: 2.208776 | I43: -1.21268 | K43: 475.474 | L43: =AVERAGE(H43:H46) -> 2.632666 | M43: =AVERAGE(I43:I46) -> -1.26495
A44: Gavelinellinae | B44: 475.474 | C44: 1.826795 | D44: -1.12815 | F44: Gavelinellinae | G44: 464.141 | H44: 2.363386 | I44: -1.47877 | K44: 475.604 | L44: =AVERAGE(H44:H50) -> 2.789564 | M44: =AVERAGE(I44:I50) -> -1.431827143
A45: Gavelinellinae | B45: 475.604 | C45: 1.842406 | D45: -0.73589 | F45: Lenticulina | G45: 464.141 | H45: 3.694789 | I45: -1.10884 | K45: 476.074 | L45: =AVERAGE(H45:H48) -> 2.70587825 | M45: =AVERAGE(I45:I48) -> -1.403415
A46: Gavelinellinae | B46: 475.604 | C46: 1.890067 | D46: -0.93402 | F46: Cibicides | G46: 464.391 | H46: 2.263713 | I46: -1.25951 | K46: 476.594 | L46: =AVERAGE(H46:H47) -> 2.398835 | M46: =AVERAGE(I46:I47) -> -1.363025
A47: Gavelinellinae | B47: 475.604 | C47: 1.916392 | D47: -0.59541 | F47: Gavelinellinae | G47: 464.391 | H47: 2.533957 | I47: -1.46654 | K47: 477.414 | L47: =AVERAGE(H47:H49) -> 2.647178667 | M47: =AVERAGE(I47:I49) -> -1.562093333
A48: Gavelinellinae | B48: 475.604 | C48: 1.919994 | D48: -0.56453 | F48: Lenticulina | G48: 464.391 | H48: 2.331054 | I48: -1.77877 | K48: 477.4224 | L48: =AVERAGE(H48:H50) -> 2.890367667 | M48: =AVERAGE(I48:I50) -> -1.56971
A49: Gavelinellinae | B49: 476.074 | C49: 1.633978 | D49: -0.78794 | F49: Lenticulina | G49: 465.224 | H49: 3.076525 | I49: -1.44097 | K49: 478.034 | L49: =AVERAGE(H49:H50) -> 3.1700245 | M49: =AVERAGE(I49:I50) -> -1.46518
A50: Gavelinellinae | B50: 476.074 | C50: 1.707491 | D50: -0.73903 | F50: Lenticulina | G50: 465.224 | H50: 3.263524 | I50: -1.48939 | K50: 478.114 | L50: 1.206404 | M50: -1.45122
A51: Gavelinellinae | B51: 476.594 | C51: 1.424539 | D51: -1.44696 | F51: Lenticulina | G51: 465.224 | H51: 3.46673 | I51: -1.40797 | K51: 478.334 | L51: =AVERAGE(H51:H56) -> 3.205812167 | M51: -1.534271667
A52: Gavelinellinae | B52: 477.414 | C52: 1.38684 | D52: -1.32789 | F52: Lenticulina | G52: 465.224 | H52: 3.837619 | I52: -1.36925 | K52: 479.174 | L52: 3.108846 | M52: -1.522951667
A53: Gavelinellinae | B53: 478.114 | C53: 1.206404 | D53: -1.45122 | F53: Gavelinellinae | G53: 466.29 | H53: 2.92684 | I53: -1.67789 | K53: 479.834 | L53: 2.983287667 | M53: -1.51419
A54: Gavelinellinae | B54: 478.334 | C54: 1.460088 | D54: -1.36789 | F54: Gyroidinoides | G54: 466.29 | H54: 2.702774 | I54: -1.77691 | K54: 480.566 | L54: =AVERAGE(H54:H55) -> 2.5831795 | M54: =AVERAGE(I54:I55) -> -1.726035
A55: Gavelinellinae | B55: 478.334 | C55: 1.511721 | D55: -1.37789 | F55: Osangularia utaturensis | G55: 466.29 | H55: 2.463585 | I55: -1.67516 | K55: 481.406 | L55: =AVERAGE(H55:H57) -> 3.061947667 | M55: =AVERAGE(I55:I57) -> -1.437886667
A56: Gavelinellinae | B56: 479.834 | C56: 1.492295 | D56: -0.71724 | F56: Lenticulina | G56: 466.29 | H56: 3.837325 | I56: -1.29845 | K56: 481.836 | L56: =AVERAGE(H56:H57) -> 3.361129 | M56: =AVERAGE(I56:I57) -> -1.31925
A57: Gavelinellinae | B57: 479.834 | C57: 1.498922 | D57: -0.5636 | F57: Cibicides | G57: 467.079 | H57: 2.884933 | I57: -1.34005 | K57: 482.956 | L57: 0.988568 | M57: -0.90602
A58: Gavelinellinae | B58: 479.834 | C58: 1.530924 | D58: -0.71637 | F58: Osangularia utaturensis | G58: 467.079 | H58: 3.084269 | I58: -1.31668 | K58: 483.266 | L58: =AVERAGE(H58:H64) -> 2.224032143 | M58: =AVERAGE(I58:I64) -> -1.167294286
A59: Gavelinellinae | B59: 480.566 | C59: 1.58684 | D59: -1.33789 | F59: Lenticulina | G59: 467.079 | H59: 4.152933 | I59: -1.361 | K59: 484.686 | L59: =AVERAGE(H59:H62) -> 2.27773725 | M59: =AVERAGE(I59:I62) -> -1.2034825
A60: Gavelinellinae | B60: 481.406 | C60: 1.46684 | D60: -0.53789 | F60: Gavelinellinae | G60: 471.4095 | H60: 1.59373 | I60: -1.1994 | K60: 485.07 | L60: 1.169802 | M60: -1.14705
A61: Gavelinellinae | B61: 481.836 | C61: 1.177269 | D61: -1.20789 | F61: Gyroidinoides | G61: 471.4095 | H61: 1.832265 | I61: -0.9883 | K61: 486.14 | L61: 1.528894 | M61: -0.80445
A62: Gavelinellinae | B62: 483.266 | C62: 1.125835 | D62: -1.18025 | F62: Cibicides | G62: 471.5715 | H62: 1.532021 | I62: -1.26523 | K62: 487.64 | L62: 1.720633 | M62: -1.04805
A63: Gavelinellinae | B63: 483.266 | C63: -0.21172 | D63: -1.17096 | F63: Gyroidinoides | G63: 471.5715 | H63: 1.746675 | I63: -0.92825
A64: Gavelinellinae | B64: 483.266 | C64: 1.139395 | D64: -1.34656 | F64: Osangularia utaturensis | G64: 471.5715 | H64: 1.626332 | I64: -1.1122
A65: Gavelinellinae | B65: 483.266 | C65: 1.382466 | D65: -1.307 | F65: Gavelinellinae | G65: 471.774 | H65: 1.461864 | I65: -1.43384
A66: Gavelinellinae | B66: 484.686 | C66: 0.920191 | D66: -1.5571 | F66: Gyroidinoides | G66: 471.774 | H66: 1.538956 | I66: -1.21313
A67: Gavelinellinae | B67: 485.07 | C67: 1.169802 | D67: -1.14705 | F67: Gyroidinoides | G67: 471.944 | H67: 1.241727 | I67: -1.70965
A68: Gavelinellinae | B68: 486.14 | C68: 1.528894 | D68: -0.80445 | F68: Gyroidinoides | G68: 471.944 | H68: 1.396062 | I68: -1.17632
A69: Gyroidinoides | B69: 458.4037 | C69: 2.717384 | D69: -1.33317 | F69: Lenticulina | G69: 471.944 | H69: 0.798387 | I69: -1.25661
A70: Gyroidinoides | B70: 459.004 | C70: 3.331028 | D70: -1.16878 | F70: Lenticulina | G70: 471.944 | H70: 1.181136 | I70: -1.10232
A71: Gyroidinoides | B71: 461.5137 | C71: 2.609977 | D71: -1.53305 | F71: Gyroidinoides | G71: 471.9735 | H71: 2.6763 | I71: -0.7426
A72: Gyroidinoides | B72: 462.26 | C72: 2.433264 | D72: -1.52639 | F72: Lenticulina | G72: 471.9735 | H72: 2.643069 | I72: -0.79117
A73: Gyroidinoides | B73: 466.29 | C73: 2.702774 | D73: -1.77691 | F73: Gyroidinoides | G73: 472.589 | H73: 1.161981 | I73: -0.88322
A74: Gyroidinoides | B74: 471.4095 | C74: 1.832265 | D74: -0.9883 | F74: Gavelinellinae | G74: 472.594 | H74: 1.04684 | I74: -0.83789
A75: Gyroidinoides | B75: 471.5715 | C75: 1.746675 | D75: -0.92825 | F75: Gavelinellinae | G75: 472.594 | H75: 1.457099 | I75: -1.38313
A76: Gyroidinoides | B76: 471.774 | C76: 1.538956 | D76: -1.21313 | F76: Gavelinellinae | G76: 472.594 | H76: 1.468864 | I76: -1.30668
A77: Gyroidinoides | B77: 471.944 | C77: 1.241727 | D77: -1.70965 | F77: Gyroidinoides | G77: 472.594 | H77: 1.300879 | I77: -1.14839
A78: Gyroidinoides | B78: 471.944 | C78: 1.396062 | D78: -1.17632 | F78: Lenticulina | G78: 472.594 | H78: 0.429384 | I78: -1.34652
A79: Gyroidinoides | B79: 471.9735 | C79: 2.6763 | D79: -0.7426 | F79: Lenticulina | G79: 472.594 | H79: 1.348264 | I79: -1.2346
A80: Gyroidinoides | B80: 472.589 | C80: 1.161981 | D80: -0.88322 | F80: Lenticulina | G80: 472.594 | H80: 2.004275 | I80: -1.04943
A81: Gyroidinoides | B81: 472.594 | C81: 1.300879 | D81: -1.14839 | F81: Cibicides | G81: 472.73 | H81: 1.775112 | I81: -1.00413
A82: Gyroidinoides | B82: 472.73 | C82: 2.282875 | D82: -0.70819 | F82: Gavelinellinae | G82: 472.73 | H82: 1.641715 | I82: -1.14202
A83: Gyroidinoides | B83: 473.094 | C83: 1.605058 | D83: -1.25859 | F83: Gyroidinoides | G83: 472.73 | H83: 2.282875 | I83: -0.70819
A84: Gyroidinoides | B84: 473.104 | C84: 1.348299 | D84: -1.16718 | F84: Lenticulina | G84: 472.73 | H84: 1.813781 | I84: -0.776
A85: Gyroidinoides | B85: 473.3298 | C85: 1.764269 | D85: -1.06231 | F85: Gavelinellinae | G85: 473.094 | H85: 1.80684 | I85: -1.44789
A86: Gyroidinoides | B86: 473.474 | C86: 1.380428 | D86: -1.1176 | F86: Gyroidinoides | G86: 473.094 | H86: 1.605058 | I86: -1.25859
A87: Gyroidinoides | B87: 474.0158 | C87: 1.549462 | D87: -1.06499 | F87: Lenticulina | G87: 473.094 | H87: 1.187951 | I87: -1.34567
A88: Gyroidinoides | B88: 474.774 | C88: 1.561943 | D88: -1.10448 | F88: Gyroidinoides | G88: 473.104 | H88: 1.348299 | I88: -1.16718
A89: Gyroidinoides | B89: 474.9392 | C89: 1.400832 | D89: -1.10784 | F89: Lenticulina | G89: 473.104 | H89: 1.780354 | I89: -0.54189
A90: Gyroidinoides | B90: 474.9392 | C90: 1.438155 | D90: -1.12705 | F90: Cibicides | G90: 473.3298 | H90: 1.757437 | I90: -1.31606
A91: Gyroidinoides | B91: 475.474 | C91: 1.742174 | D91: -0.99145 | F91: Gavelinellinae | G91: 473.3298 | H91: 1.620239 | I91: -0.96619
A92: Gyroidinoides | B92: 475.604 | C92: 1.806341 | D92: -0.91396 | F92: Gyroidinoides | G92: 473.3298 | H92: 1.764269 | I92: -1.06231
A93: Gyroidinoides | B93: 475.604 | C93: 1.997275 | D93: -1.14997 | F93: Osangularia utaturensis | G93: 473.3298 | H93: 1.980389 | I93: -0.62009
A94: Gyroidinoides | B94: 475.604 | C94: 2.078366 | D94: -0.97864 | F94: Lenticulina | G94: 473.3298 | H94: 1.238831 | I94: -1.19127
A95: Gyroidinoides | B95: 476.074 | C95: 1.479925 | D95: -1.19136 | F95: Gavelinellinae | G95: 473.474 | H95: 1.521161 | I95: -0.93351
A96: Gyroidinoides | B96: 476.074 | C96: 1.514691 | D96: -1.22765 | F96: Gavelinellinae | G96: 473.474 | H96: 1.546601 | I96: -1.09473
A97: Gyroidinoides | B97: 476.594 | C97: 1.275474 | D97: -1.07811 | F97: Gyroidinoides | G97: 473.474 | H97: 1.380428 | I97: -1.1176
A98: Gyroidinoides | B98: 477.4224 | C98: 1.160386 | D98: -1.02144 | F98: Cibicides | G98: 473.484 | H98: 1.034077 | I98: -0.51877
A99: Gyroidinoides | B99: 478.334 | C99: 1.491531 | D99: -1.25282 | F99: Gyroidinoides | G99: 474.0158 | H99: 1.549462 | I99: -1.06499
A100: Gyroidinoides | B100: 478.334 | C100: 1.600248 | D100: -1.05282 | F100: Gavelinellinae | G100: 474.024 | H100: 1.376626 | I100: -1.08193
A101: Gyroidinoides | B101: 479.174 | C101: 1.295206 | D101: -0.81549 | F101: Gavelinellinae | G101: 474.024 | H101: 1.48681 | I101: -0.8975
A102: Gyroidinoides | B102: 479.834 | C102: 1.308749 | D102: -0.88127 | F102: Lenticulina | G102: 474.024 | H102: 1.409765 | I102: -1.23213
A103: Gyroidinoides | B103: 479.834 | C103: 1.395264 | D103: -0.81528 | F103: Gyroidinoides | G103: 474.774 | H103: 1.561943 | I103: -1.10448
A104: Gyroidinoides | B104: 479.834 | C104: 1.48945 | D104: -0.85238 | F104: Gavelinellinae | G104: 474.9392 | H104: 1.684689 | I104: -1.11926
A105: Gyroidinoides | B105: 480.566 | C105: 1.237473 | D105: -1.03159 | F105: Gavelinellinae | G105: 474.9392 | H105: 1.746978 | I105: -1.32109
A106: Gyroidinoides | B106: 481.406 | C106: 1.247026 | D106: -1.14282 | F106: Gyroidinoides | G106: 474.9392 | H106: 1.400832 | I106: -1.10784
A107: Gyroidinoides | B107: 482.956 | C107: 0.988568 | D107: -0.90602 | F107: Gyroidinoides | G107: 474.9392 | H107: 1.438155 | I107: -1.12705
A108: Gyroidinoides | B108: 483.266 | C108: 1.424488 | D108: -0.75959 | F108: Lenticulina | G108: 474.9392 | H108: 1.231917 | I108: -1.16472
A109: Gyroidinoides | B109: 484.686 | C109: 0.857594 | D109: -1.22182 | F109: Cibicides | G109: 475.474 | H109: 1.782198 | I109: -1.17496
A110: Gyroidinoides | B110: 484.686 | C110: 0.836115 | D110: -1.21683 | F110: Gavelinellinae | G110: 475.474 | H110: 1.826795 | I110: -1.12815
A111: Gyroidinoides | B111: 487.64 | C111: 1.720633 | D111: -1.04805 | F111: Gyroidinoides | G111: 475.474 | H111: 1.742174 | I111: -0.99145
A112: Osangularia utaturensis | B112: 458.4037 | C112: 2.493479 | D112: -1.29677 | F112: Lenticulina | G112: 475.474 | H112: 2.517363 | I112: -0.81481
A113: Osangularia utaturensis | B113: 459.004 | C113: 2.405228 | D113: -1.33929 | F113: Gavelinellinae | G113: 475.604 | H113: 1.842406 | I113: -0.73589
A114: Osangularia utaturensis | B114: 462.26 | C114: 2.133653 | D114: -1.35617 | F114: Gavelinellinae | G114: 475.604 | H114: 1.890067 | I114: -0.93402
A115: Osangularia utaturensis | B115: 466.29 | C115: 2.463585 | D115: -1.67516 | F115: Gavelinellinae | G115: 475.604 | H115: 1.916392 | I115: -0.59541
A116: Osangularia utaturensis | B116: 467.079 | C116: 3.084269 | D116: -1.31668 | F116: Gavelinellinae | G116: 475.604 | H116: 1.919994 | I116: -0.56453
A117: Osangularia utaturensis | B117: 471.5715 | C117: 1.626332 | D117: -1.1122 | F117: Gyroidinoides | G117: 475.604 | H117: 1.806341 | I117: -0.91396
A118: Osangularia utaturensis | B118: 473.3298 | C118: 1.980389 | D118: -0.62009 | F118: Gyroidinoides | G118: 475.604 | H118: 1.997275 | I118: -1.14997
A119: Osangularia utaturensis | B119: 477.4224 | C119: 1.819526 | D119: -0.61705 | F119: Gyroidinoides | G119: 475.604 | H119: 2.078366 | I119: -0.97864
A120: Lenticulina | B120: 431.63 | C120: 2.306764 | D120: -0.99414 | F120: Gavelinellinae | G120: 476.074 | H120: 1.633978 | I120: -0.78794
A121: Lenticulina | B121: 431.81 | C121: 2.481927 | D121: -0.89978 | F121: Gavelinellinae | G121: 476.074 | H121: 1.707491 | I121: -0.73903
A122: Lenticulina | B122: 431.81 | C122: 4.604427 | D122: -1.2701 | F122: Gyroidinoides | G122: 476.074 | H122: 1.479925 | I122: -1.19136
A123: Lenticulina | B123: 432.72 | C123: 2.361485 | D123: -1.06526 | F123: Gyroidinoides | G123: 476.074 | H123: 1.514691 | I123: -1.22765
A124: Lenticulina | B124: 437.61 | C124: 2.381198 | D124: -1.30495 | F124: Gavelinellinae | G124: 476.594 | H124: 1.424539 | I124: -1.44696
A125: Lenticulina | B125: 437.61 | C125: 3.050143 | D125: -1.03601 | F125: Gyroidinoides | G125: 476.594 | H125: 1.275474 | I125: -1.07811
A126: Lenticulina | B126: 440.96 | C126: 3.208082 | D126: -0.80702 | F126: Gavelinellinae | G126: 477.414 | H126: 1.38684 | I126: -1.32789
A127: Lenticulina | B127: 458.4037 | C127: 2.582775 | D127: -1.31719 | F127: Lenticulina | G127: 477.414 | H127: 0.928886 | I127: -1.19421
A128: Lenticulina | B128: 458.4037 | C128: 2.335539 | D128: -1.55597 | F128: Lenticulina | G128: 477.414 | H128: 1.733281 | I128: -0.83421
A129: Lenticulina | B129: 458.4037 | C129: 2.538961 | D129: -1.56447 | F129: Gyroidinoides | G129: 477.4224 | H129: 1.160386 | I129: -1.02144
A130: Lenticulina | B130: 459.004 | C130: 2.622564 | D130: -1.23226 | F130: Osangularia utaturensis | G130: 477.4224 | H130: 1.819526 | I130: -0.61705
A131: Lenticulina | B131: 461.1939 | C131: 3.420168 | D131: -1.40814 | F131: Lenticulina | G131: 477.4224 | H131: 1.88264 | I131: -0.92262
A132: Lenticulina | B132: 461.1939 | C132: 2.832431 | D132: -1.41203 | F132: Lenticulina | G132: 478.034 | H132: 1.250613 | I132: -1.25808
A133: Lenticulina | B133: 461.5137 | C133: 2.304187 | D133: -1.66798 | F133: Lenticulina | G133: 478.034 | H133: 1.520648 | I133: -1.17586
A134: Lenticulina | B134: 462.26 | C134: 3.038436 | D134: -1.19786 | F134: Gavelinellinae | G134: 478.114 | H134: 1.206404 | I134: -1.45122
A135: Lenticulina | B135: 464.077 | C135: 2.632886 | D135: -1.76394 | F135: Gavelinellinae | G135: 478.334 | H135: 1.460088 | I135: -1.36789
A136: Lenticulina | B136: 464.077 | C136: 3.792548 | D136: -1.0874 | F136: Gavelinellinae | G136: 478.334 | H136: 1.511721 | I136: -1.37789
A137: Lenticulina | B137: 464.141 | C137: 3.694789 | D137: -1.10884 | F137: Gyroidinoides | G137: 478.334 | H137: 1.491531 | I137: -1.25282
A138: Lenticulina | B138: 464.391 | C138: 2.331054 | D138: -1.77877 | F138: Gyroidinoides | G138: 478.334 | H138: 1.600248 | I138: -1.05282
A139: Lenticulina | B139: 465.224 | C139: 3.076525 | D139: -1.44097 | F139: Lenticulina | G139: 478.334 | H139: 1.658886 | I139: -1.26421
A140: Lenticulina | B140: 465.224 | C140: 3.263524 | D140: -1.48939 | F140: Lenticulina | G140: 478.334 | H140: 1.871256 | I140: -1.14421
A141: Lenticulina | B141: 465.224 | C141: 3.46673 | D141: -1.40797 | F141: Gyroidinoides | G141: 479.174 | H141: 1.295206 | I141: -0.81549
A142: Lenticulina | B142: 465.224 | C142: 3.837619 | D142: -1.36925 | F142: Lenticulina | G142: 479.174 | H142: 1.324073 | I142: -1.01662
A143: Lenticulina | B143: 466.29 | C143: 3.837325 | D143: -1.29845 | F143: Lenticulina | G143: 479.174 | H143: 1.631797 | I143: -1.0238
A144: Lenticulina | B144: 467.079 | C144: 4.152933 | D144: -1.361 | F144: Lenticulina | G144: 479.174 | H144: 1.682084 | I144: -1.29271
A145: Lenticulina | B145: 471.944 | C145: 0.798387 | D145: -1.25661 | F145: Lenticulina | G145: 479.174 | H145: 1.909804 | I145: -0.84049
A146: Lenticulina | B146: 471.944 | C146: 1.181136 | D146: -1.10232 | F146: Lenticulina | G146: 479.174 | H146: 2.425785 | I146: -0.58158
A147: Lenticulina | B147: 471.9735 | C147: 2.643069 | D147: -0.79117 | F147: Gavelinellinae | G147: 479.834 | H147: 1.492295 | I147: -0.71724
A148: Lenticulina | B148: 472.594 | C148: 0.429384 | D148: -1.34652 | F148: Gavelinellinae | G148: 479.834 | H148: 1.498922 | I148: -0.5636
A149: Lenticulina | B149: 472.594 | C149: 1.348264 | D149: -1.2346 | F149: Gavelinellinae | G149: 479.834 | H149: 1.530924 | I149: -0.71637
A150: Lenticulina | B150: 472.594 | C150: 2.004275 | D150: -1.04943 | F150: Gyroidinoides | G150: 479.834 | H150: 1.308749 | I150: -0.88127
A151: Lenticulina | B151: 472.73 | C151: 1.813781 | D151: -0.776 | F151: Gyroidinoides | G151: 479.834 | H151: 1.395264 | I151: -0.81528
A152: Lenticulina | B152: 473.094 | C152: 1.187951 | D152: -1.34567 | F152: Gyroidinoides | G152: 479.834 | H152: 1.48945 | I152: -0.85238
A153: Lenticulina | B153: 473.104 | C153: 1.780354 | D153: -0.54189 | F153: Gavelinellinae | G153: 480.566 | H153: 1.58684 | I153: -1.33789
A154: Lenticulina | B154: 473.3298 | C154: 1.238831 | D154: -1.19127 | F154: Gyroidinoides | G154: 480.566 | H154: 1.237473 | I154: -1.03159
A155: Lenticulina | B155: 474.024 | C155: 1.409765 | D155: -1.23213 | F155: Gavelinellinae | G155: 481.406 | H155: 1.46684 | I155: -0.53789
A156: Lenticulina | B156: 474.9392 | C156: 1.231917 | D156: -1.16472 | F156: Gyroidinoides | G156: 481.406 | H156: 1.247026 | I156: -1.14282
A157: Lenticulina | B157: 475.474 | C157: 2.517363 | D157: -0.81481 | F157: Lenticulina | G157: 481.406 | H157: 1.532869 | I157: -1.01118
A158: Lenticulina | B158: 477.414 | C158: 0.928886 | D158: -1.19421 | F158: Gavelinellinae | G158: 481.836 | H158: 1.177269 | I158: -1.20789
A159: Lenticulina | B159: 477.414 | C159: 1.733281 | D159: -0.83421 | F159: Lenticulina | G159: 481.836 | H159: 1.438886 | I159: -1.04421
A160: Lenticulina | B160: 477.4224 | C160: 1.88264 | D160: -0.92262 | F160: Gyroidinoides | G160: 482.956 | H160: 0.988568 | I160: -0.90602
A161: Lenticulina | B161: 478.034 | C161: 1.250613 | D161: -1.25808 | F161: Gavelinellinae | G161: 483.266 | H161: 1.125835 | I161: -1.18025
A162: Lenticulina | B162: 478.034 | C162: 1.520648 | D162: -1.17586 | F162: Gavelinellinae | G162: 483.266 | H162: -0.21172 | I162: -1.17096
A163: Lenticulina | B163: 478.334 | C163: 1.658886 | D163: -1.26421 | F163: Gavelinellinae | G163: 483.266 | H163: 1.139395 | I163: -1.34656
A164: Lenticulina | B164: 478.334 | C164: 1.871256 | D164: -1.14421 | F164: Gavelinellinae | G164: 483.266 | H164: 1.382466 | I164: -1.307
A165: Lenticulina | B165: 479.174 | C165: 1.324073 | D165: -1.01662 | F165: Gyroidinoides | G165: 483.266 | H165: 1.424488 | I165: -0.75959
A166: Lenticulina | B166: 479.174 | C166: 1.631797 | D166: -1.0238 | F166: Lenticulina | G166: 483.266 | H166: 0.921251 | I166: -1.26655
A167: Lenticulina | B167: 479.174 | C167: 1.682084 | D167: -1.29271 | F167: Lenticulina | G167: 483.266 | H167: 2.722161 | I167: -0.58585
A168: Lenticulina | B168: 479.174 | C168: 1.909804 | D168: -0.84049 | F168: Gavelinellinae | G168: 484.686 | H168: 0.920191 | I168: -1.5571
A169: Lenticulina | B169: 479.174 | C169: 2.425785 | D169: -0.58158 | F169: Gyroidinoides | G169: 484.686 | H169: 0.857594 | I169: -1.22182
A170: Lenticulina | B170: 481.406 | C170: 1.532869 | D170: -1.01118 | F170: Gyroidinoides | G170: 484.686 | H170: 0.836115 | I170: -1.21683
A171: Lenticulina | B171: 481.836 | C171: 1.438886 | D171: -1.04421 | F171: Lenticulina | G171: 484.686 | H171: 1.290563 | I171: -0.55904
A172: Lenticulina | B172: 483.266 | C172: 0.921251 | D172: -1.26655 | F172: Gavelinellinae | G172: 485.07 | H172: 1.169802 | I172: -1.14705
A173: Lenticulina | B173: 483.266 | C173: 2.722161 | D173: -0.58585 | F173: Gavelinellinae | G173: 486.14 | H173: 1.528894 | I173: -0.80445
A174: Lenticulina | B174: 484.686 | C174: 1.290563 | D174: -0.55904 | F174: Gyroidinoides | G174: 487.64 | H174: 1.720633 | I174: -1.04805

Sheet Composite curve no Lenticulina
A1: Ordered by sp / group | F1: Ordered by sample depth | K1: Multi sp average for each depth horizon - NO LENTICULINA
A2: Sp / group | B2: Depth CCSF-M | C2: Composite δ13C (‰) VPDB | D2: Composite δ18O (‰) VPDB | F2: Sp / group | G2: Depth CCSF-M | H2: Composite δ13C (‰) VPDB | I2: Composite δ18O (‰) VPDB | K2: Depth | L2: Average Composite δ13C (‰) VPDB of all sp / groups | M2: Average Composite δ18O (‰) VPDB of all sp / groups
A3: Cibicides | B3: 458.4037 | C3: 2.36231 | D3: -1.01381 | F3: Gavelinellinae | G3: 431.81 | H3: 1.955354 | I3: -0.6127 | K3: 431.81 | L3: 1.955354 | M3: -0.6127
A4: Cibicides | B4: 459.004 | C4: 2.077529 | D4: -0.96585 | F4: Gavelinellinae | G4: 436.07 | H4: 2.524321 | I4: -0.37048 | K4: 436.07 | L4: 2.524321 | M4: -0.37048
A5: Cibicides | B5: 460.414 | C5: 2.447031 | D5: -0.98773 | F5: Gavelinellinae | G5: 451.57 | H5: 2.043081 | I5: -1.3923 | K5: 451.57 | L5: 2.043081 | M5: -1.3923
A6: Cibicides | B6: 461.1939 | C6: 2.102669 | D6: -0.98907 | F6: Gavelinellinae | G6: 456.4 | H6: 2.414396 | I6: -0.69876 | K6: 456.4 | L6: 2.414396 | M6: -0.69876
A7: Cibicides | B7: 461.5137 | C7: 2.082743 | D7: -1.26208 | F7: Gavelinellinae | G7: 457.65 | H7: 2.713097 | I7: -0.95334 | K7: 457.65 | L7: 2.713097 | M7: -0.95334
A8: Cibicides | B8: 464.141 | C8: 2.208776 | D8: -1.21268 | F8: Cibicides | G8: 458.4037 | H8: 2.36231 | I8: -1.01381 | K8: 458.4037 | L8: =AVERAGE(G8:G11) -> 458.4037 | M8: =AVERAGE(I8:I11) -> -1.2002675
A9: Cibicides | B9: 464.391 | C9: 2.263713 | D9: -1.25951 | F9: Gavelinellinae | G9: 458.4037 | H9: 2.631733 | I9: -1.15732 | K9: 458.64 | L9: =AVERAGE(H9:H10) -> 2.6745585 | M9: =AVERAGE(I9:I10) -> -1.245245
A10: Cibicides | B10: 467.079 | C10: 2.884933 | D10: -1.34005 | F10: Gyroidinoides | G10: 458.4037 | H10: 2.717384 | I10: -1.33317 | K10: 458.64 | L10: 2.668249 | M10: -1.06359
A11: Cibicides | B11: 471.5715 | C11: 1.532021 | D11: -1.26523 | F11: Osangularia utaturensis | G11: 458.4037 | H11: 2.493479 | I11: -1.29677 | K11: 459.004 | L11: =AVERAGE(H11:H14) -> 2.4736945 | M11: =AVERAGE(I11:I14) -> -1.069955
A12: Cibicides | B12: 472.73 | C12: 1.775112 | D12: -1.00413 | F12: Gavelinellinae | G12: 458.64 | H12: 2.655521 | I12: -0.95361 | K12: 459.3172 | L12: 2.494038 | M12: -1.18713
A13: Cibicides | B13: 473.3298 | C13: 1.757437 | D13: -1.31606 | F13: Gavelinellinae | G13: 458.64 | H13: 2.668249 | I13: -1.06359 | K13: 460.414 | L13: 2.447031 | M13: -0.98773
A14: Cibicides | B14: 473.484 | C14: 1.034077 | D14: -0.51877 | F14: Cibicides | G14: 459.004 | H14: 2.077529 | I14: -0.96585 | K14: 461.1939 | L14: =AVERAGE(H14:H15) -> 2.3175305 | M14: -1.1039
A15: Cibicides | B15: 475.474 | C15: 1.782198 | D15: -1.17496 | F15: Gavelinellinae | G15: 459.004 | H15: 2.557532 | I15: -1.24195 | K15: 461.5137 | L15: 2.94428 | M15: -1.205365
A16: Gavelinellinae | B16: 431.81 | C16: 1.955354 | D16: -0.6127 | F16: Gyroidinoides | G16: 459.004 | H16: 3.331028 | I16: -1.16878 | K16: 462.26 | L16: 2.868128 | M16: -1.254035
A17: Gavelinellinae | B17: 436.07 | C17: 2.524321 | D17: -0.37048 | F17: Osangularia utaturensis | G17: 459.004 | H17: 2.405228 | I17: -1.33929 | K17: 464.141 | L17: 2.449633 | M17: -1.26321
A18: Gavelinellinae | B18: 451.57 | C18: 2.043081 | D18: -1.3923 | F18: Gavelinellinae | G18: 459.3172 | H18: 2.494038 | I18: -1.18713 | K18: 464.391 | L18: 2.4705345 | M18: -1.08743
A19: Gavelinellinae | B19: 456.4 | C19: 2.414396 | D19: -0.69876 | F19: Cibicides | G19: 460.414 | H19: 2.447031 | I19: -0.98773 | K19: 466.29 | L19: =AVERAGE(H19:H21) -> 2.365055 | M19: =AVERAGE(I19:I21) -> -1.00965
A20: Gavelinellinae | B20: 457.65 | C20: 2.713097 | D20: -0.95334 | F20: Cibicides | G20: 461.1939 | H20: 2.102669 | I20: -0.98907 | K20: 467.079 | L20: =AVERAGE(H20:H21) -> 2.324067 | M20: =AVERAGE(I20:I21) -> -1.02061
A21: Gavelinellinae | B21: 458.4037 | C21: 2.631733 | D21: -1.15732 | F21: Gavelinellinae | G21: 461.1939 | H21: 2.545465 | I21: -1.05215 | K21: 471.4095 | L21: =AVERAGE(H21:H22) -> 2.314104 | M21: =AVERAGE(I21:I22) -> -1.157115
A22: Gavelinellinae | B22: 458.64 | C22: 2.655521 | D22: -0.95361 | F22: Cibicides | G22: 461.5137 | H22: 2.082743 | I22: -1.26208 | K22: 471.5715 | L22: =AVERAGE(H22:H24) -> 2.375328 | M22: =AVERAGE(I22:I24) -> -1.440506667
A23: Gavelinellinae | B23: 458.64 | C23: 2.668249 | D23: -1.06359 | F23: Gyroidinoides | G23: 461.5137 | H23: 2.609977 | I23: -1.53305 | K23: 471.774 | L23: =AVERAGE(H23:H24) -> 2.5216205 | M23: =AVERAGE(I23:I24) -> -1.52972
A24: Gavelinellinae | B24: 459.004 | C24: 2.557532 | D24: -1.24195 | F24: Gyroidinoides | G24: 462.26 | H24: 2.433264 | I24: -1.52639 | K24: 471.944 | L24: =AVERAGE(H24,H25) -> 2.2834585 | M24: =AVERAGE(I24:I25) -> -1.44128
A25: Gavelinellinae | B25: 459.3172 | C25: 2.494038 | D25: -1.18713 | F25: Osangularia utaturensis | G25: 462.26 | H25: 2.133653 | I25: -1.35617 | K25: 471.9735 | L25: 2.6763 | M25: -0.7426
A26: Gavelinellinae | B26: 461.1939 | C26: 2.545465 | D26: -1.05215 | F26: Cibicides | G26: 464.141 | H26: 2.208776 | I26: -1.21268 | K26: 472.589 | L26: 1.161981 | M26: -0.88322
A27: Gavelinellinae | B27: 464.141 | C27: 2.363386 | D27: -1.47877 | F27: Gavelinellinae | G27: 464.141 | H27: 2.363386 | I27: -1.47877 | K27: 472.594 | L27: =AVERAGE(H27:H30) -> 2.521974 | M27: =AVERAGE(I27:I30) -> -1.4706775
A28: Gavelinellinae | B28: 464.391 | C28: 2.533957 | D28: -1.46654 | F28: Cibicides | G28: 464.391 | H28: 2.263713 | I28: -1.25951 | K28: 472.73 | L28: =AVERAGE(H28:H30) -> 2.574836667 | M28: =AVERAGE(I28:I30) -> -1.46798
A29: Gavelinellinae | B29: 466.29 | C29: 2.92684 | D29: -1.67789 | F29: Gavelinellinae | G29: 464.391 | H29: 2.533957 | I29: -1.46654 | K29: 473.094 | L29: =AVERAGE(H29:H30) -> 2.7303985 | M29: =AVERAGE(I29:I30) -> -1.572215
A30: Gavelinellinae | B30: 471.4095 | C30: 1.59373 | D30: -1.1994 | F30: Gavelinellinae | G30: 466.29 | H30: 2.92684 | I30: -1.67789 | K30: 473.104 | L30: 1.348299 | M30: -1.16718
A31: Gavelinellinae | B31: 471.774 | C31: 1.461864 | D31: -1.43384 | F31: Gyroidinoides | G31: 466.29 | H31: 2.702774 | I31: -1.77691 | K31: 473.3298 | L31: =AVERAGE(H31:H34) -> 2.78389025 | M31: =AVERAGE(I31:I34) -> -1.5272
A32: Gavelinellinae | B32: 472.594 | C32: 1.04684 | D32: -0.83789 | F32: Osangularia utaturensis | G32: 466.29 | H32: 2.463585 | I32: -1.67516 | K32: 473.474 | L32: =AVERAGE(H32:H34) -> 2.810929 | M32: =AVERAGE(I32:I34) -> -1.443963333
A33: Gavelinellinae | B33: 472.594 | C33: 1.457099 | D33: -1.38313 | F33: Cibicides | G33: 467.079 | H33: 2.884933 | I33: -1.34005 | K33: 473.484 | L33: 1.034077 | M33: -0.51877
A34: Gavelinellinae | B34: 472.594 | C34: 1.468864 | D34: -1.30668 | F34: Osangularia utaturensis | G34: 467.079 | H34: 3.084269 | I34: -1.31668 | K34: 474.0158 | L34: 1.549462 | M34: -1.06499
A35: Gavelinellinae | B35: 472.73 | C35: 1.641715 | D35: -1.14202 | F35: Gavelinellinae | G35: 471.4095 | H35: 1.59373 | I35: -1.1994 | K35: 474.024 | L35: =AVERAGE(H35:H36) -> 1.7129975 | M35: =AVERAGE(I35:I36) -> -1.09385
A36: Gavelinellinae | B36: 473.094 | C36: 1.80684 | D36: -1.44789 | F36: Gyroidinoides | G36: 471.4095 | H36: 1.832265 | I36: -0.9883 | K36: 474.774 | L36: 1.561943 | M36: -1.10448
A37: Gavelinellinae | B37: 473.3298 | C37: 1.620239 | D37: -0.96619 | F37: Cibicides | G37: 471.5715 | H37: 1.532021 | I37: -1.26523 | K37: 474.9392 | L37: =AVERAGE(H37:H40) -> 1.591723 | M37: =AVERAGE(I37:I40) -> -1.18488
A38: Gavelinellinae | B38: 473.474 | C38: 1.521161 | D38: -0.93351 | F38: Gyroidinoides | G38: 471.5715 | H38: 1.746675 | I38: -0.92825 | K38: 475.474 | L38: =AVERAGE(H38:H40) -> 1.611623667 | M38: =AVERAGE(I38:I40) -> -1.158096667
A39: Gavelinellinae | B39: 473.474 | C39: 1.546601 | D39: -1.09473 | F39: Osangularia utaturensis | G39: 471.5715 | H39: 1.626332 | I39: -1.1122 | K39: 475.604 | L39: =AVERAGE(H39:H45) -> 1.586174571 | M39: =AVERAGE(I39:I45) -> -1.181565714
A40: Gavelinellinae | B40: 474.024 | C40: 1.376626 | D40: -1.08193 | F40: Gavelinellinae | G40: 471.774 | H40: 1.461864 | I40: -1.43384 | K40: 476.074 | L40: =AVERAGE(H40:H43) -> 1.40965225 | M40: =AVERAGE(I40:I43) -> -1.383235
A41: Gavelinellinae | B41: 474.024 | C41: 1.48681 | D41: -0.8975 | F41: Gyroidinoides | G41: 471.774 | H41: 1.538956 | I41: -1.21313 | K41: 476.594 | L41: =AVERAGE(H41:H42) -> 1.3903415 | M41: =AVERAGE(I41:I42) -> -1.46139
A42: Gavelinellinae | B42: 474.9392 | C42: 1.684689 | D42: -1.11926 | F42: Gyroidinoides | G42: 471.944 | H42: 1.241727 | I42: -1.70965 | K42: 477.414 | L42: 1.38684 | M42: -1.32789
A43: Gavelinellinae | B43: 474.9392 | C43: 1.746978 | D43: -1.32109 | F43: Gyroidinoides | G43: 471.944 | H43: 1.396062 | I43: -1.17632 | K43: 477.4224 | L43: =AVERAGE(H43:H44) -> 2.036181 | M43: =AVERAGE(I43:I44) -> -0.95946
A44: Gavelinellinae | B44: 475.474 | C44: 1.826795 | D44: -1.12815 | F44: Gyroidinoides | G44: 471.9735 | H44: 2.6763 | I44: -0.7426 | K44: 478.114 | L44: 1.206404 | M44: -1.45122
A45: Gavelinellinae | B45: 475.604 | C45: 1.842406 | D45: -0.73589 | F45: Gyroidinoides | G45: 472.589 | H45: 1.161981 | I45: -0.88322 | K45: 478.334 | L45: =AVERAGE(H45:H48) -> 1.283696 | M45: =AVERAGE(I45:I48) -> -1.10273
A46: Gavelinellinae | B46: 475.604 | C46: 1.890067 | D46: -0.93402 | F46: Gavelinellinae | G46: 472.594 | H46: 1.04684 | I46: -0.83789 | K46: 479.174 | L46: 1.295206 | M46: -0.81549
A47: Gavelinellinae | B47: 475.604 | C47: 1.916392 | D47: -0.59541 | F47: Gavelinellinae | G47: 472.594 | H47: 1.457099 | I47: -1.38313 | K47: 479.834 | L47: =AVERAGE(H47:H52) -> 1.654424 | M47: =AVERAGE(I47:I52) -> -1.115423333
A48: Gavelinellinae | B48: 475.604 | C48: 1.919994 | D48: -0.56453 | F48: Gavelinellinae | G48: 472.594 | H48: 1.468864 | I48: -1.30668 | K48: 480.566 | L48: =AVERAGE(H48:H49) -> 1.3848715 | M48: =AVERAGE(I48:I49) -> -1.227535
A49: Gavelinellinae | B49: 476.074 | C49: 1.633978 | D49: -0.78794 | F49: Gyroidinoides | G49: 472.594 | H49: 1.300879 | I49: -1.14839 | K49: 481.406 | L49: =AVERAGE(H49:H50) -> 1.5379955 | M49: =AVERAGE(I49:I50) -> -1.07626
A50: Gavelinellinae | B50: 476.074 | C50: 1.707491 | D50: -0.73903 | F50: Cibicides | G50: 472.73 | H50: 1.775112 | I50: -1.00413 | K50: 481.836 | L50: 1.177269 | M50: -1.20789
A51: Gavelinellinae | B51: 476.594 | C51: 1.424539 | D51: -1.44696 | F51: Gavelinellinae | G51: 472.73 | H51: 1.641715 | I51: -1.14202 | K51: 482.956 | L51: 0.988568 | M51: -0.90602
A52: Gavelinellinae | B52: 477.414 | C52: 1.38684 | D52: -1.32789 | F52: Gyroidinoides | G52: 472.73 | H52: 2.282875 | I52: -0.70819 | K52: 483.266 | L52: =AVERAGE(H52:H56) -> 1.7601018 | M52: =AVERAGE(I52:I56) -> -1.179582
A53: Gavelinellinae | B53: 478.114 | C53: 1.206404 | D53: -1.45122 | F53: Gavelinellinae | G53: 473.094 | H53: 1.80684 | I53: -1.44789 | K53: 484.686 | L53: =AVERAGE(H53:H55) -> 1.586732333 | M53: =AVERAGE(I53:I55) -> -1.29122
A54: Gavelinellinae | B54: 478.334 | C54: 1.460088 | D54: -1.36789 | F54: Gyroidinoides | G54: 473.094 | H54: 1.605058 | I54: -1.25859 | K54: 485.07 | L54: 1.169802 | M54: -1.14705
A55: Gavelinellinae | B55: 478.334 | C55: 1.511721 | D55: -1.37789 | F55: Gyroidinoides | G55: 473.104 | H55: 1.348299 | I55: -1.16718 | K55: 486.14 | L55: 1.528894 | M55: -0.80445
A56: Gavelinellinae | B56: 479.834 | C56: 1.492295 | D56: -0.71724 | F56: Cibicides | G56: 473.3298 | H56: 1.757437 | I56: -1.31606 | K56: 487.64 | L56: 1.720633 | M56: -1.04805
A57: Gavelinellinae | B57: 479.834 | C57: 1.498922 | D57: -0.5636 | F57: Gavelinellinae | G57: 473.3298 | H57: 1.620239 | I57: -0.96619
A58: Gavelinellinae | B58: 479.834 | C58: 1.530924 | D58: -0.71637 | F58: Gyroidinoides | G58: 473.3298 | H58: 1.764269 | I58: -1.06231
A59: Gavelinellinae | B59: 480.566 | C59: 1.58684 | D59: -1.33789 | F59: Osangularia utaturensis | G59: 473.3298 | H59: 1.980389 | I59: -0.62009
A60: Gavelinellinae | B60: 481.406 | C60: 1.46684 | D60: -0.53789 | F60: Gavelinellinae | G60: 473.474 | H60: 1.521161 | I60: -0.93351
A61: Gavelinellinae | B61: 481.836 | C61: 1.177269 | D61: -1.20789 | F61: Gavelinellinae | G61: 473.474 | H61: 1.546601 | I61: -1.09473
A62: Gavelinellinae | B62: 483.266 | C62: 1.125835 | D62: -1.18025 | F62: Gyroidinoides | G62: 473.474 | H62: 1.380428 | I62: -1.1176
A63: Gavelinellinae | B63: 483.266 | C63: -0.21172 | D63: -1.17096 | F63: Cibicides | G63: 473.484 | H63: 1.034077 | I63: -0.51877
A64: Gavelinellinae | B64: 483.266 | C64: 1.139395 | D64: -1.34656 | F64: Gyroidinoides | G64: 474.0158 | H64: 1.549462 | I64: -1.06499
A65: Gavelinellinae | B65: 483.266 | C65: 1.382466 | D65: -1.307 | F65: Gavelinellinae | G65: 474.024 | H65: 1.376626 | I65: -1.08193
A66: Gavelinellinae | B66: 484.686 | C66: 0.920191 | D66: -1.5571 | F66: Gavelinellinae | G66: 474.024 | H66: 1.48681 | I66: -0.8975
A67: Gavelinellinae | B67: 485.07 | C67: 1.169802 | D67: -1.14705 | F67: Gyroidinoides | G67: 474.774 | H67: 1.561943 | I67: -1.10448
A68: Gavelinellinae | B68: 486.14 | C68: 1.528894 | D68: -0.80445 | F68: Gavelinellinae | G68: 474.9392 | H68: 1.684689 | I68: -1.11926
A69: Gyroidinoides | B69: 458.4037 | C69: 2.717384 | D69: -1.33317 | F69: Gavelinellinae | G69: 474.9392 | H69: 1.746978 | I69: -1.32109
A70: Gyroidinoides | B70: 459.004 | C70: 3.331028 | D70: -1.16878 | F70: Gyroidinoides | G70: 474.9392 | H70: 1.400832 | I70: -1.10784
A71: Gyroidinoides | B71: 461.5137 | C71: 2.609977 | D71: -1.53305 | F71: Gyroidinoides | G71: 474.9392 | H71: 1.438155 | I71: -1.12705
A72: Gyroidinoides | B72: 462.26 | C72: 2.433264 | D72: -1.52639 | F72: Cibicides | G72: 475.474 | H72: 1.782198 | I72: -1.17496
A73: Gyroidinoides | B73: 466.29 | C73: 2.702774 | D73: -1.77691 | F73: Gavelinellinae | G73: 475.474 | H73: 1.826795 | I73: -1.12815
A74: Gyroidinoides | B74: 471.4095 | C74: 1.832265 | D74: -0.9883 | F74: Gyroidinoides | G74: 475.474 | H74: 1.742174 | I74: -0.99145
A75: Gyroidinoides | B75: 471.5715 | C75: 1.746675 | D75: -0.92825 | F75: Gavelinellinae | G75: 475.604 | H75: 1.842406 | I75: -0.73589
A76: Gyroidinoides | B76: 471.774 | C76: 1.538956 | D76: -1.21313 | F76: Gavelinellinae | G76: 475.604 | H76: 1.890067 | I76: -0.93402
A77: Gyroidinoides | B77: 471.944 | C77: 1.241727 | D77: -1.70965 | F77: Gavelinellinae | G77: 475.604 | H77: 1.916392 | I77: -0.59541
A78: Gyroidinoides | B78: 471.944 | C78: 1.396062 | D78: -1.17632 | F78: Gavelinellinae | G78: 475.604 | H78: 1.919994 | I78: -0.56453
A79: Gyroidinoides | B79: 471.9735 | C79: 2.6763 | D79: -0.7426 | F79: Gyroidinoides | G79: 475.604 | H79: 1.806341 | I79: -0.91396
A80: Gyroidinoides | B80: 472.589 | C80: 1.161981 | D80: -0.88322 | F80: Gyroidinoides | G80: 475.604 | H80: 1.997275 | I80: -1.14997
A81: Gyroidinoides | B81: 472.594 | C81: 1.300879 | D81: -1.14839 | F81: Gyroidinoides | G81: 475.604 | H81: 2.078366 | I81: -0.97864
A82: Gyroidinoides | B82: 472.73 | C82: 2.282875 | D82: -0.70819 | F82: Gavelinellinae | G82: 476.074 | H82: 1.633978 | I82: -0.78794
A83: Gyroidinoides | B83: 473.094 | C83: 1.605058 | D83: -1.25859 | F83: Gavelinellinae | G83: 476.074 | H83: 1.707491 | I83: -0.73903
A84: Gyroidinoides | B84: 473.104 | C84: 1.348299 | D84: -1.16718 | F84: Gyroidinoides | G84: 476.074 | H84: 1.479925 | I84: -1.19136
A85: Gyroidinoides | B85: 473.3298 | C85: 1.764269 | D85: -1.06231 | F85: Gyroidinoides | G85: 476.074 | H85: 1.514691 | I85: -1.22765
A86: Gyroidinoides | B86: 473.474 | C86: 1.380428 | D86: -1.1176 | F86: Gavelinellinae | G86: 476.594 | H86: 1.424539 | I86: -1.44696
A87: Gyroidinoides | B87: 474.0158 | C87: 1.549462 | D87: -1.06499 | F87: Gyroidinoides | G87: 476.594 | H87: 1.275474 | I87: -1.07811
A88: Gyroidinoides | B88: 474.774 | C88: 1.561943 | D88: -1.10448 | F88: Gavelinellinae | G88: 477.414 | H88: 1.38684 | I88: -1.32789
A89: Gyroidinoides | B89: 474.9392 | C89: 1.400832 | D89: -1.10784 | F89: Gyroidinoides | G89: 477.4224 | H89: 1.160386 | I89: -1.02144
A90: Gyroidinoides | B90: 474.9392 | C90: 1.438155 | D90: -1.12705 | F90: Osangularia utaturensis | G90: 477.4224 | H90: 1.819526 | I90: -0.61705
A91: Gyroidinoides | B91: 475.474 | C91: 1.742174 | D91: -0.99145 | F91: Gavelinellinae | G91: 478.114 | H91: 1.206404 | I91: -1.45122
A92: Gyroidinoides | B92: 475.604 | C92: 1.806341 | D92: -0.91396 | F92: Gavelinellinae | G92: 478.334 | H92: 1.460088 | I92: -1.36789
A93: Gyroidinoides | B93: 475.604 | C93: 1.997275 | D93: -1.14997 | F93: Gavelinellinae | G93: 478.334 | H93: 1.511721 | I93: -1.37789
A94: Gyroidinoides | B94: 475.604 | C94: 2.078366 | D94: -0.97864 | F94: Gyroidinoides | G94: 478.334 | H94: 1.491531 | I94: -1.25282
A95: Gyroidinoides | B95: 476.074 | C95: 1.479925 | D95: -1.19136 | F95: Gyroidinoides | G95: 478.334 | H95: 1.600248 | I95: -1.05282
A96: Gyroidinoides | B96: 476.074 | C96: 1.514691 | D96: -1.22765 | F96: Gyroidinoides | G96: 479.174 | H96: 1.295206 | I96: -0.81549
A97: Gyroidinoides | B97: 476.594 | C97: 1.275474 | D97: -1.07811 | F97: Gavelinellinae | G97: 479.834 | H97: 1.492295 | I97: -0.71724
A98: Gyroidinoides | B98: 477.4224 | C98: 1.160386 | D98: -1.02144 | F98: Gavelinellinae | G98: 479.834 | H98: 1.498922 | I98: -0.5636
A99: Gyroidinoides | B99: 478.334 | C99: 1.491531 | D99: -1.25282 | F99: Gavelinellinae | G99: 479.834 | H99: 1.530924 | I99: -0.71637
A100: Gyroidinoides | B100: 478.334 | C100: 1.600248 | D100: -1.05282 | F100: Gyroidinoides | G100: 479.834 | H100: 1.308749 | I100: -0.88127
A101: Gyroidinoides | B101: 479.174 | C101: 1.295206 | D101: -0.81549 | F101: Gyroidinoides | G101: 479.834 | H101: 1.395264 | I101: -0.81528
A102: Gyroidinoides | B102: 479.834 | C102: 1.308749 | D102: -0.88127 | F102: Gyroidinoides | G102: 479.834 | H102: 1.48945 | I102: -0.85238
A103: Gyroidinoides | B103: 479.834 | C103: 1.395264 | D103: -0.81528 | F103: Gavelinellinae | G103: 480.566 | H103: 1.58684 | I103: -1.33789
A104: Gyroidinoides | B104: 479.834 | C104: 1.48945 | D104: -0.85238 | F104: Gyroidinoides | G104: 480.566 | H104: 1.237473 | I104: -1.03159
A105: Gyroidinoides | B105: 480.566 | C105: 1.237473 | D105: -1.03159 | F105: Gavelinellinae | G105: 481.406 | H105: 1.46684 | I105: -0.53789
A106: Gyroidinoides | B106: 481.406 | C106: 1.247026 | D106: -1.14282 | F106: Gyroidinoides | G106: 481.406 | H106: 1.247026 | I106: -1.14282
A107: Gyroidinoides | B107: 482.956 | C107: 0.988568 | D107: -0.90602 | F107: Gavelinellinae | G107: 481.836 | H107: 1.177269 | I107: -1.20789
A108: Gyroidinoides | B108: 483.266 | C108: 1.424488 | D108: -0.75959 | F108: Gyroidinoides | G108: 482.956 | H108: 0.988568 | I108: -0.90602
A109: Gyroidinoides | B109: 484.686 | C109: 0.857594 | D109: -1.22182 | F109: Gavelinellinae | G109: 483.266 | H109: 1.125835 | I109: -1.18025
A110: Gyroidinoides | B110: 484.686 | C110: 0.836115 | D110: -1.21683 | F110: Gavelinellinae | G110: 483.266 | H110: -0.21172 | I110: -1.17096
A111: Gyroidinoides | B111: 487.64 | C111: 1.720633 | D111: -1.04805 | F111: Gavelinellinae | G111: 483.266 | H111: 1.139395 | I111: -1.34656
A112: Osangularia utaturensis | B112: 458.4037 | C112: 2.493479 | D112: -1.29677 | F112: Gavelinellinae | G112: 483.266 | H112: 1.382466 | I112: -1.307
A113: Osangularia utaturensis | B113: 459.004 | C113: 2.405228 | D113: -1.33929 | F113: Gyroidinoides | G113: 483.266 | H113: 1.424488 | I113: -0.75959
A114: Osangularia utaturensis | B114: 462.26 | C114: 2.133653 | D114: -1.35617 | F114: Gavelinellinae | G114: 484.686 | H114: 0.920191 | I114: -1.5571
A115: Osangularia utaturensis | B115: 466.29 | C115: 2.463585 | D115: -1.67516 | F115: Gyroidinoides | G115: 484.686 | H115: 0.857594 | I115: -1.22182
A116: Osangularia utaturensis | B116: 467.079 | C116: 3.084269 | D116: -1.31668 | F116: Gyroidinoides | G116: 484.686 | H116: 0.836115 | I116: -1.21683
A117: Osangularia utaturensis | B117: 471.5715 | C117: 1.626332 | D117: -1.1122 | F117: Gavelinellinae | G117: 485.07 | H117: 1.169802 | I117: -1.14705
A118: Osangularia utaturensis | B118: 473.3298 | C118: 1.980389 | D118: -0.62009 | F118: Gavelinellinae | G118: 486.14 | H118: 1.528894 | I118: -0.80445
A119: Osangularia utaturensis | B119: 477.4224 | C119: 1.819526 | D119: -0.61705 | F119: Gyroidinoides | G119: 487.64 | H119: 1.720633 | I119: -1.04805
